VENDOR,CATEGORY,AMOUNT,PAYMENT DATE
"A M C MECHANICAL, INC.",MATERIALS - NON-INVENTORY,"$3,829.93 ",1/23/2017
"A M C MECHANICAL, INC.",OUTSIDE SERVICES,"$3,439.66 ",1/23/2017
"A M C MECHANICAL, INC.",OUTSIDE SERVICES,"$1,632.62 ",1/30/2017
"A M C MECHANICAL, INC.",MATERIALS - NON-INVENTORY,"$1,902.15 ",2/14/2017
"A M C MECHANICAL, INC.",OUTSIDE SERVICES,$968.50 ,2/14/2017
"A M C MECHANICAL, INC.",MATERIALS - NON-INVENTORY,$111.90 ,2/21/2017
"A M C MECHANICAL, INC.",OUTSIDE SERVICES,"$9,378.24 ",2/21/2017
"A M C MECHANICAL, INC.",OUTSIDE SERVICES,$532 ,2/27/2017
"A M C MECHANICAL, INC.",MATERIALS - NON-INVENTORY,$157.92 ,3/1/2017
"A M C MECHANICAL, INC.",OUTSIDE SERVICES,$584 ,3/1/2017
"A M C MECHANICAL, INC.",OUTSIDE SERVICES,$252.50 ,3/6/2017
"A M C MECHANICAL, INC.",OUTSIDE SERVICES,"$1,685.66 ",3/7/2017
"A M C MECHANICAL, INC.",OUTSIDE SERVICES,"$3,104.69 ",3/13/2017
"A M C MECHANICAL, INC.",OUTSIDE SERVICES,$533.50 ,3/27/2017
"A M C MECHANICAL, INC.",MATERIALS - NON-INVENTORY,$280.93 ,4/10/2017
"A M C MECHANICAL, INC.",OUTSIDE SERVICES,"$3,762.32 ",4/10/2017
"A M C MECHANICAL, INC.",OUTSIDE SERVICES,"$1,261 ",4/20/2017
"A M C MECHANICAL, INC.",OUTSIDE SERVICES,"$2,461.64 ",5/8/2017
"A M C MECHANICAL, INC.",MATERIALS - NON-INVENTORY,$512.37 ,5/18/2017
A-ALERT EXTERMINATING SERVICE,OUTSIDE SERVICES,$270 ,1/24/2017
A-ALERT EXTERMINATING SERVICE,OUTSIDE SERVICES,$75 ,1/24/2017
A-ALERT EXTERMINATING SERVICE,OUTSIDE SERVICES,$75 ,1/24/2017
A-ALERT EXTERMINATING SERVICE,OUTSIDE SERVICES,$870 ,1/24/2017
A-ALERT EXTERMINATING SERVICE,OUTSIDE SERVICES,$75 ,1/30/2017
A-ALERT EXTERMINATING SERVICE,OUTSIDE SERVICES,$30 ,1/31/2017
A-ALERT EXTERMINATING SERVICE,OUTSIDE SERVICES,$395 ,2/14/2017
A-ALERT EXTERMINATING SERVICE,OUTSIDE SERVICES,$365 ,2/15/2017
A-ALERT EXTERMINATING SERVICE,OUTSIDE SERVICES,$75 ,2/16/2017
A-ALERT EXTERMINATING SERVICE,OUTSIDE SERVICES,$350 ,2/16/2017
A-ALERT EXTERMINATING SERVICE,OUTSIDE SERVICES,$30 ,2/28/2017
A-ALERT EXTERMINATING SERVICE,OUTSIDE SERVICES,$520 ,2/28/2017
A-ALERT EXTERMINATING SERVICE,OUTSIDE SERVICES,$270 ,3/6/2017
A-ALERT EXTERMINATING SERVICE,OUTSIDE SERVICES,$45 ,3/13/2017
A-ALERT EXTERMINATING SERVICE,OUTSIDE SERVICES,$500 ,3/13/2017
A-ALERT EXTERMINATING SERVICE,OUTSIDE SERVICES,$105 ,3/14/2017
A-ALERT EXTERMINATING SERVICE,OUTSIDE SERVICES,$315 ,3/14/2017
A-ALERT EXTERMINATING SERVICE,OUTSIDE SERVICES,$345 ,3/30/2017
A-ALERT EXTERMINATING SERVICE,OUTSIDE SERVICES,$75 ,3/30/2017
A-ALERT EXTERMINATING SERVICE,OUTSIDE SERVICES,$615 ,3/30/2017
A-ALERT EXTERMINATING SERVICE,OUTSIDE SERVICES,$65 ,4/3/2017
A-ALERT EXTERMINATING SERVICE,OUTSIDE SERVICES,$115 ,4/5/2017
A-ALERT EXTERMINATING SERVICE,OUTSIDE SERVICES,$225 ,5/8/2017
A-ALERT EXTERMINATING SERVICE,OUTSIDE SERVICES,$315 ,5/8/2017
A-ALERT EXTERMINATING SERVICE,OUTSIDE SERVICES,$75 ,5/18/2017
A-ALERT EXTERMINATING SERVICE,OUTSIDE SERVICES,$75 ,5/18/2017
A-ALERT EXTERMINATING SERVICE,OUTSIDE SERVICES,$105 ,5/18/2017
A-ALERT EXTERMINATING SERVICE,OUTSIDE SERVICES,$370 ,5/19/2017
"A-TIRE COUNTY SERVICE, INC.",OUTSIDE SERVICES,$150 ,1/5/2017
"A-TIRE COUNTY SERVICE, INC.",OUTSIDE SERVICES,"$1,745.39 ",1/5/2017
"A-TIRE COUNTY SERVICE, INC.",OUTSIDE SERVICES,$150 ,1/17/2017
"A-TIRE COUNTY SERVICE, INC.",OUTSIDE SERVICES,"$4,208.55 ",1/17/2017
"A-TIRE COUNTY SERVICE, INC.",OUTSIDE SERVICES,"$2,004.80 ",1/24/2017
"A-TIRE COUNTY SERVICE, INC.",MISCELLANEOUS OTHER EXPENSE,$46 ,1/24/2017
"A-TIRE COUNTY SERVICE, INC.",OUTSIDE SERVICES,"$4,647.99 ",2/13/2017
"A-TIRE COUNTY SERVICE, INC.",OUTSIDE SERVICES,$478.98 ,2/14/2017
"A-TIRE COUNTY SERVICE, INC.",OUTSIDE SERVICES,$60.20 ,2/15/2017
"A-TIRE COUNTY SERVICE, INC.",OUTSIDE SERVICES,$150 ,3/2/2017
"A-TIRE COUNTY SERVICE, INC.",OUTSIDE SERVICES,"$3,504.07 ",3/2/2017
"A-TIRE COUNTY SERVICE, INC.",MISCELLANEOUS OTHER EXPENSE,$70 ,3/2/2017
"A-TIRE COUNTY SERVICE, INC.",OUTSIDE SERVICES,$663.43 ,3/6/2017
"A-TIRE COUNTY SERVICE, INC.",MISCELLANEOUS OTHER EXPENSE,$23 ,3/6/2017
"A-TIRE COUNTY SERVICE, INC.",MISCELLANEOUS OTHER EXPENSE,$23.50 ,3/6/2017
"A-TIRE COUNTY SERVICE, INC.",OUTSIDE SERVICES,"$1,354.47 ",3/13/2017
"A-TIRE COUNTY SERVICE, INC.",MISCELLANEOUS OTHER EXPENSE,$23 ,3/13/2017
"A-TIRE COUNTY SERVICE, INC.",OUTSIDE SERVICES,$60 ,4/13/2017
"A-TIRE COUNTY SERVICE, INC.",OUTSIDE SERVICES,"$8,553.68 ",4/13/2017
"A-TIRE COUNTY SERVICE, INC.",MISCELLANEOUS OTHER EXPENSE,$139.50 ,4/13/2017
"A-TIRE COUNTY SERVICE, INC.",OUTSIDE SERVICES,$150 ,5/19/2017
"A-TIRE COUNTY SERVICE, INC.",OUTSIDE SERVICES,"$5,589.86 ",5/19/2017
"A-TIRE COUNTY SERVICE, INC.",MISCELLANEOUS OTHER EXPENSE,$556.50 ,5/19/2017
A-1 AIR COMPRESSOR CORP.,OUTSIDE SERVICES,$692.50 ,3/21/2017
AARON GULBRANSEN,TUITION REIMBURSEMENT,"$2,461 ",4/5/2017
AARON GULBRANSEN,TUITION REIMBURSEMENT,"$2,925 ",5/23/2017
AARON MAERTINS,TUITION REIMBURSEMENT,"$4,293 ",5/23/2017
AARON TORRES,"EMP EXPENSE REIMB, LOCAL",$16 ,4/10/2017
"ABI ATTACHMENTS, INC.",MATERIALS - NON-INVENTORY,"$4,139 ",5/19/2017
"ABI ATTACHMENTS, INC.",MISCELLANEOUS OTHER EXPENSE,$146 ,5/19/2017
ABT,MATERIALS - NON-INVENTORY,$169 ,1/5/2017
ABT,MATERIALS - NON-INVENTORY,$169 ,1/5/2017
ABT,MATERIALS - NON-INVENTORY,"$1,466 ",1/23/2017
ABT,MATERIALS - NON-INVENTORY,$436 ,1/23/2017
ABT,MATERIALS - NON-INVENTORY,"$1,079 ",2/14/2017
ABT,MATERIALS - NON-INVENTORY,$115 ,2/14/2017
ABT,MISCELLANEOUS OTHER EXPENSE,$193.99 ,2/14/2017
ABT,MATERIALS - NON-INVENTORY,"$1,054 ",3/6/2017
ABT,MATERIALS - NON-INVENTORY,$667 ,3/20/2017
ABT,MATERIALS - NON-INVENTORY,$169 ,4/3/2017
ABT,MATERIALS - NON-INVENTORY,$478 ,5/19/2017
ABT,MATERIALS - NON-INVENTORY,$169 ,5/19/2017
ABT,MATERIALS - NON-INVENTORY,$338 ,5/19/2017
ABT,MATERIALS - NON-INVENTORY,$237 ,5/19/2017
"ACA COMPLIANCE SERVICES, INC.",MISCELLANEOUS OTHER EXPENSE,"$11,999 ",2/15/2017
"ACACIA FINANCIAL GROUP, INC.",PROFESSIONAL SERVICES,"$1,056.25 ",3/22/2017
"ACACIA FINANCIAL GROUP, INC.",PROFESSIONAL SERVICES,"$1,337.50 ",4/20/2017
"ACACIA FINANCIAL GROUP, INC.",PROFESSIONAL SERVICES,"$1,712.50 ",5/9/2017
ACCURATE FORMS & SUPPLIES,MATERIALS - NON-INVENTORY,"$1,646 ",1/5/2017
ACCURATE FORMS & SUPPLIES,MATERIALS - NON-INVENTORY,"$1,646 ",1/17/2017
ACCURATE FORMS & SUPPLIES,MATERIALS - NON-INVENTORY,"$2,686.90 ",3/2/2017
ACCURATE FORMS & SUPPLIES,MATERIALS - NON-INVENTORY,"$3,471.60 ",3/15/2017
ACCURATE FORMS & SUPPLIES,MATERIALS - NON-INVENTORY,"$1,269.10 ",3/27/2017
"ACCURATE REPORTING CO., INC.",MISCELLANEOUS OTHER EXPENSE,"$2,980.35 ",1/5/2017
"ACCURATE REPORTING CO., INC.",MISCELLANEOUS OTHER EXPENSE,"$1,383.65 ",1/17/2017
"ACCURATE REPORTING CO., INC.",MISCELLANEOUS OTHER EXPENSE,"$5,135.45 ",1/23/2017
"ACCURATE REPORTING CO., INC.",MISCELLANEOUS OTHER EXPENSE,"$4,005.80 ",1/31/2017
"ACCURATE REPORTING CO., INC.",MISCELLANEOUS OTHER EXPENSE,"$4,163.70 ",3/23/2017
"ACCURATE REPORTING CO., INC.",MISCELLANEOUS OTHER EXPENSE,$472.40 ,4/3/2017
"ACCURATE REPORTING CO., INC.",MISCELLANEOUS OTHER EXPENSE,$206.70 ,4/10/2017
"ACCURATE REPORTING CO., INC.",MISCELLANEOUS OTHER EXPENSE,$267.50 ,4/20/2017
"ACCURATE REPORTING CO., INC.",PROFESSIONAL SERVICES,"$1,034.40 ",4/20/2017
"ACCURATE REPORTING CO., INC.",PROFESSIONAL SERVICES,"$2,646.35 ",4/26/2017
"ACCURATE REPORTING CO., INC.",OUTSIDE SERVICES - CAPITAL,$133.90 ,5/18/2017
"ACCURATE REPORTING CO., INC.",MISCELLANEOUS OTHER EXPENSE,"$1,363.90 ",5/18/2017
"ACCURATE REPORTING CO., INC.",PROFESSIONAL SERVICES,"$1,340.35 ",5/18/2017
ACE BAKERY,MISCELLANEOUS OTHER EXPENSE,$30 ,4/20/2017
ACE BAKERY,MISCELLANEOUS OTHER EXPENSE,$290 ,4/20/2017
ACE BAKERY,MISCELLANEOUS OTHER EXPENSE,$130 ,5/19/2017
ACE BAKERY,MISCELLANEOUS OTHER EXPENSE,"$1,362.95 ",5/19/2017
ACE COFFEE BAR INC.,MATERIALS - NON-INVENTORY,$276.75 ,2/13/2017
ACI WORLDWIDE CORP.,PROFESSIONAL SERVICES,"$48,039 ",1/5/2017
ACI WORLDWIDE CORP.,PROFESSIONAL SERVICES,"$23,715 ",1/24/2017
ACI WORLDWIDE CORP.,PROFESSIONAL SERVICES,"$24,774 ",1/26/2017
ACI WORLDWIDE CORP.,PROFESSIONAL SERVICES,"$4,950 ",1/31/2017
ACI WORLDWIDE CORP.,PROFESSIONAL SERVICES,"$24,774 ",3/2/2017
ACI WORLDWIDE CORP.,PROFESSIONAL SERVICES,"$3,375 ",3/13/2017
ACI WORLDWIDE CORP.,PROFESSIONAL SERVICES,"$24,774 ",3/27/2017
ACI WORLDWIDE CORP.,PROFESSIONAL SERVICES,"$24,774 ",4/3/2017
ACI WORLDWIDE CORP.,PROFESSIONAL SERVICES,"$5,040 ",4/10/2017
ACI WORLDWIDE CORP.,PROFESSIONAL SERVICES,"$24,774 ",5/18/2017
"ACORN GARAGE, INC.",OUTSIDE SERVICES,"$2,494.82 ",1/24/2017
"ACORN GARAGE, INC.",MISCELLANEOUS OTHER EXPENSE,$124 ,1/24/2017
"ACORN GARAGE, INC.",OUTSIDE SERVICES,$640.94 ,2/13/2017
"ACORN GARAGE, INC.",MISCELLANEOUS OTHER EXPENSE,$75 ,2/13/2017
"ACORN GARAGE, INC.",OUTSIDE SERVICES,"$1,729.75 ",2/14/2017
"ACORN GARAGE, INC.",MISCELLANEOUS OTHER EXPENSE,$25 ,2/14/2017
"ACORN GARAGE, INC.",OUTSIDE SERVICES,"$1,240.64 ",2/15/2017
"ACORN GARAGE, INC.",MISCELLANEOUS OTHER EXPENSE,$75 ,2/15/2017
"ACORN GARAGE, INC.",OUTSIDE SERVICES,$652.95 ,2/16/2017
"ACORN GARAGE, INC.",MISCELLANEOUS OTHER EXPENSE,$25 ,2/16/2017
"ACORN GARAGE, INC.",MISCELLANEOUS OTHER EXPENSE,$75 ,2/21/2017
"ACORN GARAGE, INC.",OUTSIDE SERVICES,"$10,074.72 ",2/27/2017
"ACORN GARAGE, INC.",MISCELLANEOUS OTHER EXPENSE,$100 ,2/27/2017
"ACORN GARAGE, INC.",OUTSIDE SERVICES,"$1,864.55 ",2/28/2017
"ACORN GARAGE, INC.",MISCELLANEOUS OTHER EXPENSE,$25 ,2/28/2017
"ACORN GARAGE, INC.",OUTSIDE SERVICES,"$4,535.04 ",4/5/2017
"ACORN GARAGE, INC.",MISCELLANEOUS OTHER EXPENSE,$162 ,4/5/2017
ACORN WIRE & IRON WORKS,OUTSIDE SERVICES,$652.95 ,2/13/2017
ACORN WIRE & IRON WORKS,MISCELLANEOUS OTHER EXPENSE,$25 ,2/13/2017
ACTON MOBILE,OUTSIDE SERVICES - CAPITAL,"$6,965 ",1/17/2017
ACTON MOBILE,RENTAL EXPENSE,"$1,113 ",1/17/2017
ACTON MOBILE,OUTSIDE SERVICES - CAPITAL,$341 ,2/14/2017
ACTON MOBILE,OUTSIDE SERVICES - CAPITAL,$341 ,2/15/2017
ACTON MOBILE,OUTSIDE SERVICES,"$1,508 ",3/15/2017
ACTON MOBILE,OUTSIDE SERVICES - CAPITAL,"$8,580 ",4/3/2017
ACTON MOBILE,RENTAL EXPENSE,$352 ,4/3/2017
ACTON MOBILE,OUTSIDE SERVICES - CAPITAL,"$2,833 ",4/20/2017
ACTON MOBILE,RENTAL EXPENSE,$352 ,4/20/2017
ACTON MOBILE,MATERIALS - CAPITAL,"$2,593 ",5/1/2017
ACTON MOBILE,OUTSIDE SERVICES - CAPITAL,$768 ,5/1/2017
ACTON MOBILE,MATERIALS - CAPITAL,"$8,065 ",5/19/2017
ACTON MOBILE,OUTSIDE SERVICES - CAPITAL,"$1,941.54 ",5/19/2017
ACTON MOBILE,RENTAL EXPENSE,$352 ,5/19/2017
ADAM FARENCE,"EMP EXPENSE REIMB, LOCAL",$169.56 ,1/9/2017
ADAM FARENCE,"EMP EXPENSE REIMB, LOCAL",$240.84 ,1/23/2017
ADAM FARENCE,"EMP EXPENSE REIMB, LOCAL",$406.82 ,2/27/2017
ADAM FARENCE,"EMP EXPENSE REIMB, LOCAL",$414.10 ,3/21/2017
ADAM FARENCE,"EMP EXPENSE REIMB, LOCAL",$318.86 ,4/27/2017
ADAM FARENCE,"EMP EXPENSE REIMB, LOCAL",$208.65 ,5/24/2017
ADAM GIBSON,"EMP EXPENSE REIMB, LOCAL",$16.04 ,1/9/2017
ADAM GIBSON,"EMP EXPENSE REIMB, LOCAL",$15.57 ,4/19/2017
ADAM GIBSON,"EMP EXPENSE REIMB, LOCAL",$12.10 ,5/19/2017
ADAM KROGUL,"EMP EXPENSE REIMB, OUT OF TOWN","$1,626.08 ",5/8/2017
"ADAMS & WESTLAKE, LTD.",MATERIALS - INVENTORY,"$3,402.72 ",1/3/2017
"ADAMS & WESTLAKE, LTD.",MATERIALS - INVENTORY,$288 ,1/24/2017
"ADAMS & WESTLAKE, LTD.",MATERIALS - INVENTORY,"$4,040.73 ",1/30/2017
"ADAMS & WESTLAKE, LTD.",MATERIALS - INVENTORY,"$5,335.67 ",2/15/2017
"ADAMS & WESTLAKE, LTD.",MATERIALS - INVENTORY,"$4,882 ",2/21/2017
"ADAMS & WESTLAKE, LTD.",MATERIALS - INVENTORY,"$7,666.07 ",3/6/2017
"ADAMS & WESTLAKE, LTD.",MATERIALS - INVENTORY,"$5,104.08 ",3/13/2017
"ADAMS & WESTLAKE, LTD.",MATERIALS - INVENTORY,"$1,874.60 ",4/25/2017
"ADAMS & WESTLAKE, LTD.",MATERIALS - INVENTORY,"$13,184.35 ",4/26/2017
"ADAMS & WESTLAKE, LTD.",MATERIALS - INVENTORY,"$1,094.50 ",5/8/2017
"ADDISON ELECTRIC, INC.",MATERIALS - INVENTORY,$839 ,1/5/2017
"ADDISON ELECTRIC, INC.",MATERIALS - INVENTORY,$106 ,1/19/2017
"ADDISON ELECTRIC, INC.",MATERIALS - INVENTORY,$240 ,1/24/2017
"ADDISON ELECTRIC, INC.",MATERIALS - INVENTORY,"$2,239.50 ",3/30/2017
"ADDISON ELECTRIC, INC.",MATERIALS - INVENTORY,$880 ,5/8/2017
"ADDISON ELECTRIC, INC.",MATERIALS - INVENTORY,"$2,650 ",5/19/2017
ADRIANA S. MENA,"EMP EXPENSE REIMB, LOCAL",$16.25 ,2/2/2017
ADVANCE SEARCH TECHNICAL STAFFING,PROFESSIONAL SERVICES,"$14,520 ",2/9/2017
ADVANCE SEARCH TECHNICAL STAFFING,PROFESSIONAL SERVICES,"$7,120 ",2/21/2017
ADVANCE SEARCH TECHNICAL STAFFING,PROFESSIONAL SERVICES,"$9,600 ",3/21/2017
ADVANCE SEARCH TECHNICAL STAFFING,PROFESSIONAL SERVICES,"$9,600 ",3/27/2017
ADVANCE SEARCH TECHNICAL STAFFING,PROFESSIONAL SERVICES,"$9,760 ",4/20/2017
ADVANCE SEARCH TECHNICAL STAFFING,PROFESSIONAL SERVICES,"$9,680 ",5/10/2017
"ADVANCED RESOURCES, LLC",MISCELLANEOUS OTHER EXPENSE,"$11,521.87 ",3/1/2017
"ADVANCED RESOURCES, LLC",MISCELLANEOUS OTHER EXPENSE,"$6,712.50 ",3/27/2017
"ADVANCED RESOURCES, LLC",MISCELLANEOUS OTHER EXPENSE,"$9,000 ",4/10/2017
"ADVANCED RESOURCES, LLC",MISCELLANEOUS OTHER EXPENSE,"$6,196.87 ",5/18/2017
"AECOM TECHNICAL SERVICES, INC.",ENGINEERING & DESIGN,"$495,016.58 ",1/26/2017
"AECOM TECHNICAL SERVICES, INC.",OUTSIDE SERVICES - CAPITAL,"$47,259.76 ",1/31/2017
"AECOM TECHNICAL SERVICES, INC.",ENGINEERING & DESIGN,"$30,779.67 ",2/13/2017
"AECOM TECHNICAL SERVICES, INC.",ENG. MANAGEMENT & INSPECTIONS,$616.27 ,2/28/2017
"AECOM TECHNICAL SERVICES, INC.",ENGINEERING & DESIGN,"$516,941.95 ",3/13/2017
"AECOM TECHNICAL SERVICES, INC.",ENGINEERING & DESIGN,"$366,777.85 ",3/27/2017
"AECOM TECHNICAL SERVICES, INC.",OUTSIDE SERVICES - CAPITAL,"$38,968.82 ",4/10/2017
"AECOM TECHNICAL SERVICES, INC.",ENGINEERING & DESIGN,"$138,918.78 ",4/11/2017
"AECOM TECHNICAL SERVICES, INC.",ENGINEERING & DESIGN,"$513,585.58 ",5/18/2017
"AECOM TECHNICAL SERVICES, INC.",ENG. MANAGEMENT & INSPECTIONS,"$25,654.79 ",5/18/2017
"AFC INTERNATIONAL, INC.",OUTSIDE SERVICES,$550 ,5/8/2017
"AFC INTERNATIONAL, INC.",OUTSIDE SERVICES,$183.75 ,5/18/2017
AFFORDABLE CONCRETE RAISING,OUTSIDE SERVICES - CAPITAL,"$1,075 ",1/31/2017
AFP,MISCELLANEOUS OTHER EXPENSE,"$1,270 ",1/17/2017
AFRICAN AMERICAN CONTRACTORS ASSOC.,MISCELLANEOUS OTHER EXPENSE,$300 ,1/31/2017
"AHEAD OF OUR TIME PUBLISHING,INC",MISCELLANEOUS OTHER EXPENSE,$500 ,1/17/2017
"AIR PURIFICATION SOLUTIONS, LLC",MATERIALS - NON-INVENTORY,"$1,350 ",3/22/2017
"AIR PURIFICATION SOLUTIONS, LLC",MISCELLANEOUS OTHER EXPENSE,$160 ,3/22/2017
"AIRCRAFT & COMMERCIAL ENTERPRISES,",MATERIALS - NON-INVENTORY,"$6,003.83 ",1/5/2017
"AIRCRAFT & COMMERCIAL ENTERPRISES,",MATERIALS - NON-INVENTORY,"$6,877.50 ",3/2/2017
"AIRCRAFT & COMMERCIAL ENTERPRISES,",MATERIALS - NON-INVENTORY,"$2,519 ",3/6/2017
"AIRCRAFT & COMMERCIAL ENTERPRISES,",MATERIALS - CAPITAL,"$5,700 ",4/10/2017
"AIRCRAFT & COMMERCIAL ENTERPRISES,",MATERIALS - CAPITAL,"$8,893.50 ",4/26/2017
ALAN B. BAKOTIC,TUITION REIMBURSEMENT,"$1,842 ",2/21/2017
ALAN B. BAKOTIC,"EMP EXPENSE REIMB, OUT OF TOWN",$814.51 ,2/27/2017
ALAN RATLIFF,"EMP EXPENSE REIMB, OUT OF TOWN",$298.26 ,4/6/2017
ALAN T. HALL II,"EMP EXPENSE REIMB, LOCAL",$64.20 ,2/27/2017
ALAN T. HALL II,"EMP EXPENSE REIMB, LOCAL",$201.16 ,3/21/2017
ALAN T. HALL II,"EMP EXPENSE REIMB, LOCAL",$32.10 ,5/1/2017
"ALBERTINI MFG. & SUPPLY, INC.",MATERIALS & ASSETS - CAPITAL,"$21,000 ",5/2/2017
"ALCOHOL & DRUG TESTING SERVICES,LLC",MISCELLANEOUS OTHER EXPENSE,"$12,614.50 ",1/23/2017
"ALCOHOL & DRUG TESTING SERVICES,LLC",MISCELLANEOUS OTHER EXPENSE,"$3,879.50 ",2/27/2017
"ALCOHOL & DRUG TESTING SERVICES,LLC",MISCELLANEOUS OTHER EXPENSE,"$1,524 ",3/1/2017
"ALCOHOL & DRUG TESTING SERVICES,LLC",MISCELLANEOUS OTHER EXPENSE,"$12,690.50 ",3/27/2017
"ALCOHOL & DRUG TESTING SERVICES,LLC",MISCELLANEOUS OTHER EXPENSE,"$2,841.50 ",4/20/2017
"ALCOHOL & DRUG TESTING SERVICES,LLC",MISCELLANEOUS OTHER EXPENSE,"$6,228 ",5/9/2017
ALFONSO OCHOA,"EMP EXPENSE REIMB, LOCAL","$1,412.50 ",2/14/2017
ALFONSO OCHOA,"EMP EXPENSE REIMB, LOCAL",$678 ,3/6/2017
ALFONSO OCHOA,"EMP EXPENSE REIMB, LOCAL",$452 ,3/20/2017
ALFONSO OCHOA,"EMP EXPENSE REIMB, LOCAL",$621.50 ,3/30/2017
ALFONSO OCHOA,"EMP EXPENSE REIMB, LOCAL",$678 ,4/25/2017
ALFONSO OCHOA,"EMP EXPENSE REIMB, LOCAL",$339 ,5/4/2017
ALFRED BENESCH & CO.,ENG. MANAGEMENT & INSPECTIONS,"$28,600.72 ",1/10/2017
ALFRED BENESCH & CO.,CONSTRUCTION,"$108,734.64 ",5/18/2017
ALFRED BENESCH & CO.,ENGINEERING & DESIGN,"$108,734.64 ",5/18/2017
"ALIGN ELEVATION, LLC",OUTSIDE SERVICES,"$12,936.55 ",1/17/2017
ALL COVERED,MATERIALS & ASSETS - CAPITAL,"$2,722.50 ",3/28/2017
ALL COVERED,MATERIALS & ASSETS - CAPITAL,"$10,725 ",5/16/2017
ALLAN BAKER INC DBA KORRECT OPTICAL,MISCELLANEOUS OTHER EXPENSE,$589 ,1/17/2017
ALLAN BAKER INC DBA KORRECT OPTICAL,MISCELLANEOUS OTHER EXPENSE,"$3,008 ",1/26/2017
ALLAN BAKER INC DBA KORRECT OPTICAL,MISCELLANEOUS OTHER EXPENSE,"$2,962 ",2/28/2017
ALLAN BAKER INC DBA KORRECT OPTICAL,MISCELLANEOUS OTHER EXPENSE,$823 ,4/4/2017
ALLAN BAKER INC DBA KORRECT OPTICAL,MISCELLANEOUS OTHER EXPENSE,"$1,114 ",5/16/2017
ALLEN M. DEBRAAL,"EMP EXPENSE REIMB, OUT OF TOWN",$231.75 ,2/7/2017
ALLEN M. DEBRAAL,"EMP EXPENSE REIMB, OUT OF TOWN",$94.25 ,3/20/2017
ALMA CERVANTES,TUITION REIMBURSEMENT,"$3,381 ",5/26/2017
ALONZO D. SMITH,"EMP EXPENSE REIMB, LOCAL",$13.26 ,3/30/2017
ALONZO D. SMITH,TUITION REIMBURSEMENT,"$3,804 ",5/18/2017
"ALSTOM SIGNALING OPERATION, LLC",MATERIALS - INVENTORY,"$36,432.28 ",1/3/2017
"ALSTOM SIGNALING OPERATION, LLC",MATERIALS - INVENTORY,"$14,221.76 ",1/4/2017
"ALSTOM SIGNALING OPERATION, LLC",MATERIALS & ASSETS - CAPITAL,"$15,136 ",1/10/2017
"ALSTOM SIGNALING OPERATION, LLC",OUTSIDE SERVICES,$540 ,1/30/2017
"ALSTOM SIGNALING OPERATION, LLC",MATERIALS - NON-INVENTORY,"$4,332 ",1/31/2017
"ALSTOM SIGNALING OPERATION, LLC",MATERIALS & ASSETS - CAPITAL,"$17,355.04 ",1/31/2017
"ALSTOM SIGNALING OPERATION, LLC",MATERIALS & ASSETS - CAPITAL,"$200,692.96 ",2/1/2017
"ALSTOM SIGNALING OPERATION, LLC",MATERIALS - INVENTORY,"$4,196.20 ",2/8/2017
"ALSTOM SIGNALING OPERATION, LLC",MATERIALS - CAPITAL,"$6,120 ",2/8/2017
"ALSTOM SIGNALING OPERATION, LLC",MATERIALS - INVENTORY,"$3,366.74 ",2/13/2017
"ALSTOM SIGNALING OPERATION, LLC",MATERIALS & ASSETS - CAPITAL,"$79,429.62 ",2/14/2017
"ALSTOM SIGNALING OPERATION, LLC",CONSTRUCTION,"$487,344 ",2/21/2017
"ALSTOM SIGNALING OPERATION, LLC",CONSTRUCTION,"$372,106.08 ",2/23/2017
"ALSTOM SIGNALING OPERATION, LLC",MATERIALS - INVENTORY,"$25,122.18 ",3/6/2017
"ALSTOM SIGNALING OPERATION, LLC",CONSTRUCTION,"$1,490,464 ",3/6/2017
"ALSTOM SIGNALING OPERATION, LLC",MATERIALS - INVENTORY,"$6,528.96 ",3/13/2017
"ALSTOM SIGNALING OPERATION, LLC",MATERIALS - NON-INVENTORY,"$12,662 ",3/28/2017
"ALSTOM SIGNALING OPERATION, LLC",MATERIALS - INVENTORY,"$6,588.92 ",4/10/2017
"ALSTOM SIGNALING OPERATION, LLC",MATERIALS - NON-INVENTORY,"$16,974 ",4/10/2017
"ALSTOM SIGNALING OPERATION, LLC",MATERIALS & ASSETS - CAPITAL,"$2,084.44 ",4/12/2017
"ALSTOM SIGNALING OPERATION, LLC",MATERIALS & ASSETS - CAPITAL,"$40,608.34 ",4/13/2017
"ALSTOM SIGNALING OPERATION, LLC",OUTSIDE SERVICES,"$2,100 ",4/17/2017
"ALSTOM SIGNALING OPERATION, LLC",MATERIALS & ASSETS - CAPITAL,"$118,459.34 ",4/24/2017
"ALSTOM SIGNALING OPERATION, LLC",MATERIALS & ASSETS - CAPITAL,"$17,457.70 ",4/26/2017
"ALSTOM SIGNALING OPERATION, LLC",MATERIALS & ASSETS - CAPITAL,"$17,628.50 ",5/2/2017
"ALSTOM SIGNALING OPERATION, LLC",MATERIALS - INVENTORY,$578.86 ,5/19/2017
"ALSTOM SIGNALING OPERATION, LLC",MATERIALS - NON-INVENTORY,"$8,770 ",5/19/2017
"ALSTOM SIGNALING, INC.",CONSTRUCTION,"$31,567 ",1/24/2017
"ALSTOM SIGNALING, INC.",CONSTRUCTION,"$31,567 ",1/24/2017
"ALSTOM SIGNALING, INC.",MATERIALS - INVENTORY,"$2,203.83 ",1/31/2017
"ALSTOM SIGNALING, INC.",CONSTRUCTION,"$54,957.50 ",2/27/2017
"ALSTOM SIGNALING, INC.",MATERIALS - INVENTORY,$200.66 ,3/1/2017
"ALSTOM SIGNALING, INC.",MATERIALS - INVENTORY,"$10,077.62 ",3/14/2017
"ALSTOM SIGNALING, INC.",MATERIALS - INVENTORY,"$1,500.40 ",3/20/2017
"ALSTOM SIGNALING, INC.",MATERIALS - INVENTORY,"$4,556.30 ",3/21/2017
"ALSTOM SIGNALING, INC.",MATERIALS - INVENTORY,"$3,859.92 ",4/3/2017
"ALSTOM SIGNALING, INC.",OUTSIDE SERVICES,"$2,700 ",4/5/2017
"ALSTOM SIGNALING, INC.",CONSTRUCTION,"$42,500 ",4/11/2017
"ALSTOM SIGNALING, INC.",CONSTRUCTION,"$42,500 ",4/11/2017
"ALSTOM SIGNALING, INC.",MATERIALS - INVENTORY,"$5,956.26 ",4/13/2017
"ALSTOM SIGNALING, INC.",OUTSIDE SERVICES - CAPITAL,"$25,000 ",5/1/2017
"ALSTOM TRANSPORTATION, INC.",MATERIALS - INVENTORY,"$81,640 ",1/24/2017
"ALSTOM TRANSPORTATION, INC.",MATERIALS - INVENTORY,"$40,820 ",3/6/2017
"ALSTOM TRANSPORTATION, INC.",MATERIALS - INVENTORY,"$40,820 ",3/13/2017
"ALSTOM TRANSPORTATION, INC.",MATERIALS - INVENTORY,"$81,640 ",3/14/2017
"ALSTOM TRANSPORTATION, INC.",MATERIALS - INVENTORY,"$40,035 ",3/23/2017
"ALSTOM TRANSPORTATION, INC.",MATERIALS - INVENTORY,"$244,135 ",3/27/2017
"ALSTOM TRANSPORTATION, INC.",MATERIALS - INVENTORY,"$40,820 ",4/13/2017
"ALSTOM TRANSPORTATION, INC.",MATERIALS - INVENTORY,"$123,245 ",5/8/2017
"ALTERNATE POWER, INC.",OUTSIDE SERVICES,"$5,809.25 ",1/5/2017
"ALTERNATE POWER, INC.",OUTSIDE SERVICES,"$3,680.54 ",1/23/2017
"ALTERNATE POWER, INC.",OUTSIDE SERVICES,$961.65 ,1/30/2017
"ALTERNATE POWER, INC.",OUTSIDE SERVICES,"$1,531.02 ",1/30/2017
"ALTERNATE POWER, INC.",OUTSIDE SERVICES,"$3,693.26 ",1/30/2017
"ALTERNATE POWER, INC.",OUTSIDE SERVICES,"$2,724.32 ",3/2/2017
"ALTERNATE POWER, INC.",OUTSIDE SERVICES,"$3,117.75 ",3/13/2017
"ALVAREZ, INC.",OUTSIDE SERVICES,"$4,770 ",5/19/2017
ALYSSA M. BATTAGLIA,"EMP EXPENSE REIMB, OUT OF TOWN","$1,184.86 ",2/21/2017
ALYSSA M. BATTAGLIA,"EMP EXPENSE REIMB, OUT OF TOWN",$429.92 ,4/6/2017
AMALGAMATED BANK,OUTSIDE SERVICES,"$4,937.50 ",5/24/2017
"AMALGAMATED SERVICES, INC.",OUTSIDE SERVICES,"$4,219.89 ",1/23/2017
"AMALGAMATED SERVICES, INC.",OUTSIDE SERVICES,$412 ,1/25/2017
"AMALGAMATED SERVICES, INC.",OUTSIDE SERVICES,$960 ,2/28/2017
"AMALGAMATED SERVICES, INC.",MATERIALS - NON-INVENTORY,$468.56 ,3/2/2017
"AMALGAMATED SERVICES, INC.",OUTSIDE SERVICES,$824 ,3/2/2017
"AMALGAMATED SERVICES, INC.",MATERIALS - NON-INVENTORY,$166 ,3/9/2017
"AMALGAMATED SERVICES, INC.",OUTSIDE SERVICES,"$2,937.29 ",3/9/2017
"AMALGAMATED SERVICES, INC.",MATERIALS - NON-INVENTORY,$646.15 ,3/13/2017
"AMALGAMATED SERVICES, INC.",OUTSIDE SERVICES,$824 ,3/13/2017
"AMALGAMATED SERVICES, INC.",OUTSIDE SERVICES,$720 ,3/15/2017
"AMALGAMATED SERVICES, INC.",OUTSIDE SERVICES,"$1,338.16 ",3/27/2017
"AMALGAMATED SERVICES, INC.",MATERIALS - NON-INVENTORY,$91.52 ,3/28/2017
"AMALGAMATED SERVICES, INC.",OUTSIDE SERVICES,$824 ,3/28/2017
"AMALGAMATED SERVICES, INC.",OUTSIDE SERVICES,"$6,039.12 ",5/3/2017
"AMALGAMATED SERVICES, INC.",MATERIALS - NON-INVENTORY,$868.54 ,5/17/2017
"AMALGAMATED SERVICES, INC.",OUTSIDE SERVICES,"$2,547.11 ",5/17/2017
AMAZING EDIBLES GOURMET CATERING,MISCELLANEOUS OTHER EXPENSE,"$12,713.10 ",5/26/2017
AMERICAN ASSN.OF RAILROAD SUPERINT.,MISCELLANEOUS OTHER EXPENSE,$75 ,2/27/2017
AMERICAN BATTERY CHARGING INC.,MATERIALS - INVENTORY,$980 ,3/2/2017
AMERICAN BATTERY CHARGING INC.,MATERIALS - INVENTORY,$735 ,3/22/2017
AMERICAN BATTERY CHARGING INC.,MATERIALS - INVENTORY,"$1,694 ",5/9/2017
"AMERICAN CALIBRATION, INC.",OUTSIDE SERVICES,$632 ,1/23/2017
"AMERICAN CALIBRATION, INC.",OUTSIDE SERVICES,$584.35 ,1/23/2017
"AMERICAN CALIBRATION, INC.",OUTSIDE SERVICES,"$3,135.51 ",1/23/2017
"AMERICAN CALIBRATION, INC.",OUTSIDE SERVICES,"$3,711 ",1/23/2017
"AMERICAN CALIBRATION, INC.",OUTSIDE SERVICES,$87.20 ,1/23/2017
"AMERICAN CALIBRATION, INC.",OUTSIDE SERVICES,"$2,556.75 ",1/31/2017
"AMERICAN CALIBRATION, INC.",OUTSIDE SERVICES,"$3,993.84 ",1/31/2017
"AMERICAN CALIBRATION, INC.",MATERIALS - NON-INVENTORY,"$2,090.10 ",1/31/2017
"AMERICAN CALIBRATION, INC.",MATERIALS - NON-INVENTORY,"$1,078 ",1/31/2017
"AMERICAN CALIBRATION, INC.",OUTSIDE SERVICES,$109 ,2/15/2017
"AMERICAN CALIBRATION, INC.",OUTSIDE SERVICES,$330 ,2/21/2017
"AMERICAN CALIBRATION, INC.",OUTSIDE SERVICES,$327 ,3/2/2017
"AMERICAN CALIBRATION, INC.",OUTSIDE SERVICES,$99 ,3/14/2017
"AMERICAN CALIBRATION, INC.",OUTSIDE SERVICES,$274.60 ,3/14/2017
"AMERICAN CALIBRATION, INC.",OUTSIDE SERVICES,$163.50 ,3/21/2017
"AMERICAN CALIBRATION, INC.",OUTSIDE SERVICES,$87.20 ,4/20/2017
"AMERICAN CALIBRATION, INC.",OUTSIDE SERVICES,"$1,529.55 ",4/20/2017
"AMERICAN CALIBRATION, INC.",OUTSIDE SERVICES,$462 ,4/26/2017
"AMERICAN CALIBRATION, INC.",OUTSIDE SERVICES,$43.60 ,5/17/2017
"AMERICAN CALIBRATION, INC.",OUTSIDE SERVICES,$235.36 ,5/17/2017
"AMERICAN CALIBRATION, INC.",OUTSIDE SERVICES,$208 ,5/19/2017
"AMERICAN CALIBRATION, INC.",OUTSIDE SERVICES,"$2,018.20 ",5/19/2017
"AMERICAN CALIBRATION, INC.",OUTSIDE SERVICES,$619 ,5/19/2017
AMERICAN PLANNING ASSN.,PROFESSIONAL SERVICES,$344 ,1/17/2017
AMERICAN PLANNING ASSN.,MISCELLANEOUS OTHER EXPENSE,$644 ,2/13/2017
AMERICAN PUBLIC TRANSPORTATION ASS,PROFESSIONAL SERVICES,$600 ,1/5/2017
AMERICAN PUBLIC TRANSPORTATION ASS,PROFESSIONAL SERVICES,$850 ,1/31/2017
AMERICAN PUBLIC TRANSPORTATION ASS,PROFESSIONAL SERVICES,$900 ,2/6/2017
AMERICAN PUBLIC TRANSPORTATION ASS,MISCELLANEOUS OTHER EXPENSE,$900 ,2/6/2017
AMERICAN PUBLIC TRANSPORTATION ASS,MISCELLANEOUS OTHER EXPENSE,$900 ,2/6/2017
AMERICAN PUBLIC TRANSPORTATION ASS,PROFESSIONAL SERVICES,$50 ,2/13/2017
AMERICAN PUBLIC TRANSPORTATION ASS,MISCELLANEOUS OTHER EXPENSE,"$1,100 ",2/21/2017
AMERICAN PUBLIC TRANSPORTATION ASS,MISCELLANEOUS OTHER EXPENSE,$550 ,2/23/2017
AMERICAN PUBLIC TRANSPORTATION ASS,PROFESSIONAL SERVICES,$550 ,3/6/2017
AMERICAN PUBLIC TRANSPORTATION ASS,PROFESSIONAL SERVICES,$600 ,3/13/2017
AMERICAN PUBLIC TRANSPORTATION ASS,MISCELLANEOUS OTHER EXPENSE,$144 ,4/20/2017
AMERICAN PUBLIC TRANSPORTATION ASS,MISCELLANEOUS OTHER EXPENSE,"$1,650 ",4/25/2017
AMERICAN PUBLIC TRANSPORTATION ASS,MISCELLANEOUS OTHER EXPENSE,$436.50 ,5/24/2017
"AMERICAN RECYCLING & DISPOSAL, INC.",MATERIALS - CAPITAL,"$21,839.83 ",1/23/2017
"AMERICAN RECYCLING & DISPOSAL, INC.",OUTSIDE SERVICES,"$19,757.06 ",5/8/2017
"AMERICAN RECYCLING & DISPOSAL, INC.",MATERIALS - CAPITAL,"$6,960.23 ",5/19/2017
"AMERICAN RECYCLING & DISPOSAL, INC.",OUTSIDE SERVICES - CAPITAL,"$5,986.15 ",5/19/2017
AMERICAN SOLUTIONS FOR BUSINESS,OUTSIDE SERVICES,$400 ,1/5/2017
AMERICAN SOLUTIONS FOR BUSINESS,OUTSIDE SERVICES,"$25,128.50 ",1/17/2017
AMERICAN SOLUTIONS FOR BUSINESS,OUTSIDE SERVICES,"$19,063 ",3/28/2017
AMERICAN SOLUTIONS FOR BUSINESS,OUTSIDE SERVICES,"$30,750 ",4/4/2017
AMERICAN SOLUTIONS FOR BUSINESS,MATERIALS - NON-INVENTORY,"$1,445.95 ",4/26/2017
AMERICAN SOLUTIONS FOR BUSINESS,MATERIALS - NON-INVENTORY,"$2,538.20 ",5/9/2017
AMERICAN SOLUTIONS FOR BUSINESS,OUTSIDE SERVICES,"$15,597 ",5/9/2017
AMERICAN SOLUTIONS FOR BUSINESS,MATERIALS & ASSETS - CAPITAL,"$27,760 ",5/16/2017
AMERICAN SOLUTIONS FOR BUSINESS,MATERIALS - NON-INVENTORY,"$1,348.60 ",5/19/2017
AMERICAN WELDING & GAS,MATERIALS - NON-INVENTORY,"$4,666.64 ",1/19/2017
AMERIGAS,MATERIALS - NON-INVENTORY,$253.20 ,1/5/2017
AMERIGAS,MATERIALS - NON-INVENTORY,"$1,507.55 ",1/5/2017
AMERIGAS,MATERIALS - NON-INVENTORY,"$3,250.21 ",1/17/2017
AMERIGAS,MATERIALS - NON-INVENTORY,$692.98 ,1/23/2017
AMERIGAS,MATERIALS - NON-INVENTORY,"$2,069.15 ",1/24/2017
AMERIGAS,MATERIALS - NON-INVENTORY,$721.04 ,1/25/2017
AMERIGAS,MATERIALS - NON-INVENTORY,$176.38 ,2/14/2017
AMERIGAS,MATERIALS - NON-INVENTORY,"$1,914.05 ",2/14/2017
AMERIGAS,MATERIALS - NON-INVENTORY,$363.72 ,2/21/2017
AMERIGAS,MATERIALS - NON-INVENTORY,"$1,746.64 ",3/1/2017
AMERIGAS,MATERIALS - NON-INVENTORY,$45.53 ,3/13/2017
AMERIGAS,MATERIALS - NON-INVENTORY,$191.53 ,3/13/2017
AMERIGAS,MATERIALS - NON-INVENTORY,$730.30 ,3/13/2017
AMERIGAS,MATERIALS - NON-INVENTORY,$347.27 ,3/15/2017
AMERIGAS,MATERIALS - NON-INVENTORY,$169.24 ,3/20/2017
AMERIGAS,MATERIALS - NON-INVENTORY,"$1,276.50 ",3/30/2017
AMERIGAS,MATERIALS - NON-INVENTORY,$137.17 ,4/3/2017
AMERIGAS,MATERIALS - NON-INVENTORY,$184.67 ,4/3/2017
AMERIGAS,MATERIALS - NON-INVENTORY,"$1,331.41 ",4/5/2017
AMERIGAS,MATERIALS - NON-INVENTORY,$319.74 ,4/13/2017
AMERIGAS,MATERIALS - NON-INVENTORY,$645.67 ,4/26/2017
AMERIGAS,MATERIALS - NON-INVENTORY,$159.97 ,5/8/2017
AMERIGAS,MATERIALS - NON-INVENTORY,$383.03 ,5/8/2017
AMERIGAS,MATERIALS - NON-INVENTORY,$137.17 ,5/18/2017
AMJ SPECTACULAR EVENTS,MISCELLANEOUS OTHER EXPENSE,"$2,092.50 ",5/26/2017
ANALYTIC SYSTEMS,MATERIALS & ASSETS - CAPITAL,"$20,970 ",2/28/2017
"ANALYTIC SYSTEMS WARE (1993), LTD.",OUTSIDE SERVICES,"$2,040 ",1/17/2017
"ANALYTIC SYSTEMS WARE (1993), LTD.",OUTSIDE SERVICES,"$1,630 ",1/31/2017
"ANALYTIC SYSTEMS WARE (1993), LTD.",MATERIALS - INVENTORY,"$20,860 ",3/27/2017
"ANALYTIC SYSTEMS WARE (1993), LTD.",MATERIALS - INVENTORY,"$12,516 ",4/10/2017
"ANALYTIC SYSTEMS WARE (1993), LTD.",MATERIALS - NON-INVENTORY,"$41,720 ",4/10/2017
"ANALYTIC SYSTEMS WARE (1993), LTD.",MATERIALS - INVENTORY,"$20,860 ",4/26/2017
ANCHOR BRAKE SHOE CO.,MATERIALS - INVENTORY,"$33,545.16 ",1/24/2017
ANCHOR BRAKE SHOE CO.,MATERIALS - INVENTORY,"$17,089.20 ",2/15/2017
ANCHOR BRAKE SHOE CO.,MATERIALS - INVENTORY,"$26,605.44 ",2/21/2017
ANCHOR BRAKE SHOE CO.,MATERIALS - INVENTORY,"$19,440 ",2/27/2017
ANCHOR BRAKE SHOE CO.,MATERIALS - INVENTORY,"$8,773.38 ",3/6/2017
ANCHOR BRAKE SHOE CO.,MATERIALS - INVENTORY,"$2,924.46 ",3/7/2017
ANCHOR BRAKE SHOE CO.,MATERIALS - INVENTORY,"$7,999.20 ",3/30/2017
ANCHOR BRAKE SHOE CO.,MATERIALS - INVENTORY,"$11,998.80 ",4/5/2017
ANCHOR BRAKE SHOE CO.,MATERIALS - INVENTORY,"$35,394.48 ",4/26/2017
ANCHOR BRAKE SHOE CO.,MATERIALS - INVENTORY,"$7,999.20 ",5/9/2017
ANCHOR BRAKE SHOE CO.,MATERIALS - INVENTORY,"$23,997.60 ",5/19/2017
ANDERSON LOCK CO.,MATERIALS - NON-INVENTORY,$324.45 ,2/13/2017
ANDERSON LOCK CO.,MATERIALS - INVENTORY,$347.22 ,2/21/2017
ANDERSON LOCK CO.,MATERIALS - NON-INVENTORY,$931.35 ,2/21/2017
ANDERSON LOCK CO.,MATERIALS - INVENTORY,"$1,985.88 ",2/28/2017
ANDERSON LOCK CO.,MATERIALS - NON-INVENTORY,"$6,150 ",4/26/2017
ANDRE HUNT,"EMP EXPENSE REIMB, OUT OF TOWN",$776.02 ,5/1/2017
ANDRE HUNT,"EMP EXPENSE REIMB, OUT OF TOWN",$726.30 ,5/26/2017
ANDRE O. MOORE,"EMP EXPENSE REIMB, LOCAL",$159.84 ,1/24/2017
ANDRE O. MOORE,"EMP EXPENSE REIMB, LOCAL",$237.54 ,2/21/2017
ANDRE O. MOORE,"EMP EXPENSE REIMB, LOCAL",$158.36 ,4/25/2017
ANDRE O. MOORE,"EMP EXPENSE REIMB, LOCAL",$158.36 ,5/25/2017
ANDRE R. FELICIANO,"EMP EXPENSE REIMB, LOCAL",$77.76 ,1/23/2017
ANDRE R. FELICIANO,"EMP EXPENSE REIMB, LOCAL",$42.80 ,2/23/2017
ANDRE R. FELICIANO,"EMP EXPENSE REIMB, LOCAL",$34.24 ,3/22/2017
ANDRE R. FELICIANO,"EMP EXPENSE REIMB, LOCAL",$205.44 ,4/19/2017
ANDRE R. FELICIANO,"EMP EXPENSE REIMB, LOCAL",$11.77 ,5/24/2017
ANDREA CLARK,"EMP EXPENSE REIMB, LOCAL",$199.02 ,5/23/2017
ANDREA J BROWN,"EMP EXPENSE REIMB, LOCAL",$90.72 ,1/23/2017
ANDREA J BROWN,"EMP EXPENSE REIMB, LOCAL",$89.88 ,2/27/2017
ANDREA J BROWN,"EMP EXPENSE REIMB, LOCAL",$89.88 ,3/21/2017
ANDREA J BROWN,"EMP EXPENSE REIMB, LOCAL",$89.88 ,4/26/2017
ANDREA J BROWN,"EMP EXPENSE REIMB, LOCAL",$89.88 ,5/25/2017
ANDREW BRASHLER,"EMP EXPENSE REIMB, LOCAL",$42.87 ,3/1/2017
ANDREW BRASHLER,"EMP EXPENSE REIMB, LOCAL",$20.42 ,4/25/2017
ANDREW L. TAYLOR,"EMP EXPENSE REIMB, LOCAL",$225.56 ,5/9/2017
ANITA ORTEGA,"EMP EXPENSE REIMB, LOCAL",$22.68 ,1/24/2017
ANITA ORTEGA,"EMP EXPENSE REIMB, LOCAL",$141.24 ,3/30/2017
ANITA ORTEGA,"EMP EXPENSE REIMB, LOCAL",$79.18 ,5/23/2017
"ANIXTER, INC.",MATERIALS - NON-INVENTORY,"$7,061.81 ",2/13/2017
"ANIXTER, INC.",MATERIALS - NON-INVENTORY,"$18,817.23 ",2/15/2017
"ANIXTER, INC.",MATERIALS - NON-INVENTORY,"$23,127.37 ",3/2/2017
ANOTHONY MANELLA,"EMP EXPENSE REIMB, LOCAL",$442.98 ,4/6/2017
"ANSALDO STS USA, INC.",MATERIALS - NON-INVENTORY,"$24,551.10 ",4/3/2017
"ANSALDO STS USA, INC.",MATERIALS - NON-INVENTORY,"$92,770 ",5/19/2017
ANTHONY ADAMS,"EMP EXPENSE REIMB, LOCAL",$166.32 ,1/24/2017
ANTHONY ADAMS,"EMP EXPENSE REIMB, LOCAL",$134.82 ,3/23/2017
ANTHONY E. JONES,"EMP EXPENSE REIMB, LOCAL",$126.42 ,1/3/2017
ANTHONY E. JONES,"EMP EXPENSE REIMB, LOCAL",$68.04 ,1/19/2017
ANTHONY E. JONES,"EMP EXPENSE REIMB, LOCAL",$143.08 ,2/27/2017
ANTHONY E. JONES,"EMP EXPENSE REIMB, LOCAL",$44.94 ,4/10/2017
ANTHONY E. JONES,"EMP EXPENSE REIMB, LOCAL",$79.18 ,5/23/2017
ANTHONY K. YOUNG,"EMP EXPENSE REIMB, LOCAL",$90.72 ,1/3/2017
ANTHONY K. YOUNG,"EMP EXPENSE REIMB, LOCAL",$45.36 ,1/24/2017
ANTHONY K. YOUNG,"EMP EXPENSE REIMB, LOCAL",$67.41 ,2/27/2017
ANTHONY K. YOUNG,"EMP EXPENSE REIMB, LOCAL",$89.88 ,4/5/2017
ANTHONY K. YOUNG,"EMP EXPENSE REIMB, LOCAL",$89.88 ,4/25/2017
ANTHONY K. YOUNG,"EMP EXPENSE REIMB, LOCAL",$89.88 ,5/24/2017
ANTHONY M CRUCIANI,"EMP EXPENSE REIMB, LOCAL",$71.28 ,1/18/2017
ANTHONY MOORE,"EMP EXPENSE REIMB, LOCAL",$70.62 ,3/20/2017
ANTHONY SCHAEFLEIN,"EMP EXPENSE REIMB, LOCAL",$149.26 ,1/24/2017
ANTHONY SCHAEFLEIN,"EMP EXPENSE REIMB, LOCAL",$149.71 ,2/27/2017
ANTHONY SCHAEFLEIN,"EMP EXPENSE REIMB, LOCAL",$150.29 ,5/9/2017
ANTOINE HAYNES,"EMP EXPENSE REIMB, LOCAL",$103.68 ,1/9/2017
ANTOINE HAYNES,"EMP EXPENSE REIMB, LOCAL",$214.38 ,1/23/2017
ANTOINE HAYNES,"EMP EXPENSE REIMB, LOCAL",$257.87 ,2/27/2017
ANTOINE HAYNES,"EMP EXPENSE REIMB, LOCAL",$240.75 ,3/23/2017
ANTOINE HAYNES,"EMP EXPENSE REIMB, LOCAL",$92.02 ,4/19/2017
ANTONIO MIESZANEK,"EMP EXPENSE REIMB, LOCAL",$390.33 ,3/30/2017
ANTWAN J. POTTS,"EMP EXPENSE REIMB, LOCAL",$39.59 ,4/3/2017
ANTWAN J. POTTS,"EMP EXPENSE REIMB, LOCAL",$153.01 ,5/26/2017
"AON RISK SERVICES, INC. OF MARYLAND",PROFESSIONAL SERVICES,"$12,851 ",4/13/2017
"AON RISK SERVICES, INC. OF MARYLAND",PROFESSIONAL SERVICES,"$72,000 ",4/27/2017
APA-CHICAGO METRO SECTION C/O,PROFESSIONAL SERVICES,$30 ,1/11/2017
APPLICATIONS SOFTWARE TECH. CORP.,MATERIALS & ASSETS - CAPITAL,"$61,050 ",4/10/2017
APPLIED INDUSTRIAL TECHNOLOGIES,MATERIALS - INVENTORY,$863.68 ,1/24/2017
APPLIED INDUSTRIAL TECHNOLOGIES,MATERIALS - INVENTORY,$107.96 ,4/20/2017
AQUA COOLERS,RENTAL EXPENSE,$855 ,1/24/2017
AQUA COOLERS,RENTAL EXPENSE,$877.50 ,3/1/2017
AQUA COOLERS,MISCELLANEOUS OTHER EXPENSE,$877.50 ,4/10/2017
AQUA COOLERS,MISCELLANEOUS OTHER EXPENSE,"$1,755 ",5/9/2017
AQUA ILLINOIS,UTILITIES,$56.43 ,1/9/2017
AQUA ILLINOIS,UTILITIES,$53.95 ,2/7/2017
AQUA ILLINOIS,UTILITIES,$55.85 ,3/9/2017
AQUA ILLINOIS,UTILITIES,$54.34 ,4/5/2017
AQUA ILLINOIS,UTILITIES,$55.10 ,5/8/2017
ARC DOCUMENT SOLUTIONS LLC,OUTSIDE SERVICES,$498 ,1/31/2017
ARC DOCUMENT SOLUTIONS LLC,MATERIALS - NON-INVENTORY,"$1,383.56 ",4/26/2017
ARC DOCUMENT SOLUTIONS LLC,OUTSIDE SERVICES,$693 ,5/1/2017
ARC DOCUMENT SOLUTIONS LLC,MATERIALS - NON-INVENTORY,$831.52 ,5/8/2017
ARC DOCUMENT SOLUTIONS LLC,OUTSIDE SERVICES,$195 ,5/19/2017
"ARCADIS US, INC.",PROFESSIONAL SERVICES,"$21,277.81 ",3/1/2017
AREMA,MISCELLANEOUS OTHER EXPENSE,$174 ,1/30/2017
ARLINGTON PARK RACECOURSE LLC,RENTAL EXPENSE,"$19,843.76 ",1/23/2017
ARLINGTON PARK RACECOURSE LLC,RENTAL EXPENSE,"$19,843.76 ",2/22/2017
ARLINGTON PARK RACECOURSE LLC,RENTAL EXPENSE,"$19,843.76 ",3/22/2017
ARLINGTON PARK RACECOURSE LLC,RENTAL EXPENSE,"$19,843.76 ",4/24/2017
ARLINGTON PARK RACECOURSE LLC,RENTAL EXPENSE,"$19,843.76 ",5/22/2017
ARLINGTON RESOURCES,MISCELLANEOUS OTHER EXPENSE,"$14,098.50 ",1/23/2017
ARLINGTON RESOURCES,MISCELLANEOUS OTHER EXPENSE,"$1,776 ",1/31/2017
ARLINGTON RESOURCES,MISCELLANEOUS OTHER EXPENSE,"$2,331 ",2/6/2017
ARLINGTON RESOURCES,MISCELLANEOUS OTHER EXPENSE,"$5,679.50 ",3/6/2017
ARLINGTON RESOURCES,MISCELLANEOUS OTHER EXPENSE,"$13,338.50 ",3/20/2017
ARLINGTON RESOURCES,MISCELLANEOUS OTHER EXPENSE,"$6,919 ",3/27/2017
ARLINGTON RESOURCES,MISCELLANEOUS OTHER EXPENSE,"$7,141 ",4/10/2017
ARLINGTON RESOURCES,MISCELLANEOUS OTHER EXPENSE,"$3,792.50 ",4/20/2017
ARLINGTON RESOURCES,MISCELLANEOUS OTHER EXPENSE,"$9,962.25 ",5/17/2017
ARLINGTON RESOURCES,MISCELLANEOUS OTHER EXPENSE,"$10,267.50 ",5/19/2017
ARMA,PROFESSIONAL SERVICES,$35 ,1/10/2017
ARMA,MISCELLANEOUS OTHER EXPENSE,$50 ,2/13/2017
ARMA,PROFESSIONAL SERVICES,$135 ,4/25/2017
ARMA INTERNATIONAL DEPT. 999239,PROFESSIONAL SERVICES,$225 ,1/10/2017
ARNOLD MAXEY,"EMP EXPENSE REIMB, LOCAL",$180.83 ,2/14/2017
ARNOLD MAXEY,"EMP EXPENSE REIMB, LOCAL",$246.83 ,3/9/2017
ARNOLD MAXEY,"EMP EXPENSE REIMB, LOCAL",$562.49 ,3/30/2017
ARNOLD MAXEY,"EMP EXPENSE REIMB, LOCAL",$306.02 ,5/4/2017
ARNOLD MAXEY,"EMP EXPENSE REIMB, LOCAL",$651.21 ,5/10/2017
ARTHUR E. ALEXANDER,"EMP EXPENSE REIMB, LOCAL",$119.88 ,1/24/2017
ARTURO J MOTA,"EMP EXPENSE REIMB, LOCAL",$49.83 ,1/19/2017
ARTURO J MOTA,"EMP EXPENSE REIMB, LOCAL",$69.39 ,2/14/2017
ARTURO J MOTA,"EMP EXPENSE REIMB, LOCAL",$41.25 ,3/20/2017
"ASAS/TYSOL, INC.",MATERIALS - INVENTORY,"$3,240 ",4/26/2017
ASCENDO RESOURCES LLC,MATERIALS & ASSETS - CAPITAL,"$5,200 ",1/10/2017
ASCENDO RESOURCES LLC,MATERIALS & ASSETS - CAPITAL,"$1,600 ",1/17/2017
ASCENDO RESOURCES LLC,MATERIALS & ASSETS - CAPITAL,"$2,000 ",1/24/2017
ASCENDO RESOURCES LLC,MATERIALS & ASSETS - CAPITAL,"$46,791.50 ",4/18/2017
ASCENDO RESOURCES LLC,MATERIALS & ASSETS - CAPITAL,"$2,160 ",4/26/2017
ASCENDO RESOURCES LLC,MATERIALS & ASSETS - CAPITAL,"$1,080 ",5/16/2017
ASCENDO RESOURCES LLC,MATERIALS & ASSETS - CAPITAL,"$1,080 ",5/17/2017
ASCENDO RESOURCES LLC,MATERIALS & ASSETS - CAPITAL,"$4,266 ",5/18/2017
ASIS INTERNATIONAL,MISCELLANEOUS OTHER EXPENSE,$195 ,2/6/2017
ASPLUNDH TREE EXPERT CO. (RR DIV.),OUTSIDE SERVICES,"$12,725.91 ",1/24/2017
ASSN. FOR FINANCIAL PROFESSIONALS,MISCELLANEOUS OTHER EXPENSE,$885 ,1/17/2017
ASSN. OF AMERICAN RAILROADS,MISCELLANEOUS OTHER EXPENSE,"$4,641 ",1/10/2017
ASSN. OF AMERICAN RAILROADS,MISCELLANEOUS OTHER EXPENSE,"$4,641 ",1/31/2017
ASSN. OF AMERICAN RAILROADS,MISCELLANEOUS OTHER EXPENSE,"$4,641 ",3/2/2017
ASSN. OF AMERICAN RAILROADS,OUTSIDE SERVICES,"$11,607.14 ",3/7/2017
ASSN. OF AMERICAN RAILROADS,MISCELLANEOUS OTHER EXPENSE,"$4,641 ",4/10/2017
ASSN. OF AMERICAN RAILROADS,OUTSIDE SERVICES,"$11,607.14 ",4/12/2017
ASSN. OF AMERICAN RAILROADS,MISCELLANEOUS OTHER EXPENSE,"$4,641 ",4/27/2017
ASSOC. FOR FINANCIAL PROFESSIONAL,MISCELLANEOUS OTHER EXPENSE,"$1,000 ",3/20/2017
AT & T,UTILITIES,"$21,968.05 ",1/4/2017
AT & T,UTILITIES,$65.90 ,1/4/2017
AT & T,UTILITIES,$620.80 ,1/9/2017
AT & T,UTILITIES,$620.80 ,1/9/2017
AT & T,UTILITIES,"$1,283.80 ",1/9/2017
AT & T,UTILITIES,$540.02 ,1/19/2017
AT & T,UTILITIES,$620.80 ,1/24/2017
AT & T,UTILITIES,"$14,277.15 ",1/24/2017
AT & T,UTILITIES,"$7,690.90 ",2/2/2017
AT & T,UTILITIES,"$1,283.80 ",2/2/2017
AT & T,UTILITIES,$65.90 ,2/2/2017
AT & T,UTILITIES,$620.80 ,2/9/2017
AT & T,UTILITIES,$623.28 ,2/27/2017
AT & T,UTILITIES,$540.02 ,2/27/2017
AT & T,UTILITIES,$65.90 ,3/7/2017
AT & T,UTILITIES,$620.80 ,3/9/2017
AT & T,UTILITIES,"$1,283.80 ",3/9/2017
AT & T,UTILITIES,"$7,690.90 ",3/9/2017
AT & T,UTILITIES,$540.02 ,3/23/2017
AT & T,UTILITIES,$620.80 ,3/27/2017
AT & T,UTILITIES,"$1,283.80 ",3/28/2017
AT & T,UTILITIES,"$7,690.90 ",3/28/2017
AT & T,UTILITIES,$65.90 ,3/28/2017
AT & T,UTILITIES,$620.80 ,4/5/2017
AT & T,UTILITIES,$540.02 ,4/24/2017
AT & T,UTILITIES,$161.29 ,4/24/2017
AT & T,UTILITIES,"$1,283.80 ",5/8/2017
AT & T,UTILITIES,"$7,690.90 ",5/8/2017
AT & T,UTILITIES,$620.80 ,5/8/2017
AT & T,UTILITIES,$65.90 ,5/8/2017
AT & T,UTILITIES,"$1,241.60 ",5/18/2017
AT & T,UTILITIES,$540.02 ,5/18/2017
AT & T,UTILITIES,"$1,283.80 ",5/24/2017
AT & T,UTILITIES,"$7,690.90 ",5/24/2017
AT & T,UTILITIES,$65.90 ,5/26/2017
AT & T MOBILITY,UTILITIES,$220.17 ,1/9/2017
AT & T MOBILITY,UTILITIES,$172.42 ,1/24/2017
AT & T MOBILITY,UTILITIES,$166.57 ,2/27/2017
AT & T MOBILITY,UTILITIES,$162.49 ,3/23/2017
AT & T MOBILITY,UTILITIES,$157.96 ,5/24/2017
AT&T,UTILITIES,"$1,211.66 ",1/18/2017
AT&T,UTILITIES,"$36,985.88 ",1/18/2017
AT&T,OUTSIDE SERVICES,$611.76 ,1/30/2017
AT&T,UTILITIES,"$1,366.75 ",2/21/2017
AT&T,UTILITIES,"$37,760.88 ",2/21/2017
AT&T,UTILITIES,"$91,019.21 ",3/20/2017
AT&T,UTILITIES,"$1,306.33 ",3/22/2017
AT&T,UTILITIES,"$1,455.41 ",4/20/2017
AT&T,UTILITIES,"$85,362.30 ",4/20/2017
AT&T,UTILITIES,"$47,893.77 ",5/10/2017
AT&T,UTILITIES,"$1,364.98 ",5/18/2017
AT&T MOBILITY - CC,MATERIALS - NON-INVENTORY,"$2,297.44 ",1/9/2017
AT&T MOBILITY - CC,UTILITIES,"$3,420 ",1/9/2017
AT&T MOBILITY - CC,MATERIALS - NON-INVENTORY,$13.48 ,2/2/2017
AT&T MOBILITY - CC,UTILITIES,"$3,420 ",2/2/2017
AT&T MOBILITY - CC,UTILITIES,"$3,420 ",3/9/2017
AT&T MOBILITY - CC,MATERIALS - NON-INVENTORY,$90.93 ,3/9/2017
AT&T MOBILITY - CC,UTILITIES,"$3,420 ",4/10/2017
AT&T MOBILITY - CC,MATERIALS - NON-INVENTORY,$214.79 ,4/10/2017
AT&T MOBILITY - CC,UTILITIES,"$3,420 ",5/8/2017
AT&T MOBILITY - CC,MATERIALS - NON-INVENTORY,$440.55 ,5/8/2017
ATLANTIC TRACK & TURNOUT CO.,MATERIALS - INVENTORY,"$32,948.40 ",1/25/2017
ATLANTIC TRACK & TURNOUT CO.,MATERIALS - INVENTORY,"$10,782.80 ",4/3/2017
ATLAS TOYOTA MATERIAL,PROFESSIONAL SERVICES,"$3,000 ",3/29/2017
"ATLAS TOYOTA MATERIAL HANDLING, LLC",MATERIALS & ASSETS - CAPITAL,"$171,138 ",2/28/2017
ATLAS/FIRST ACCESS,OUTSIDE SERVICES,"$1,555.42 ",1/17/2017
ATLAS/FIRST ACCESS,OUTSIDE SERVICES,$735.50 ,1/23/2017
ATLAS/FIRST ACCESS,OUTSIDE SERVICES,$202.50 ,1/30/2017
ATLAS/FIRST ACCESS,OUTSIDE SERVICES,"$1,582.21 ",2/21/2017
ATLAS/FIRST ACCESS,OUTSIDE SERVICES,"$1,901 ",2/27/2017
ATLAS/FIRST ACCESS,OUTSIDE SERVICES,"$1,015.91 ",3/1/2017
ATLAS/FIRST ACCESS,MATERIALS - INVENTORY,$878.32 ,3/2/2017
ATLAS/FIRST ACCESS,OUTSIDE SERVICES,$427.50 ,3/6/2017
ATLAS/FIRST ACCESS,MATERIALS - INVENTORY,$180 ,3/13/2017
ATLAS/FIRST ACCESS,OUTSIDE SERVICES,$225 ,3/13/2017
ATLAS/FIRST ACCESS,OUTSIDE SERVICES,"$3,636.65 ",3/27/2017
ATLAS/FIRST ACCESS,OUTSIDE SERVICES,$992.43 ,3/30/2017
ATLAS/FIRST ACCESS,OUTSIDE SERVICES,$461.93 ,4/5/2017
ATLAS/FIRST ACCESS,OUTSIDE SERVICES,"$1,025.59 ",4/25/2017
ATLAS/FIRST ACCESS,OUTSIDE SERVICES,"$1,183.84 ",4/26/2017
ATLAS/FIRST ACCESS,OUTSIDE SERVICES,$435 ,5/3/2017
ATLAS/FIRST ACCESS,OUTSIDE SERVICES,"$1,576.50 ",5/8/2017
ATLAS/FIRST ACCESS,OUTSIDE SERVICES,"$2,253.68 ",5/17/2017
ATLAS/FIRST ACCESS,OUTSIDE SERVICES,"$2,452.25 ",5/19/2017
ATTORNEY REGISTRATION &,MISCELLANEOUS OTHER EXPENSE,$385 ,2/8/2017
AUBURN METROLOGY LAB (AML),OUTSIDE SERVICES,$676.68 ,4/26/2017
AUBURN METROLOGY LAB (AML),OUTSIDE SERVICES,$457.28 ,5/19/2017
AUTOMATED RAILROAD MNTCE. SYSTEMS,MATERIALS & ASSETS - CAPITAL,"$81,638.82 ",4/13/2017
AVERSON R. CHANDLER,"EMP EXPENSE REIMB, LOCAL",$303.07 ,1/23/2017
AVERSON R. CHANDLER,"EMP EXPENSE REIMB, LOCAL",$322.37 ,3/1/2017
AVERSON R. CHANDLER,"EMP EXPENSE REIMB, LOCAL",$282.07 ,3/20/2017
AVERSON R. CHANDLER,"EMP EXPENSE REIMB, LOCAL",$100.74 ,4/27/2017
AVERSON R. CHANDLER,"EMP EXPENSE REIMB, LOCAL",$74.18 ,5/23/2017
AZURA INVESTIGATIONS LLC,MISCELLANEOUS OTHER EXPENSE,$972.45 ,1/5/2017
AZURA INVESTIGATIONS LLC,MISCELLANEOUS OTHER EXPENSE,"$1,381 ",1/19/2017
AZURA INVESTIGATIONS LLC,MISCELLANEOUS OTHER EXPENSE,$703 ,3/1/2017
AZURA INVESTIGATIONS LLC,MISCELLANEOUS OTHER EXPENSE,"$1,192.50 ",4/10/2017
AZURA INVESTIGATIONS LLC,MISCELLANEOUS OTHER EXPENSE,"$1,186.50 ",4/27/2017
BACH-SIMPSON,MATERIALS - INVENTORY,$255 ,1/5/2017
BACH-SIMPSON,OUTSIDE SERVICES,$395 ,1/5/2017
BACH-SIMPSON,MATERIALS - INVENTORY,"$5,587 ",1/24/2017
BACH-SIMPSON,MATERIALS - NON-INVENTORY,"$1,850 ",1/24/2017
BACH-SIMPSON,OUTSIDE SERVICES,"$3,670 ",1/24/2017
BACH-SIMPSON,MATERIALS & ASSETS - CAPITAL,"$4,600 ",1/24/2017
BACH-SIMPSON,MATERIALS & ASSETS - CAPITAL,"$195,080 ",1/31/2017
BACH-SIMPSON,MATERIALS & ASSETS - CAPITAL,"$93,630 ",1/31/2017
BACH-SIMPSON,MATERIALS & ASSETS - CAPITAL,"$3,680 ",2/1/2017
BACH-SIMPSON,MATERIALS & ASSETS - CAPITAL,$920 ,2/8/2017
BACH-SIMPSON,MATERIALS - INVENTORY,"$4,344 ",2/14/2017
BACH-SIMPSON,OUTSIDE SERVICES,$350 ,2/14/2017
BACH-SIMPSON,MATERIALS & ASSETS - CAPITAL,"$2,760 ",2/21/2017
BACH-SIMPSON,MATERIALS & ASSETS - CAPITAL,$920 ,2/22/2017
BACH-SIMPSON,OUTSIDE SERVICES,"$1,190 ",2/27/2017
BACH-SIMPSON,MATERIALS - INVENTORY,"$12,442 ",2/28/2017
BACH-SIMPSON,OUTSIDE SERVICES,$790 ,3/1/2017
BACH-SIMPSON,MATERIALS & ASSETS - CAPITAL,"$1,840 ",3/7/2017
BACH-SIMPSON,MATERIALS & ASSETS - CAPITAL,"$1,840 ",3/8/2017
BACH-SIMPSON,MATERIALS - INVENTORY,$925 ,3/14/2017
BACH-SIMPSON,MATERIALS - INVENTORY,$695 ,3/21/2017
BACH-SIMPSON,MATERIALS - INVENTORY,"$7,741 ",3/27/2017
BACH-SIMPSON,MATERIALS & ASSETS - CAPITAL,$920 ,3/30/2017
BACH-SIMPSON,MATERIALS - INVENTORY,"$10,085 ",4/3/2017
BACH-SIMPSON,OUTSIDE SERVICES,$695 ,4/10/2017
BACH-SIMPSON,MATERIALS - INVENTORY,$555 ,4/13/2017
BACH-SIMPSON,OUTSIDE SERVICES,$595 ,5/3/2017
BACH-SIMPSON,MATERIALS - INVENTORY,"$4,375 ",5/9/2017
BACH-SIMPSON,MATERIALS & ASSETS - CAPITAL,"$6,440 ",5/16/2017
BACH-SIMPSON,MATERIALS - INVENTORY,"$2,598 ",5/18/2017
BACH-SIMPSON,OUTSIDE SERVICES,$595 ,5/19/2017
"BALCO, INC.",MATERIALS - NON-INVENTORY,"$2,655 ",4/27/2017
"BALLAST TOOLS, INC.",MATERIALS - INVENTORY,"$6,128 ",1/5/2017
"BALLAST TOOLS, INC.",MATERIALS - INVENTORY,$678 ,3/2/2017
"BALLAST TOOLS, INC.",MATERIALS - INVENTORY,"$5,472 ",3/20/2017
"BALLAST TOOLS, INC.",MATERIALS - INVENTORY,"$7,364 ",5/19/2017
BANK OF AMERICA,MISCELLANEOUS OTHER EXPENSE,"$14,301.71 ",3/13/2017
BANK OF AMERICA,MISCELLANEOUS OTHER EXPENSE,"$18,499.48 ",4/10/2017
BARBARA J. BUHAI,"EMP EXPENSE REIMB, LOCAL",$11 ,3/23/2017
BARBARA J. BUHAI,"EMP EXPENSE REIMB, LOCAL",$35 ,4/10/2017
BARBARA J. BUHAI,"EMP EXPENSE REIMB, LOCAL",$30 ,4/13/2017
BARBER SPRING CO.,MATERIALS - INVENTORY,$674.42 ,2/13/2017
BARBER SPRING CO.,MATERIALS - INVENTORY,"$2,134.74 ",4/3/2017
BARBER SPRING CO.,MATERIALS - INVENTORY,"$1,286.48 ",4/5/2017
BARBER SPRING CO.,MATERIALS - INVENTORY,"$2,416.72 ",4/26/2017
BARBER SPRING CO.,MATERIALS - INVENTORY,"$6,409.60 ",5/9/2017
BARBER SPRING CO.,MATERIALS - INVENTORY,$906.27 ,5/19/2017
"BBA PROJECT, INC.",MATERIALS & ASSETS - CAPITAL,"$204,460.95 ",1/17/2017
"BBA PROJECT, INC.",MATERIALS & ASSETS - CAPITAL,"$37,940 ",3/13/2017
"BBA PROJECT, INC.",MATERIALS - INVENTORY,"$1,277.20 ",3/28/2017
"BBA PROJECT, INC.",MATERIALS - INVENTORY,"$5,422.20 ",4/3/2017
"BBA PROJECT, INC.",MATERIALS & ASSETS - CAPITAL,"$3,086.10 ",5/2/2017
BEBON OFFICE MACHINES CO.,OUTSIDE SERVICES,$170 ,1/24/2017
BEBON OFFICE MACHINES CO.,OUTSIDE SERVICES,$170 ,3/2/2017
BELISH SRAIEB,"EMP EXPENSE REIMB, LOCAL",$86.67 ,5/24/2017
BELLWOOD ELECTRIC MOTORS INC.,MATERIALS & ASSETS - CAPITAL,"$3,200 ",1/9/2017
BELLWOOD ELECTRIC MOTORS INC.,MATERIALS - NON-INVENTORY,"$1,780 ",1/12/2017
BELLWOOD ELECTRIC MOTORS INC.,OUTSIDE SERVICES,"$4,400 ",1/12/2017
BELLWOOD ELECTRIC MOTORS INC.,OUTSIDE SERVICES,"$18,900 ",1/12/2017
BELLWOOD ELECTRIC MOTORS INC.,OUTSIDE SERVICES,"$10,580 ",2/23/2017
BELLWOOD ELECTRIC MOTORS INC.,MATERIALS & ASSETS - CAPITAL,"$3,200 ",2/27/2017
BELLWOOD ELECTRIC MOTORS INC.,OUTSIDE SERVICES,"$1,780 ",2/28/2017
BELLWOOD ELECTRIC MOTORS INC.,OUTSIDE SERVICES,"$17,600 ",3/6/2017
BELLWOOD ELECTRIC MOTORS INC.,OUTSIDE SERVICES,"$4,400 ",3/6/2017
BELLWOOD ELECTRIC MOTORS INC.,OUTSIDE SERVICES,"$8,980 ",3/8/2017
BELLWOOD ELECTRIC MOTORS INC.,OUTSIDE SERVICES,"$18,900 ",3/8/2017
BELLWOOD ELECTRIC MOTORS INC.,MATERIALS - NON-INVENTORY,"$4,450 ",3/8/2017
BELLWOOD ELECTRIC MOTORS INC.,OUTSIDE SERVICES,"$1,780 ",3/20/2017
BELLWOOD ELECTRIC MOTORS INC.,OUTSIDE SERVICES,"$5,530 ",3/27/2017
BELLWOOD ELECTRIC MOTORS INC.,MATERIALS - NON-INVENTORY,"$4,400 ",3/27/2017
BELLWOOD ELECTRIC MOTORS INC.,MATERIALS & ASSETS - CAPITAL,"$3,200 ",3/27/2017
BELLWOOD ELECTRIC MOTORS INC.,MATERIALS & ASSETS - CAPITAL,"$3,200 ",4/4/2017
BELLWOOD ELECTRIC MOTORS INC.,OUTSIDE SERVICES,"$7,900 ",4/5/2017
BELLWOOD ELECTRIC MOTORS INC.,OUTSIDE SERVICES,"$4,400 ",4/10/2017
BELLWOOD ELECTRIC MOTORS INC.,OUTSIDE SERVICES,"$3,470 ",5/1/2017
BELLWOOD ELECTRIC MOTORS INC.,OUTSIDE SERVICES,"$1,580 ",5/3/2017
BELLWOOD ELECTRIC MOTORS INC.,MATERIALS - NON-INVENTORY,"$4,400 ",5/9/2017
BELLWOOD ELECTRIC MOTORS INC.,OUTSIDE SERVICES,$690 ,5/9/2017
BELLWOOD ELECTRIC MOTORS INC.,OUTSIDE SERVICES,"$3,060 ",5/17/2017
BENJAMIN NUNEZ,"EMP EXPENSE REIMB, LOCAL",$145.73 ,3/20/2017
"BENJAMIN ROBLES, III","EMP EXPENSE REIMB, LOCAL",$65.92 ,1/4/2017
"BENTLEY SYSTEMS, INC.",ENGINEERING & DESIGN,"$36,168.82 ",3/27/2017
"BENTLEY SYSTEMS, INC.",ENGINEERING & DESIGN,"$1,351.56 ",4/4/2017
BERNARD TAYLOR,"EMP EXPENSE REIMB, LOCAL",$89.88 ,4/25/2017
"BERTS CAR WASH, INC.",OUTSIDE SERVICES,"$1,068 ",1/25/2017
"BERTS CAR WASH, INC.",OUTSIDE SERVICES,$887.50 ,2/13/2017
"BERTS CAR WASH, INC.",OUTSIDE SERVICES,$757.50 ,3/21/2017
"BERTS CAR WASH, INC.",OUTSIDE SERVICES,$804.50 ,4/5/2017
"BERTS CAR WASH, INC.",OUTSIDE SERVICES,$904.50 ,4/10/2017
"BERTS CAR WASH, INC.",OUTSIDE SERVICES,$953 ,5/19/2017
BIAGIO'S CATERING,MISCELLANEOUS OTHER EXPENSE,"$1,040.10 ",1/24/2017
"BLOCK & CO., INC.",MATERIALS - NON-INVENTORY,$160.62 ,4/4/2017
BLR- BUSINESS & LEGAL RESOURCES,PROFESSIONAL SERVICES,$249 ,1/31/2017
"BLUE PRINT SHOPPE, INC.",ENGINEERING & DESIGN,$239.55 ,3/1/2017
"BLUE PRINT SHOPPE, INC.",ENGINEERING & DESIGN,$75.80 ,3/7/2017
"BLUE PRINT SHOPPE, INC.",ENGINEERING & DESIGN,$165 ,3/9/2017
"BLUE PRINT SHOPPE, INC.",ENGINEERING & DESIGN,$189.35 ,3/27/2017
"BLUE PRINT SHOPPE, INC.",ENGINEERING & DESIGN,$86.92 ,3/29/2017
"BLUE PRINT SHOPPE, INC.",ENGINEERING & DESIGN,$66.97 ,4/26/2017
"BLUE PRINT SHOPPE, INC.",ENGINEERING & DESIGN,$48 ,5/8/2017
BNSF RAILWAY CO.,MATERIALS & ASSETS - CAPITAL,$134.01 ,1/5/2017
BNSF RAILWAY CO.,CONSTRUCTION,"$39,214.47 ",1/5/2017
BNSF RAILWAY CO.,MATERIALS & ASSETS - CAPITAL,"$1,729.14 ",1/5/2017
BNSF RAILWAY CO.,CONSTRUCTION,$190.18 ,1/5/2017
BNSF RAILWAY CO.,MISCELLANEOUS OTHER EXPENSE,"$7,210.96 ",1/19/2017
BNSF RAILWAY CO.,MATERIALS & ASSETS - CAPITAL,"$50,982.67 ",1/26/2017
BNSF RAILWAY CO.,CONSTRUCTION,"$89,430.96 ",1/26/2017
BNSF RAILWAY CO.,CONSTRUCTION,"$38,133.76 ",2/2/2017
BNSF RAILWAY CO.,MISCELLANEOUS OTHER EXPENSE,"$3,605.48 ",2/13/2017
BNSF RAILWAY CO.,MATERIALS & ASSETS - CAPITAL,"$22,977.15 ",2/14/2017
BNSF RAILWAY CO.,CONSTRUCTION,"$1,867.45 ",2/14/2017
BNSF RAILWAY CO.,CONSTRUCTION,"$45,718.29 ",2/14/2017
BNSF RAILWAY CO.,ENGINEERING & DESIGN,"$17,658.98 ",2/14/2017
BNSF RAILWAY CO.,MATERIALS & ASSETS - CAPITAL,"$1,336.34 ",2/27/2017
BNSF RAILWAY CO.,CONSTRUCTION,"$14,967.64 ",2/27/2017
BNSF RAILWAY CO.,MATERIALS & ASSETS - CAPITAL,"$5,298.50 ",2/27/2017
BNSF RAILWAY CO.,CONSTRUCTION,"$46,706.16 ",2/27/2017
BNSF RAILWAY CO.,ENGINEERING & DESIGN,"$7,247.74 ",2/27/2017
BNSF RAILWAY CO.,MISCELLANEOUS OTHER EXPENSE,"$3,605.48 ",3/1/2017
BNSF RAILWAY CO.,CONSTRUCTION,"$259,666.92 ",3/1/2017
BNSF RAILWAY CO.,MATERIALS & ASSETS - CAPITAL,"$17,012.40 ",3/1/2017
BNSF RAILWAY CO.,CONSTRUCTION,$117.12 ,3/1/2017
BNSF RAILWAY CO.,MISCELLANEOUS OTHER EXPENSE,"$3,605.48 ",3/8/2017
BNSF RAILWAY CO.,ENGINEERING & DESIGN,"$9,596.64 ",3/9/2017
BNSF RAILWAY CO.,CONSTRUCTION,"$39,174.80 ",3/21/2017
BNSF RAILWAY CO.,ENGINEERING & DESIGN,"$5,592.05 ",3/22/2017
BNSF RAILWAY CO.,CONSTRUCTION,"$54,604.04 ",3/22/2017
BNSF RAILWAY CO.,ENGINEERING & DESIGN,"$6,835.24 ",3/22/2017
BNSF RAILWAY CO.,MISCELLANEOUS OTHER EXPENSE,"$7,210.96 ",3/27/2017
BNSF RAILWAY CO.,MATERIALS & ASSETS - CAPITAL,"$18,270.43 ",4/10/2017
BNSF RAILWAY CO.,CONSTRUCTION,"$25,486.81 ",4/10/2017
BNSF RAILWAY CO.,MATERIALS & ASSETS - CAPITAL,"$18,855.86 ",4/24/2017
BNSF RAILWAY CO.,CONSTRUCTION,"$127,383 ",4/24/2017
BNSF RAILWAY CO.,CONSTRUCTION,$276.99 ,4/24/2017
BNSF RAILWAY CO.,CONSTRUCTION,"$42,013.04 ",4/24/2017
BNSF RAILWAY CO.,MATERIALS & ASSETS - CAPITAL,"$1,297.86 ",4/24/2017
BNSF RAILWAY CO.,CONSTRUCTION,"$18,500.55 ",4/24/2017
BNSF RAILWAY CO.,CONSTRUCTION,"$10,783.42 ",4/25/2017
BNSF RAILWAY CO.,MATERIALS & ASSETS - CAPITAL,"$76,960.60 ",4/25/2017
BNSF RAILWAY CO.,CONSTRUCTION,$175.67 ,4/25/2017
BNSF RAILWAY CO.,MATERIALS & ASSETS - CAPITAL,"$18,631.48 ",5/8/2017
BNSF RAILWAY CO.,ENGINEERING & DESIGN,"$6,231.51 ",5/8/2017
BNSF RAILWAY CO.,CONSTRUCTION,"$40,965.20 ",5/8/2017
BNSF RAILWAY CO.,CONSTRUCTION,"$5,522.13 ",5/8/2017
BNSF RAILWAY CO.,CONSTRUCTION,"$7,493.66 ",5/8/2017
BNSF RAILWAY CO.,ENGINEERING & DESIGN,"$12,287.45 ",5/8/2017
BNSF RAILWAY CO.,CONSTRUCTION,$175.67 ,5/11/2017
BNSF RAILWAY CO.,MATERIALS & ASSETS - CAPITAL,"$2,408.85 ",5/15/2017
BNSF RAILWAY CO.,CONSTRUCTION,"$71,247.31 ",5/15/2017
BNSF RAILWAY CO.,MISCELLANEOUS OTHER EXPENSE,"$3,605.48 ",5/17/2017
BNSF RAILWAY CO.,MATERIALS & ASSETS - CAPITAL,"$171,667.58 ",5/18/2017
BNSF RAILWAY CO.,CONSTRUCTION,"$17,201.85 ",5/18/2017
BNSF RAILWAY CO.,MATERIALS & ASSETS - CAPITAL,"$2,230.94 ",5/18/2017
BNSF RAILWAY CO.,CONSTRUCTION,"$46,994.33 ",5/18/2017
BNSF RAILWAY CO.,MATERIALS & ASSETS - CAPITAL,"$2,697.43 ",5/18/2017
BNSF RAILWAY CO.,CONSTRUCTION,"$2,820.79 ",5/18/2017
BNSF RAILWAY CO.,ENGINEERING & DESIGN,"$81,542.04 ",5/18/2017
BNSF RAILWAY CO.,MISCELLANEOUS OTHER EXPENSE,"$3,605.48 ",5/19/2017
"BOWMAN, BARRETT & ASSOC.",ENGINEERING & DESIGN,($12.53),1/24/2017
"BOWMAN, BARRETT & ASSOC.",ENG. MANAGEMENT & INSPECTIONS,$331.19 ,1/24/2017
"BOWMAN, BARRETT & ASSOC.",ENG. MANAGEMENT & INSPECTIONS,"$13,248.96 ",2/27/2017
"BRABAZON PUMPE CO., LTD.",MATERIALS - INVENTORY,"$52,216.46 ",1/5/2017
"BRABAZON PUMPE CO., LTD.",MATERIALS - INVENTORY,"$3,613.67 ",2/13/2017
"BRABAZON PUMPE CO., LTD.",MATERIALS - INVENTORY,"$1,071.04 ",2/27/2017
"BRABAZON PUMPE CO., LTD.",MATERIALS - INVENTORY,"$3,536.30 ",4/3/2017
"BRABAZON PUMPE CO., LTD.",MATERIALS - INVENTORY,$202.50 ,4/4/2017
"BRABAZON PUMPE CO., LTD.",MATERIALS - INVENTORY,$231.60 ,5/19/2017
BRAD METHLING,"EMP EXPENSE REIMB, LOCAL",$214.92 ,1/3/2017
BRAD METHLING,"EMP EXPENSE REIMB, LOCAL",$203.04 ,1/24/2017
BRAD METHLING,"EMP EXPENSE REIMB, LOCAL",$342.40 ,3/22/2017
BRAD METHLING,"EMP EXPENSE REIMB, LOCAL",$282.48 ,4/25/2017
BRAD METHLING,"EMP EXPENSE REIMB, LOCAL",$141.24 ,5/10/2017
BRENDA K. SIMMONS,"EMP EXPENSE REIMB, LOCAL",$40.98 ,5/9/2017
BRENDAN A. STEJSKAL,"EMP EXPENSE REIMB, LOCAL",$39.59 ,2/13/2017
BRENDAN A. STEJSKAL,"EMP EXPENSE REIMB, LOCAL",$62.06 ,3/30/2017
BRENDAN A. STEJSKAL,"EMP EXPENSE REIMB, LOCAL",$79.18 ,4/20/2017
BRENDAN A. STEJSKAL,"EMP EXPENSE REIMB, LOCAL",$39.96 ,5/19/2017
BRENDAN A. STEJSKAL,"EMP EXPENSE REIMB, LOCAL",$118.77 ,5/26/2017
BRIAN PATTON,"EMP EXPENSE REIMB, LOCAL",$71.28 ,1/3/2017
BRIAN THIELMANN,"EMP EXPENSE REIMB, LOCAL",$35.58 ,4/10/2017
"BRONNER GROUP, LLC",PROFESSIONAL SERVICES,"$6,540 ",2/27/2017
"BROOKS-ALLAN, INC.",OUTSIDE SERVICES,"$2,557.10 ",2/13/2017
"BROWNELLS, INC.",MISCELLANEOUS OTHER EXPENSE,$546.30 ,1/5/2017
BRYAN MACK,"EMP EXPENSE REIMB, OUT OF TOWN",$34.50 ,2/14/2017
BRYAN MACK,TUITION REIMBURSEMENT,"$3,765 ",5/16/2017
BRYAN MACK,"EMP EXPENSE REIMB, OUT OF TOWN","$2,310.32 ",5/26/2017
"BUREAU VERITAS NORTH AMERICA, INC.",ENG. MANAGEMENT & INSPECTIONS,"$2,395.70 ",2/6/2017
"BUREAU VERITAS NORTH AMERICA, INC.",ENG. MANAGEMENT & INSPECTIONS,"$2,126.70 ",2/14/2017
BURNS & MCDONNELL ENGINEERING CO.,ENGINEERING & DESIGN,"$37,250.21 ",3/6/2017
BURNS & MCDONNELL ENGINEERING CO.,ENGINEERING & DESIGN,"$36,237.94 ",5/16/2017
BURRIS EQUIPMENT CO.,MATERIALS - CAPITAL,$46 ,1/5/2017
BURRIS EQUIPMENT CO.,OUTSIDE SERVICES - CAPITAL,"$2,688 ",1/5/2017
CALAMP WIRELESS NETWORKS CORP.,MATERIALS & ASSETS - CAPITAL,"$240,930 ",1/23/2017
CALAMP WIRELESS NETWORKS CORP.,MATERIALS & ASSETS - CAPITAL,"$963,720 ",1/24/2017
CALAMP WIRELESS NETWORKS CORP.,MATERIALS & ASSETS - CAPITAL,"$169,052 ",2/13/2017
CALVERT C. PITCHFORD,"EMP EXPENSE REIMB, LOCAL",$39.96 ,1/24/2017
CANADIAN ASSOC. OF CHIEFS OF POLICE,PROFESSIONAL SERVICES,"$1,249.50 ",1/17/2017
CANADIAN PACIFIC RAILWAY,MISCELLANEOUS OTHER EXPENSE,"$1,335 ",5/19/2017
CANADIAN PACIFIC RAILWAY CO.,OUTSIDE SERVICES,$690.35 ,1/31/2017
"CANETE MEDINA CONSULTING GROUP,INC.",PROFESSIONAL SERVICES,"$103,842.97 ",1/3/2017
"CANETE MEDINA CONSULTING GROUP,INC.",PROFESSIONAL SERVICES,"$276,914.59 ",2/27/2017
"CANETE MEDINA CONSULTING GROUP,INC.",PROFESSIONAL SERVICES,"$68,437.97 ",5/19/2017
"CANON SOLUTIONS AMERICA, INC.",RENTAL EXPENSE,"$2,279.34 ",1/12/2017
"CANON SOLUTIONS AMERICA, INC.",RENTAL EXPENSE,"$2,334.76 ",1/30/2017
"CANON SOLUTIONS AMERICA, INC.",OUTSIDE SERVICES,"$2,196.39 ",2/27/2017
"CANON SOLUTIONS AMERICA, INC.",RENTAL EXPENSE,$75.31 ,3/1/2017
"CANON SOLUTIONS AMERICA, INC.",OUTSIDE SERVICES,$75.31 ,4/5/2017
"CANON SOLUTIONS AMERICA, INC.",RENTAL EXPENSE,"$2,186.04 ",4/5/2017
"CANON SOLUTIONS AMERICA, INC.",OUTSIDE SERVICES,"$2,135.29 ",4/20/2017
"CANON SOLUTIONS AMERICA, INC.",RENTAL EXPENSE,$75.31 ,4/20/2017
"CANON SOLUTIONS AMERICA, INC.",OUTSIDE SERVICES,"$2,159.66 ",5/18/2017
"CANON SOLUTIONS AMERICA, INC.",RENTAL EXPENSE,$77.19 ,5/18/2017
CANTEEN REFRESHMENT SERVICES,MATERIALS - NON-INVENTORY,$284.25 ,4/20/2017
CANTEEN REFRESHMENT SERVICES,MATERIALS - NON-INVENTORY,$94.35 ,5/9/2017
CANTEEN REFRESHMENT SERVICES,MATERIALS - NON-INVENTORY,$17 ,5/15/2017
CANTEEN REFRESHMENT SERVICES,MATERIALS - NON-INVENTORY,$234.50 ,5/17/2017
CAPRICORN COMMUNICATIONS,PROFESSIONAL SERVICES,"$10,000 ",1/20/2017
CAPRICORN COMMUNICATIONS,PROFESSIONAL SERVICES,"$10,000 ",3/14/2017
CAPRICORN COMMUNICATIONS,PROFESSIONAL SERVICES,"$5,000 ",5/5/2017
CAPRICORN COMMUNICATIONS,PROFESSIONAL SERVICES,"$5,000 ",5/18/2017
CARDIAC SCIENCE CORP.,OUTSIDE SERVICES,"$1,580 ",4/24/2017
CARDINAL COLORPRINT,OUTSIDE SERVICES,"$5,885 ",1/3/2017
CARDINAL COLORPRINT,OUTSIDE SERVICES,"$1,439.75 ",1/10/2017
CARDINAL COLORPRINT,OUTSIDE SERVICES,"$8,741.04 ",2/21/2017
CARDINAL COLORPRINT,OUTSIDE SERVICES,"$15,815.50 ",2/27/2017
CARDINAL COLORPRINT,OUTSIDE SERVICES,"$11,787.50 ",3/1/2017
CARDINAL COLORPRINT,OUTSIDE SERVICES,"$3,061.29 ",3/14/2017
CARDINAL COLORPRINT,OUTSIDE SERVICES,"$8,775 ",4/3/2017
CARDINAL COLORPRINT,OUTSIDE SERVICES,"$2,178.75 ",5/4/2017
CARDINAL COLORPRINT,OUTSIDE SERVICES,"$7,464.75 ",5/9/2017
CARDINAL COLORPRINT,OUTSIDE SERVICES,"$5,358.75 ",5/15/2017
CARDINAL COLORPRINT,OUTSIDE SERVICES,"$4,670 ",5/16/2017
CARL E. CLARK,"EMP EXPENSE REIMB, LOCAL",$83.59 ,1/3/2017
CARL MIEHLKE JR.,"EMP EXPENSE REIMB, LOCAL",$418.51 ,1/3/2017
CARL MIEHLKE JR.,"EMP EXPENSE REIMB, LOCAL",$173.34 ,2/14/2017
CARL MIEHLKE JR.,"EMP EXPENSE REIMB, LOCAL",$270.71 ,3/21/2017
CARL MIEHLKE JR.,"EMP EXPENSE REIMB, LOCAL",$86.14 ,5/4/2017
CARL MIEHLKE JR.,"EMP EXPENSE REIMB, LOCAL",$16.47 ,5/25/2017
CARLO SANTORI,"EMP EXPENSE REIMB, LOCAL",$176.75 ,5/25/2017
CARLOS A. DEL TORO,"EMP EXPENSE REIMB, LOCAL",$63.02 ,3/1/2017
CARLOS A. DEL TORO,"EMP EXPENSE REIMB, OUT OF TOWN",$936.53 ,5/23/2017
CARLOS A. LOPEZ,"EMP EXPENSE REIMB, LOCAL",$28.25 ,5/23/2017
CARLOS ROJAS,"EMP EXPENSE REIMB, LOCAL",$23.75 ,5/24/2017
CARLOS ROSS,"EMP EXPENSE REIMB, OUT OF TOWN","$1,453.53 ",1/12/2017
"CARMICHAEL LEASING CO., INC.",OUTSIDE SERVICES,"$2,013.14 ",3/6/2017
"CARMICHAEL LEASING CO., INC.",OUTSIDE SERVICES,"$4,970.79 ",3/21/2017
"CARMICHAEL LEASING CO., INC.",OUTSIDE SERVICES,"$1,256.33 ",3/27/2017
"CARMICHAEL LEASING CO., INC.",MISCELLANEOUS OTHER EXPENSE,$132 ,3/30/2017
"CARMICHAEL LEASING CO., INC.",OUTSIDE SERVICES,"$1,957.21 ",4/3/2017
"CARMICHAEL LEASING CO., INC.",OUTSIDE SERVICES,$109.64 ,4/5/2017
"CARMICHAEL LEASING CO., INC.",OUTSIDE SERVICES,"$5,185.82 ",4/10/2017
"CARMICHAEL LEASING CO., INC.",MISCELLANEOUS OTHER EXPENSE,$33 ,4/10/2017
"CARMICHAEL LEASING CO., INC.",OUTSIDE SERVICES,$517.61 ,4/12/2017
"CARMICHAEL LEASING CO., INC.",OUTSIDE SERVICES,"$2,632.74 ",4/27/2017
"CARMICHAEL LEASING CO., INC.",OUTSIDE SERVICES,$660.47 ,5/4/2017
"CARMICHAEL LEASING CO., INC.",OUTSIDE SERVICES,"$5,954.62 ",5/15/2017
"CARMICHAEL LEASING CO., INC.",OUTSIDE SERVICES,"$1,345.69 ",5/17/2017
"CARMICHAEL LEASING CO., INC.",OUTSIDE SERVICES,"$2,883.67 ",5/19/2017
"CARNOW, CONIBEAR & ASSOC., LTD.",OUTSIDE SERVICES,$915.90 ,1/4/2017
"CARNOW, CONIBEAR & ASSOC., LTD.",PROFESSIONAL SERVICES,"$5,896.13 ",1/4/2017
"CARNOW, CONIBEAR & ASSOC., LTD.",PROFESSIONAL SERVICES,"$11,013.92 ",1/31/2017
"CARNOW, CONIBEAR & ASSOC., LTD.",OUTSIDE SERVICES,"$12,543.17 ",2/15/2017
"CARNOW, CONIBEAR & ASSOC., LTD.",PROFESSIONAL SERVICES,$393.37 ,2/15/2017
"CARNOW, CONIBEAR & ASSOC., LTD.",OUTSIDE SERVICES,"$5,056.80 ",2/23/2017
"CARNOW, CONIBEAR & ASSOC., LTD.",PROFESSIONAL SERVICES,$492.78 ,3/15/2017
"CARNOW, CONIBEAR & ASSOC., LTD.",OUTSIDE SERVICES,"$1,663.58 ",3/22/2017
"CARNOW, CONIBEAR & ASSOC., LTD.",PROFESSIONAL SERVICES,"$2,518.75 ",3/29/2017
"CARNOW, CONIBEAR & ASSOC., LTD.",OUTSIDE SERVICES,$533.04 ,4/3/2017
"CARNOW, CONIBEAR & ASSOC., LTD.",PROFESSIONAL SERVICES,$298.94 ,4/3/2017
"CARNOW, CONIBEAR & ASSOC., LTD.",OUTSIDE SERVICES,$112.37 ,4/17/2017
"CARNOW, CONIBEAR & ASSOC., LTD.",OUTSIDE SERVICES,$258.50 ,4/27/2017
"CARNOW, CONIBEAR & ASSOC., LTD.",PROFESSIONAL SERVICES,$171.30 ,5/8/2017
"CARNOW, CONIBEAR & ASSOC., LTD.",OUTSIDE SERVICES,"$1,678.85 ",5/17/2017
"CARNOW, CONIBEAR & ASSOC., LTD.",PROFESSIONAL SERVICES,"$6,515.29 ",5/17/2017
"CARNOW, CONIBEAR & ASSOC., LTD.",OUTSIDE SERVICES,$370.87 ,5/18/2017
"CARNOW, CONIBEAR & ASSOC., LTD.",OUTSIDE SERVICES,$92.40 ,5/19/2017
CAROL ANN MARKETING,MISCELLANEOUS OTHER EXPENSE,$30.80 ,1/24/2017
CAROL TAYLOR,"EMP EXPENSE REIMB, OUT OF TOWN","$2,504.41 ",3/9/2017
CAROL TAYLOR,"EMP EXPENSE REIMB, OUT OF TOWN",$602.78 ,4/6/2017
CAROL TAYLOR,"EMP EXPENSE REIMB, OUT OF TOWN",$571.36 ,5/1/2017
CAROLYN R. KING,"EMP EXPENSE REIMB, LOCAL",$79.18 ,2/27/2017
CAROLYN R. KING,"EMP EXPENSE REIMB, LOCAL",$158.36 ,3/22/2017
CAROLYN R. KING,"EMP EXPENSE REIMB, LOCAL",$158.36 ,5/2/2017
CAROLYN R. KING,"EMP EXPENSE REIMB, LOCAL",$118.77 ,5/23/2017
CAROLYN TUCKER,"EMP EXPENSE REIMB, LOCAL",$100 ,1/3/2017
CASIMIR J SIERONSKI,"EMP EXPENSE REIMB, OUT OF TOWN",$180 ,1/4/2017
CASIMIR J SIERONSKI,"EMP EXPENSE REIMB, LOCAL",$72 ,1/24/2017
CASIMIR J SIERONSKI,"EMP EXPENSE REIMB, LOCAL",$121 ,2/6/2017
CASIMIR J SIERONSKI,"EMP EXPENSE REIMB, LOCAL",$100 ,2/13/2017
CASIMIR J SIERONSKI,"EMP EXPENSE REIMB, OUT OF TOWN",$205 ,3/6/2017
CASIMIR J SIERONSKI,"EMP EXPENSE REIMB, LOCAL",$63 ,3/30/2017
CASIMIR J SIERONSKI,"EMP EXPENSE REIMB, LOCAL",$137 ,4/20/2017
CASIMIR J SIERONSKI,"EMP EXPENSE REIMB, LOCAL",$84 ,5/9/2017
CASIMIR J SIERONSKI,"EMP EXPENSE REIMB, LOCAL",$95 ,5/10/2017
CAVALRY FIRE PROTECTION SERVICES,OUTSIDE SERVICES,"$2,983.50 ",1/4/2017
CAVALRY FIRE PROTECTION SERVICES,MATERIALS - NON-INVENTORY,"$1,188.50 ",1/12/2017
CAVALRY FIRE PROTECTION SERVICES,OUTSIDE SERVICES,$99 ,1/12/2017
CAVALRY FIRE PROTECTION SERVICES,OUTSIDE SERVICES,$435 ,1/30/2017
CAVALRY FIRE PROTECTION SERVICES,OUTSIDE SERVICES,$119 ,1/30/2017
CAVALRY FIRE PROTECTION SERVICES,OUTSIDE SERVICES,$125 ,2/6/2017
CAVALRY FIRE PROTECTION SERVICES,OUTSIDE SERVICES,$93 ,2/7/2017
CAVALRY FIRE PROTECTION SERVICES,OUTSIDE SERVICES,$314.50 ,2/9/2017
CAVALRY FIRE PROTECTION SERVICES,OUTSIDE SERVICES,$315 ,2/9/2017
CAVALRY FIRE PROTECTION SERVICES,OUTSIDE SERVICES,"$1,228 ",2/21/2017
CAVALRY FIRE PROTECTION SERVICES,OUTSIDE SERVICES,$989.50 ,3/1/2017
CAVALRY FIRE PROTECTION SERVICES,OUTSIDE SERVICES,$356 ,3/1/2017
CAVALRY FIRE PROTECTION SERVICES,OUTSIDE SERVICES,"$1,559 ",3/6/2017
CAVALRY FIRE PROTECTION SERVICES,OUTSIDE SERVICES,$656.50 ,3/27/2017
CAVALRY FIRE PROTECTION SERVICES,OUTSIDE SERVICES,"$1,255 ",3/27/2017
CAVALRY FIRE PROTECTION SERVICES,OUTSIDE SERVICES,"$1,642 ",3/27/2017
CAVALRY FIRE PROTECTION SERVICES,OUTSIDE SERVICES,$622 ,3/27/2017
CAVALRY FIRE PROTECTION SERVICES,OUTSIDE SERVICES,$448.50 ,3/29/2017
CAVALRY FIRE PROTECTION SERVICES,OUTSIDE SERVICES,"$1,671.50 ",4/3/2017
CAVALRY FIRE PROTECTION SERVICES,OUTSIDE SERVICES,"$7,474 ",4/12/2017
CAVALRY FIRE PROTECTION SERVICES,MATERIALS - NON-INVENTORY,$602 ,4/17/2017
CAVALRY FIRE PROTECTION SERVICES,MATERIALS - NON-INVENTORY,$365 ,4/17/2017
CAVALRY FIRE PROTECTION SERVICES,OUTSIDE SERVICES,$817 ,4/17/2017
CAVALRY FIRE PROTECTION SERVICES,OUTSIDE SERVICES,"$3,710.50 ",4/24/2017
CAVALRY FIRE PROTECTION SERVICES,OUTSIDE SERVICES,"$1,195 ",4/27/2017
CAVALRY FIRE PROTECTION SERVICES,OUTSIDE SERVICES,$533 ,5/3/2017
CAVALRY FIRE PROTECTION SERVICES,OUTSIDE SERVICES,$417 ,5/3/2017
CAVALRY FIRE PROTECTION SERVICES,OUTSIDE SERVICES,$150 ,5/8/2017
CAVALRY FIRE PROTECTION SERVICES,OUTSIDE SERVICES,"$2,001 ",5/9/2017
CAVALRY FIRE PROTECTION SERVICES,MATERIALS - NON-INVENTORY,"$2,750 ",5/17/2017
CAVALRY FIRE PROTECTION SERVICES,OUTSIDE SERVICES,"$8,455.50 ",5/17/2017
CAVALRY FIRE PROTECTION SERVICES,OUTSIDE SERVICES,"$1,885 ",5/17/2017
CAVALRY FIRE PROTECTION SERVICES,OUTSIDE SERVICES,$509 ,5/18/2017
CAVALRY FIRE PROTECTION SERVICES,OUTSIDE SERVICES,$207 ,5/18/2017
CAVALRY FIRE PROTECTION SERVICES,OUTSIDE SERVICES,"$1,439 ",5/19/2017
"CBRE, INC.",MISCELLANEOUS OTHER EXPENSE,"$2,000 ",5/9/2017
CDECI,MATERIALS - NON-INVENTORY,$177.64 ,1/4/2017
CDECI,OUTSIDE SERVICES,"$13,280 ",1/4/2017
CDECI,MATERIALS - NON-INVENTORY,"$1,387.54 ",2/6/2017
CDECI,OUTSIDE SERVICES,"$15,272 ",2/6/2017
CDECI,MATERIALS - NON-INVENTORY,"$1,016.08 ",2/15/2017
CDECI,OUTSIDE SERVICES,"$11,952 ",2/15/2017
CDECI,MATERIALS - NON-INVENTORY,$416.27 ,2/16/2017
CDECI,OUTSIDE SERVICES,"$24,419.72 ",2/16/2017
CDECI,MATERIALS - NON-INVENTORY,"$3,968.70 ",3/22/2017
CDECI,OUTSIDE SERVICES,"$21,429.20 ",3/22/2017
CDECI,OUTSIDE SERVICES,"$11,852.89 ",4/3/2017
CDECI,MATERIALS - NON-INVENTORY,"$16,060.56 ",4/27/2017
CDECI,OUTSIDE SERVICES,"$33,292 ",4/27/2017
CDECI,MATERIALS - NON-INVENTORY,$38.56 ,5/18/2017
CDECI,OUTSIDE SERVICES,"$20,948.44 ",5/18/2017
CDECI,MATERIALS - NON-INVENTORY,"$9,046.84 ",5/19/2017
CDECI,OUTSIDE SERVICES,"$8,352 ",5/19/2017
"CDW GOVERNMENT, LLC",MISCELLANEOUS OTHER EXPENSE,"$34,461 ",4/5/2017
"CDW GOVERNMENT, LLC",PROFESSIONAL SERVICES,"$63,944.16 ",4/5/2017
"CDW GOVERNMENT, LLC",MATERIALS & ASSETS - CAPITAL,"$8,020 ",4/12/2017
"CDW GOVERNMENT, LLC",MATERIALS - NON-INVENTORY,"$26,777.58 ",4/13/2017
"CDW GOVERNMENT, LLC",MATERIALS & ASSETS - CAPITAL,"$6,565.65 ",4/24/2017
"CDW GOVERNMENT, LLC",MATERIALS - NON-INVENTORY,"$4,077.84 ",4/25/2017
"CDW GOVERNMENT, LLC",MATERIALS & ASSETS - CAPITAL,"$10,025 ",5/16/2017
"CDW GOVERNMENT, LLC",OUTSIDE SERVICES,"$25,220 ",5/19/2017
CEDRIC L SMITH,"EMP EXPENSE REIMB, LOCAL",$70.64 ,5/10/2017
CENTRAL SALES & SERVICE INC.,MATERIALS - INVENTORY,$133.84 ,1/4/2017
CENTRAL SALES & SERVICE INC.,MATERIALS - INVENTORY,$367.36 ,1/12/2017
CENTRAL SALES & SERVICE INC.,MATERIALS - INVENTORY,$721.20 ,3/1/2017
CENTRAL SALES & SERVICE INC.,MATERIALS - INVENTORY,$286.68 ,4/3/2017
"CERTIFIED FLEET SERVICES, INC.",OUTSIDE SERVICES,"$4,860.74 ",1/11/2017
"CERTIFIED FLEET SERVICES, INC.",MISCELLANEOUS OTHER EXPENSE,$475 ,1/11/2017
"CERTIFIED FLEET SERVICES, INC.",OUTSIDE SERVICES,"$1,791.23 ",2/13/2017
"CERTIFIED FLEET SERVICES, INC.",OUTSIDE SERVICES,"$4,583.60 ",2/21/2017
"CERTIFIED FLEET SERVICES, INC.",MISCELLANEOUS OTHER EXPENSE,$400 ,2/21/2017
"CERTIFIED FLEET SERVICES, INC.",OUTSIDE SERVICES,$427.50 ,3/21/2017
"CERTIFIED FLEET SERVICES, INC.",OUTSIDE SERVICES,"$4,007.58 ",4/3/2017
"CERTIFIED FLEET SERVICES, INC.",MISCELLANEOUS OTHER EXPENSE,$475 ,4/3/2017
"CERTIFIED FLEET SERVICES, INC.",OUTSIDE SERVICES,"$4,683.71 ",5/17/2017
"CERTIFIED FLEET SERVICES, INC.",OUTSIDE SERVICES,"$11,999.23 ",5/19/2017
"CERTIFIED FLEET SERVICES, INC.",MISCELLANEOUS OTHER EXPENSE,$875 ,5/19/2017
CERTIFIED LANGUAGES INTERNATIONAL,MISCELLANEOUS OTHER EXPENSE,$42.30 ,2/21/2017
CERTIFIED LANGUAGES INTERNATIONAL,MISCELLANEOUS OTHER EXPENSE,$27.90 ,3/22/2017
CERTIFIED LANGUAGES INTERNATIONAL,MISCELLANEOUS OTHER EXPENSE,$10.80 ,4/6/2017
CERTIFIED LANGUAGES INTERNATIONAL,MISCELLANEOUS OTHER EXPENSE,$9.90 ,5/15/2017
"CHAMBERS, CONLON & HARTWELL, LLC",PROFESSIONAL SERVICES,"$49,901.68 ",3/14/2017
"CHAMBERS, CONLON & HARTWELL, LLC",PROFESSIONAL SERVICES,"$24,000 ",5/5/2017
"CHAMBERS, CONLON & HARTWELL, LLC",PROFESSIONAL SERVICES,"$72,000 ",5/18/2017
"CHANDLER SERVICES, INC.",OUTSIDE SERVICES,$180 ,3/16/2017
"CHANDLER SERVICES, INC.",OUTSIDE SERVICES,$741.32 ,5/15/2017
"CHANDLER SERVICES, INC.",OUTSIDE SERVICES,"$3,333.88 ",5/17/2017
CHARLES J. HARRISON,"EMP EXPENSE REIMB, OUT OF TOWN",$637.05 ,5/16/2017
CHARLES R. LOUGH JR.,"EMP EXPENSE REIMB, LOCAL",$112.13 ,5/2/2017
CHAS A ARCE,"EMP EXPENSE REIMB, LOCAL",$200.09 ,2/27/2017
CHAS A ARCE,"EMP EXPENSE REIMB, LOCAL",$77.04 ,3/22/2017
CHAS A ARCE,"EMP EXPENSE REIMB, LOCAL",$154.08 ,5/8/2017
CHAS A ARCE,"EMP EXPENSE REIMB, LOCAL",$112.35 ,5/18/2017
CHAUNCEY LAWRENCE,"EMP EXPENSE REIMB, LOCAL",$25 ,2/27/2017
"CHEM & CONSULT, INC.",MATERIALS - INVENTORY,"$1,131.90 ",1/3/2017
"CHEM & CONSULT, INC.",MATERIALS - INVENTORY,"$1,509.20 ",2/9/2017
"CHEM & CONSULT, INC.",MATERIALS - INVENTORY,"$1,509.20 ",3/1/2017
"CHEM & CONSULT, INC.",MATERIALS - INVENTORY,"$1,131.90 ",3/7/2017
"CHEM & CONSULT, INC.",MATERIALS - INVENTORY,"$1,509.20 ",4/6/2017
"CHEM & CONSULT, INC.",MATERIALS - INVENTORY,"$1,509.20 ",4/20/2017
CHERICE A. DERRICO,"EMP EXPENSE REIMB, LOCAL",$201.15 ,5/9/2017
CHERIE J. KIZER,"EMP EXPENSE REIMB, LOCAL",$617.21 ,4/25/2017
CHERIE J. KIZER,"EMP EXPENSE REIMB, LOCAL",$524.74 ,5/8/2017
CHERIE J. KIZER,"EMP EXPENSE REIMB, LOCAL",$571.13 ,5/15/2017
CHICAGO BAR ASSN.,MISCELLANEOUS OTHER EXPENSE,$404 ,4/27/2017
CHICAGO BAR ASSN.,MISCELLANEOUS OTHER EXPENSE,$712 ,5/16/2017
"CHICAGO LOCKSMITH SERVICE, INC.",MATERIALS - NON-INVENTORY,"$4,455 ",1/24/2017
"CHICAGO LOCKSMITH SERVICE, INC.",MATERIALS - NON-INVENTORY,"$1,771.80 ",1/30/2017
"CHICAGO LOCKSMITH SERVICE, INC.",OUTSIDE SERVICES,"$2,654.20 ",3/21/2017
"CHICAGO LOCKSMITH SERVICE, INC.",OUTSIDE SERVICES,"$1,071.90 ",5/15/2017
"CHICAGO METAL MAINTENANCE, INC.",OUTSIDE SERVICES,$610 ,1/10/2017
"CHICAGO METAL MAINTENANCE, INC.",OUTSIDE SERVICES,$610 ,2/27/2017
"CHICAGO METAL MAINTENANCE, INC.",OUTSIDE SERVICES,$610 ,3/27/2017
"CHICAGO METAL MAINTENANCE, INC.",OUTSIDE SERVICES,$610 ,4/13/2017
"CHICAGO METAL MAINTENANCE, INC.",OUTSIDE SERVICES,$610 ,5/15/2017
CHICAGO MINORITY SUPPLIER,MISCELLANEOUS OTHER EXPENSE,"$2,175 ",2/21/2017
"CHICAGO PARTS & SOUND, LLC.",OUTSIDE SERVICES,"$2,094.40 ",3/27/2017
"CHICAGO PARTS & SOUND, LLC.",OUTSIDE SERVICES,$299.20 ,4/13/2017
"CHICAGO SOFT, LTD.",PROFESSIONAL SERVICES,"$5,323 ",1/12/2017
CHICAGO SUN-TIMES,OUTSIDE SERVICES - CAPITAL,$720.10 ,1/4/2017
CHICAGO SUN-TIMES,MISCELLANEOUS OTHER EXPENSE,"$1,825.90 ",1/4/2017
CHICAGO SUN-TIMES,MISCELLANEOUS OTHER EXPENSE,$416 ,1/17/2017
CHICAGO SUN-TIMES,OUTSIDE SERVICES - CAPITAL,$351.50 ,1/25/2017
CHICAGO SUN-TIMES,MISCELLANEOUS OTHER EXPENSE,$558.60 ,1/25/2017
CHICAGO SUN-TIMES,OUTSIDE SERVICES - CAPITAL,$457.90 ,2/27/2017
CHICAGO SUN-TIMES,MISCELLANEOUS OTHER EXPENSE,"$2,188.80 ",2/27/2017
CHICAGO SUN-TIMES,MISCELLANEOUS OTHER EXPENSE,"$4,224.65 ",3/27/2017
CHICAGO SUN-TIMES,MISCELLANEOUS OTHER EXPENSE,"$3,606.20 ",4/24/2017
CHICAGO TIRE INC.,OUTSIDE SERVICES,"$3,531.99 ",1/3/2017
CHICAGO TIRE INC.,OUTSIDE SERVICES,$149.83 ,1/10/2017
CHICAGO TIRE INC.,OUTSIDE SERVICES,"$1,906.85 ",1/10/2017
CHICAGO TIRE INC.,OUTSIDE SERVICES,$98.15 ,1/11/2017
CHICAGO TIRE INC.,OUTSIDE SERVICES,"$1,352.34 ",1/12/2017
CHICAGO TIRE INC.,OUTSIDE SERVICES,"$1,617.54 ",1/23/2017
CHICAGO TIRE INC.,OUTSIDE SERVICES,"$1,416.17 ",2/6/2017
CHICAGO TIRE INC.,OUTSIDE SERVICES,"$1,831.88 ",2/13/2017
CHICAGO TIRE INC.,OUTSIDE SERVICES,$621.72 ,2/14/2017
CHICAGO TIRE INC.,OUTSIDE SERVICES,"$2,295.57 ",2/21/2017
CHICAGO TIRE INC.,OUTSIDE SERVICES,$234.74 ,2/22/2017
CHICAGO TIRE INC.,OUTSIDE SERVICES,"$8,317.09 ",2/23/2017
CHICAGO TIRE INC.,OUTSIDE SERVICES,$670.32 ,2/23/2017
CHICAGO TIRE INC.,OUTSIDE SERVICES,"$1,025.33 ",2/27/2017
CHICAGO TIRE INC.,OUTSIDE SERVICES,$331.18 ,3/6/2017
CHICAGO TIRE INC.,OUTSIDE SERVICES,"$1,361.95 ",3/22/2017
CHICAGO TIRE INC.,OUTSIDE SERVICES,$532.74 ,3/27/2017
CHICAGO TIRE INC.,OUTSIDE SERVICES,"$1,413.50 ",3/27/2017
CHICAGO TIRE INC.,OUTSIDE SERVICES,$12 ,3/29/2017
CHICAGO TIRE INC.,OUTSIDE SERVICES,$588.49 ,3/30/2017
CHICAGO TIRE INC.,OUTSIDE SERVICES,"$1,169.90 ",4/3/2017
CHICAGO TIRE INC.,OUTSIDE SERVICES,$152.40 ,4/6/2017
CHICAGO TIRE INC.,OUTSIDE SERVICES,$233.43 ,4/6/2017
CHICAGO TIRE INC.,OUTSIDE SERVICES,$813.17 ,4/6/2017
CHICAGO TIRE INC.,OUTSIDE SERVICES,"$1,598.36 ",4/11/2017
CHICAGO TIRE INC.,OUTSIDE SERVICES,$145 ,4/12/2017
CHICAGO TIRE INC.,OUTSIDE SERVICES,$85 ,4/13/2017
CHICAGO TIRE INC.,OUTSIDE SERVICES,$12 ,4/13/2017
CHICAGO TIRE INC.,OUTSIDE SERVICES,$80 ,5/4/2017
CHICAGO TIRE INC.,OUTSIDE SERVICES,"$5,992.12 ",5/4/2017
CHICAGO TIRE INC.,OUTSIDE SERVICES,$12 ,5/8/2017
CHICAGO TIRE INC.,OUTSIDE SERVICES,$457.12 ,5/8/2017
CHICAGO TIRE INC.,OUTSIDE SERVICES,$212.11 ,5/9/2017
CHICAGO TIRE INC.,OUTSIDE SERVICES,"$3,441.34 ",5/15/2017
CHICAGO TIRE INC.,OUTSIDE SERVICES - CAPITAL,"$1,500.76 ",5/17/2017
CHICAGO TIRE INC.,OUTSIDE SERVICES,"$1,120.66 ",5/17/2017
CHICAGO TIRE INC.,OUTSIDE SERVICES,"$3,860 ",5/18/2017
CHICAGO TIRE INC.,OUTSIDE SERVICES,"$1,530.81 ",5/19/2017
CHICAGO TRANSIT AUTHORITY,MISCELLANEOUS OTHER EXPENSE,"$48,486 ",4/17/2017
CHICAGO TRIBUNE,MISCELLANEOUS OTHER EXPENSE,$519.48 ,4/24/2017
CHICAGO UNIFORM CO.,MATERIALS - CAPITAL,$807.84 ,1/24/2017
CHICAGO UNIFORM CO.,MISCELLANEOUS OTHER EXPENSE,"$10,012.88 ",1/24/2017
CHICAGO UNIFORM CO.,MISCELLANEOUS OTHER EXPENSE,"$3,261.94 ",2/8/2017
CHICAGO UNIFORM CO.,MISCELLANEOUS OTHER EXPENSE,"$14,167.88 ",2/14/2017
CHICAGO UNIFORM CO.,MATERIALS - CAPITAL,$249.92 ,5/9/2017
CHICAGO UNIFORM CO.,MISCELLANEOUS OTHER EXPENSE,"$7,434.43 ",5/9/2017
CHICAGO UNIFORM CO.,MATERIALS - CAPITAL,"$1,763.46 ",5/16/2017
CHICAGO UNIFORM CO.,MISCELLANEOUS OTHER EXPENSE,"$7,317.83 ",5/16/2017
CHICAGO UNIFORM CO.,MISCELLANEOUS OTHER EXPENSE,"$14,692.75 ",5/19/2017
CHICAGO UNION STATION CO.,RENTAL EXPENSE,"$786,070.17 ",1/9/2017
CHICAGO UNION STATION CO.,UTILITIES,"$3,500 ",1/11/2017
CHICAGO UNION STATION CO.,RENTAL EXPENSE,"$786,732.86 ",2/13/2017
CHICAGO UNION STATION CO.,UTILITIES,"$3,500 ",2/16/2017
CHICAGO UNION STATION CO.,UTILITIES,"$3,500 ",2/23/2017
CHICAGO UNION STATION CO.,RENTAL EXPENSE,"$786,732.86 ",3/7/2017
CHICAGO UNION STATION CO.,UTILITIES,"$3,500 ",3/15/2017
CHICAGO UNION STATION CO.,RENTAL EXPENSE,"$786,732.86 ",3/21/2017
CHICAGO UNION STATION CO.,UTILITIES,"$3,500 ",4/3/2017
CHICAGO UNION STATION CO.,RENTAL EXPENSE,"$792,702.76 ",4/24/2017
CHICAGO UNION STATION CO.,UTILITIES,"$3,500 ",5/8/2017
CHICAGO UNION STATION CO.,UTILITIES,"$3,500 ",5/19/2017
CHICAGO UNION STATION CO.,RENTAL EXPENSE,"$792,702.76 ",5/19/2017
"CHICAGO UNITED INDUSTRIES, LTD.",MATERIALS - INVENTORY,$459 ,1/18/2017
"CHICAGO UNITED INDUSTRIES, LTD.",MATERIALS - INVENTORY,$833.98 ,4/20/2017
"CHICAGO UNITED INDUSTRIES, LTD.",MATERIALS - INVENTORY,"$1,623.14 ",5/10/2017
"CHICAGOLAND PAVING CONTRACTORS,INC.",OUTSIDE SERVICES - CAPITAL,"$70,024.55 ",1/10/2017
"CHICAGOLAND PAVING CONTRACTORS,INC.",CONSTRUCTION,"$16,874 ",1/24/2017
"CHICAGOLAND PAVING CONTRACTORS,INC.",OUTSIDE SERVICES,"$56,562.40 ",2/6/2017
"CHICAGOLAND PAVING CONTRACTORS,INC.",OUTSIDE SERVICES - CAPITAL,"$34,686.40 ",2/15/2017
"CHICAGOLAND PAVING CONTRACTORS,INC.",OUTSIDE SERVICES - CAPITAL,"$7,409.25 ",3/15/2017
"CHICAGOLAND PAVING CONTRACTORS,INC.",MATERIALS - CAPITAL,"$37,472.30 ",5/17/2017
CHOOSE CHICAGO,MISCELLANEOUS OTHER EXPENSE,$699 ,5/23/2017
CHRISTINE MURPHY,"EMP EXPENSE REIMB, LOCAL",$19.25 ,4/25/2017
CHRISTINE MURPHY,"EMP EXPENSE REIMB, LOCAL",$5 ,5/23/2017
CHRISTOPHER A PRUTSMAN,"EMP EXPENSE REIMB, LOCAL",$39.96 ,1/24/2017
CHRISTOPHER A PRUTSMAN,"EMP EXPENSE REIMB, LOCAL",$32.10 ,5/26/2017
CHRISTOPHER L. SWOOPE,"EMP EXPENSE REIMB, LOCAL",$228.81 ,1/24/2017
CHRISTOPHER L. SWOOPE,"EMP EXPENSE REIMB, LOCAL",$206.08 ,2/13/2017
CHRISTOPHER L. SWOOPE,"EMP EXPENSE REIMB, LOCAL",$226.68 ,3/20/2017
CHRISTOPHER P. DORSEY,"EMP EXPENSE REIMB, LOCAL",$375.37 ,1/23/2017
CHRISTOPHER P. DORSEY,"EMP EXPENSE REIMB, LOCAL",$212.93 ,3/1/2017
CHRISTOPHER P. DORSEY,"EMP EXPENSE REIMB, LOCAL",$161.04 ,3/8/2017
CHRISTOPHER P. DORSEY,"EMP EXPENSE REIMB, LOCAL",$165.85 ,3/21/2017
CHRISTOPHER P. DORSEY,"EMP EXPENSE REIMB, LOCAL",$242.89 ,3/28/2017
CHRISTOPHER P. DORSEY,"EMP EXPENSE REIMB, LOCAL",$165.85 ,4/13/2017
CHRISTOPHER P. DORSEY,"EMP EXPENSE REIMB, LOCAL",$62.06 ,5/15/2017
CHRISTOPHER P. DORSEY,"EMP EXPENSE REIMB, LOCAL",$220.42 ,5/26/2017
CHRISTOPHER S JACKSON,"EMP EXPENSE REIMB, OUT OF TOWN",$281.20 ,1/3/2017
CHRISTOPHER S JACKSON,"EMP EXPENSE REIMB, OUT OF TOWN","$7,889.18 ",5/8/2017
CITY CLUB OF CHICAGO,PROFESSIONAL SERVICES,$70 ,1/3/2017
CITY CLUB OF CHICAGO,PROFESSIONAL SERVICES,$185 ,1/11/2017
CITY CLUB OF CHICAGO,PROFESSIONAL SERVICES,$985 ,2/13/2017
CITY CLUB OF CHICAGO,PROFESSIONAL SERVICES,$235 ,2/27/2017
CITY CLUB OF CHICAGO,PROFESSIONAL SERVICES,$120 ,3/27/2017
CITY CLUB OF CHICAGO,PROFESSIONAL SERVICES,$270 ,4/5/2017
CITY CLUB OF CHICAGO,PROFESSIONAL SERVICES,$35 ,4/13/2017
CITY CLUB OF CHICAGO,PROFESSIONAL SERVICES,$285 ,5/16/2017
CITY CLUB OF CHICAGO,MISCELLANEOUS OTHER EXPENSE,$285 ,5/24/2017
CITY COLLEGES OF CHICAGO,OUTSIDE SERVICES,"$9,107.14 ",3/20/2017
CITY COLLEGES OF CHICAGO,OUTSIDE SERVICES,"$9,107.14 ",5/4/2017
CITY OF BLUE ISLAND,UTILITIES,"$1,087.04 ",1/17/2017
CITY OF BLUE ISLAND,UTILITIES,"$1,120.06 ",2/14/2017
CITY OF BLUE ISLAND,UTILITIES,$74.30 ,2/21/2017
CITY OF BLUE ISLAND,UTILITIES,"$1,210.87 ",3/13/2017
CITY OF BLUE ISLAND,UTILITIES,"$1,194.37 ",4/13/2017
CITY OF BLUE ISLAND,UTILITIES,"$1,334.71 ",5/15/2017
CITY OF ELGIN,UTILITIES,$184.20 ,1/9/2017
CITY OF ELGIN,UTILITIES,"$1,763.95 ",1/23/2017
CITY OF ELGIN,UTILITIES,$190.20 ,2/9/2017
CITY OF ELGIN,UTILITIES,$245.97 ,2/14/2017
CITY OF ELGIN,UTILITIES,"$1,548.10 ",2/21/2017
CITY OF ELGIN,UTILITIES,$202.83 ,3/8/2017
CITY OF ELGIN,UTILITIES,"$1,946.75 ",3/13/2017
CITY OF ELGIN,UTILITIES,$178.11 ,4/5/2017
CITY OF ELGIN,UTILITIES,"$1,674.74 ",4/13/2017
CITY OF ELGIN,UTILITIES,$172.19 ,5/8/2017
CITY OF ELGIN,UTILITIES,"$2,014.28 ",5/15/2017
CITY OF HARVEY WATER DEPARTMENT,UTILITIES,$39.78 ,1/17/2017
CITY OF HARVEY WATER DEPARTMENT,UTILITIES,$32.56 ,2/21/2017
CITY OF HARVEY WATER DEPARTMENT,UTILITIES,$35.74 ,3/21/2017
CITY OF HARVEY WATER DEPARTMENT,UTILITIES,$32.57 ,4/13/2017
CITY OF HARVEY WATER DEPARTMENT,UTILITIES,$36.40 ,5/16/2017
CITY OF HIGHLAND PARK,UTILITIES,$26.16 ,1/9/2017
CITY OF HIGHLAND PARK,UTILITIES,$26.16 ,3/22/2017
CITY OF JOLIET MUNICIPAL UTILITIES,UTILITIES,$179.11 ,1/3/2017
CITY OF JOLIET MUNICIPAL UTILITIES,UTILITIES,$21.80 ,1/23/2017
CITY OF JOLIET MUNICIPAL UTILITIES,UTILITIES,$108.46 ,1/30/2017
CITY OF JOLIET MUNICIPAL UTILITIES,UTILITIES,$104.98 ,2/9/2017
CITY OF JOLIET MUNICIPAL UTILITIES,UTILITIES,$13.52 ,2/21/2017
CITY OF JOLIET MUNICIPAL UTILITIES,UTILITIES,$292.50 ,2/28/2017
CITY OF JOLIET MUNICIPAL UTILITIES,UTILITIES,$15.51 ,3/9/2017
CITY OF JOLIET MUNICIPAL UTILITIES,UTILITIES,$191.42 ,3/21/2017
CITY OF JOLIET MUNICIPAL UTILITIES,UTILITIES,$101.91 ,3/22/2017
CITY OF JOLIET MUNICIPAL UTILITIES,UTILITIES,$75.49 ,4/5/2017
CITY OF JOLIET MUNICIPAL UTILITIES,UTILITIES,$190.82 ,4/13/2017
CITY OF JOLIET MUNICIPAL UTILITIES,UTILITIES,$151.03 ,5/8/2017
CITY OF JOLIET MUNICIPAL UTILITIES,UTILITIES,$116.98 ,5/15/2017
CITY OF JOLIET MUNICIPAL UTILITIES,UTILITIES,$15.21 ,5/26/2017
"CITY OF OAK FOREST,ILL.",UTILITIES,$64.10 ,1/23/2017
"CITY OF OAK FOREST,ILL.",UTILITIES,$73.92 ,4/26/2017
"CLAEVEN, LTD.",MISCELLANEOUS OTHER EXPENSE,$862.50 ,1/3/2017
"CLAEVEN, LTD.",MISCELLANEOUS OTHER EXPENSE,$402.50 ,1/23/2017
"CLAEVEN, LTD.",OUTSIDE SERVICES,$358.75 ,1/31/2017
"CLAEVEN, LTD.",MISCELLANEOUS OTHER EXPENSE,"$4,140 ",1/31/2017
"CLAEVEN, LTD.",MISCELLANEOUS OTHER EXPENSE,$402.50 ,2/7/2017
"CLAEVEN, LTD.",MISCELLANEOUS OTHER EXPENSE,"$1,495 ",2/13/2017
"CLAEVEN, LTD.",MISCELLANEOUS OTHER EXPENSE,$690 ,2/14/2017
"CLAEVEN, LTD.",MISCELLANEOUS OTHER EXPENSE,"$3,852.50 ",2/21/2017
"CLAEVEN, LTD.",MISCELLANEOUS OTHER EXPENSE,"$2,530 ",2/27/2017
"CLAEVEN, LTD.",MISCELLANEOUS OTHER EXPENSE,$747.50 ,3/1/2017
"CLAEVEN, LTD.",MISCELLANEOUS OTHER EXPENSE,"$3,852.50 ",3/8/2017
"CLAEVEN, LTD.",MISCELLANEOUS OTHER EXPENSE,"$1,782.50 ",3/13/2017
"CLAEVEN, LTD.",MISCELLANEOUS OTHER EXPENSE,$287.50 ,3/14/2017
"CLAEVEN, LTD.",MISCELLANEOUS OTHER EXPENSE,$502.50 ,3/15/2017
"CLAEVEN, LTD.",MISCELLANEOUS OTHER EXPENSE,$287.50 ,3/20/2017
"CLAEVEN, LTD.",MISCELLANEOUS OTHER EXPENSE,"$2,932.50 ",3/29/2017
"CLAEVEN, LTD.",MISCELLANEOUS OTHER EXPENSE,$632.50 ,3/30/2017
"CLAEVEN, LTD.",MISCELLANEOUS OTHER EXPENSE,"$1,610 ",4/3/2017
"CLAEVEN, LTD.",MISCELLANEOUS OTHER EXPENSE,$402.50 ,4/5/2017
"CLAEVEN, LTD.",MISCELLANEOUS OTHER EXPENSE,"$1,380 ",4/6/2017
"CLAEVEN, LTD.",MISCELLANEOUS OTHER EXPENSE,$402.50 ,4/10/2017
"CLAEVEN, LTD.",MISCELLANEOUS OTHER EXPENSE,"$2,645 ",4/11/2017
"CLAEVEN, LTD.",MISCELLANEOUS OTHER EXPENSE,$402.50 ,4/12/2017
"CLAEVEN, LTD.",MISCELLANEOUS OTHER EXPENSE,$402.50 ,4/17/2017
"CLAEVEN, LTD.",MISCELLANEOUS OTHER EXPENSE,$402.50 ,5/3/2017
"CLAEVEN, LTD.",MISCELLANEOUS OTHER EXPENSE,$920 ,5/4/2017
"CLAEVEN, LTD.",MISCELLANEOUS OTHER EXPENSE,$920 ,5/8/2017
"CLAEVEN, LTD.",MISCELLANEOUS OTHER EXPENSE,"$1,265 ",5/9/2017
"CLAEVEN, LTD.",MISCELLANEOUS OTHER EXPENSE,"$1,207.50 ",5/15/2017
"CLAEVEN, LTD.",MISCELLANEOUS OTHER EXPENSE,$287.50 ,5/16/2017
"CLAEVEN, LTD.",MISCELLANEOUS OTHER EXPENSE,"$5,520 ",5/17/2017
"CLAEVEN, LTD.",MISCELLANEOUS OTHER EXPENSE,"$1,322.50 ",5/18/2017
"CLAEVEN, LTD.",MISCELLANEOUS OTHER EXPENSE,$847.50 ,5/19/2017
"CLARION ASSOCIATES, INC.",PROFESSIONAL SERVICES,"$45,000 ",5/18/2017
"CLARITY PARTNERS, LLC",OUTSIDE SERVICES,"$66,837.44 ",1/31/2017
"CLARITY PARTNERS, LLC",OUTSIDE SERVICES,"$49,019.72 ",2/16/2017
"CLARITY PARTNERS, LLC",OUTSIDE SERVICES,"$49,795.06 ",3/22/2017
"CLARITY PARTNERS, LLC",OUTSIDE SERVICES,"$54,686.56 ",4/6/2017
"CLARITY PARTNERS, LLC",OUTSIDE SERVICES,"$71,627.14 ",5/15/2017
CLARK FILTER,MATERIALS - INVENTORY,"$2,191.68 ",1/11/2017
CLARK FILTER,MATERIALS - INVENTORY,"$1,364.08 ",1/12/2017
CLARK FILTER,MATERIALS - INVENTORY,"$4,554.92 ",1/23/2017
CLARK FILTER,MATERIALS - INVENTORY,"$1,024.80 ",2/9/2017
CLARK FILTER,MATERIALS - INVENTORY,"$1,532.96 ",2/13/2017
CLARK FILTER,MATERIALS - INVENTORY,"$4,132.18 ",3/1/2017
CLARK FILTER,MATERIALS - INVENTORY,"$4,992 ",3/6/2017
CLARK FILTER,MATERIALS - INVENTORY,"$7,543.24 ",3/23/2017
CLARK FILTER,MATERIALS - INVENTORY,"$4,812.82 ",4/10/2017
CLARK FILTER,MATERIALS - INVENTORY,"$1,203.60 ",4/12/2017
CLARK FILTER,MATERIALS - INVENTORY,"$7,852.96 ",5/10/2017
CLARK FILTER,MATERIALS - INVENTORY,$589.32 ,5/18/2017
CLARK FILTER,MATERIALS - INVENTORY,"$5,259.88 ",5/19/2017
CLASS C SOLUTIONS GROUP,MATERIALS - CAPITAL,"$2,785.10 ",1/3/2017
CLASS C SOLUTIONS GROUP,MATERIALS - NON-INVENTORY,"$1,103.69 ",1/3/2017
CLASS C SOLUTIONS GROUP,MATERIALS - CAPITAL,"$1,852.50 ",1/5/2017
CLASS C SOLUTIONS GROUP,MATERIALS - NON-INVENTORY,"$1,345.10 ",1/5/2017
CLASS C SOLUTIONS GROUP,OUTSIDE SERVICES,"$2,492.96 ",1/5/2017
CLASS C SOLUTIONS GROUP,MATERIALS - CAPITAL,$104 ,1/9/2017
CLASS C SOLUTIONS GROUP,MATERIALS - NON-INVENTORY,"$1,246.50 ",1/9/2017
CLASS C SOLUTIONS GROUP,MATERIALS - NON-INVENTORY,"$8,704.45 ",1/9/2017
CLASS C SOLUTIONS GROUP,MATERIALS - NON-INVENTORY,$346.99 ,1/9/2017
CLASS C SOLUTIONS GROUP,MATERIALS - NON-INVENTORY,$843.20 ,1/9/2017
CLASS C SOLUTIONS GROUP,MATERIALS - CAPITAL,$138 ,1/11/2017
CLASS C SOLUTIONS GROUP,MATERIALS - NON-INVENTORY,$456.40 ,1/11/2017
CLASS C SOLUTIONS GROUP,MATERIALS - NON-INVENTORY,"$2,442.05 ",1/11/2017
CLASS C SOLUTIONS GROUP,MATERIALS - NON-INVENTORY,"$1,039.39 ",1/11/2017
CLASS C SOLUTIONS GROUP,MATERIALS - NON-INVENTORY,"$1,983.19 ",1/11/2017
CLASS C SOLUTIONS GROUP,MATERIALS - NON-INVENTORY,"$2,567.57 ",1/11/2017
CLASS C SOLUTIONS GROUP,OUTSIDE SERVICES,"$2,586 ",1/11/2017
CLASS C SOLUTIONS GROUP,MATERIALS - NON-INVENTORY,$359.60 ,1/11/2017
CLASS C SOLUTIONS GROUP,MATERIALS - NON-INVENTORY,"$4,184 ",1/11/2017
CLASS C SOLUTIONS GROUP,MATERIALS - NON-INVENTORY,"$1,232.38 ",1/12/2017
CLASS C SOLUTIONS GROUP,MATERIALS - CAPITAL,$9.50 ,1/17/2017
CLASS C SOLUTIONS GROUP,MATERIALS - NON-INVENTORY,$477.40 ,1/17/2017
CLASS C SOLUTIONS GROUP,MATERIALS - NON-INVENTORY,"$5,049.67 ",1/17/2017
CLASS C SOLUTIONS GROUP,MATERIALS - CAPITAL,$571.90 ,1/18/2017
CLASS C SOLUTIONS GROUP,OUTSIDE SERVICES - CAPITAL,$188 ,1/18/2017
CLASS C SOLUTIONS GROUP,MATERIALS - NON-INVENTORY,$57.85 ,1/18/2017
CLASS C SOLUTIONS GROUP,MATERIALS - NON-INVENTORY,$627.33 ,1/18/2017
CLASS C SOLUTIONS GROUP,MATERIALS - NON-INVENTORY,"$1,920.85 ",1/19/2017
CLASS C SOLUTIONS GROUP,MATERIALS - NON-INVENTORY,"$2,536.46 ",1/19/2017
CLASS C SOLUTIONS GROUP,MATERIALS - NON-INVENTORY,$119.19 ,1/19/2017
CLASS C SOLUTIONS GROUP,MATERIALS - NON-INVENTORY,$741.50 ,1/19/2017
CLASS C SOLUTIONS GROUP,MATERIALS - NON-INVENTORY,"$5,466 ",1/19/2017
CLASS C SOLUTIONS GROUP,MATERIALS - CAPITAL,$738.50 ,1/23/2017
CLASS C SOLUTIONS GROUP,MATERIALS - NON-INVENTORY,$383.76 ,1/23/2017
CLASS C SOLUTIONS GROUP,MATERIALS - CAPITAL,$19.40 ,1/24/2017
CLASS C SOLUTIONS GROUP,MATERIALS - NON-INVENTORY,"$3,975 ",1/24/2017
CLASS C SOLUTIONS GROUP,MATERIALS - NON-INVENTORY,"$1,467.20 ",1/24/2017
CLASS C SOLUTIONS GROUP,MATERIALS - NON-INVENTORY,"$1,416 ",1/26/2017
CLASS C SOLUTIONS GROUP,MATERIALS - NON-INVENTORY,"$2,371.60 ",1/30/2017
CLASS C SOLUTIONS GROUP,MATERIALS - CAPITAL,"$2,648.50 ",1/31/2017
CLASS C SOLUTIONS GROUP,MATERIALS - NON-INVENTORY,$285.95 ,2/2/2017
CLASS C SOLUTIONS GROUP,MATERIALS - NON-INVENTORY,"$4,514.76 ",2/2/2017
CLASS C SOLUTIONS GROUP,OUTSIDE SERVICES - CAPITAL,$44 ,2/6/2017
CLASS C SOLUTIONS GROUP,MATERIALS - NON-INVENTORY,$368 ,2/7/2017
CLASS C SOLUTIONS GROUP,MATERIALS - NON-INVENTORY,"$6,435.47 ",2/7/2017
CLASS C SOLUTIONS GROUP,MATERIALS - CAPITAL,$240 ,2/13/2017
CLASS C SOLUTIONS GROUP,MATERIALS - NON-INVENTORY,"$1,488.42 ",2/13/2017
CLASS C SOLUTIONS GROUP,MATERIALS - NON-INVENTORY,"$2,651.20 ",2/13/2017
CLASS C SOLUTIONS GROUP,MATERIALS - NON-INVENTORY,$434.97 ,2/14/2017
CLASS C SOLUTIONS GROUP,MATERIALS - NON-INVENTORY,$823.50 ,2/14/2017
CLASS C SOLUTIONS GROUP,MATERIALS - NON-INVENTORY,$162 ,2/21/2017
CLASS C SOLUTIONS GROUP,MATERIALS - NON-INVENTORY,"$2,478.95 ",2/21/2017
CLASS C SOLUTIONS GROUP,MATERIALS - NON-INVENTORY,$452.50 ,2/21/2017
CLASS C SOLUTIONS GROUP,MATERIALS - CAPITAL,"$10,322.20 ",2/22/2017
CLASS C SOLUTIONS GROUP,MATERIALS - NON-INVENTORY,$217.60 ,2/22/2017
CLASS C SOLUTIONS GROUP,MATERIALS - CAPITAL,"$2,664.70 ",2/23/2017
CLASS C SOLUTIONS GROUP,MATERIALS - CAPITAL,"$6,134.20 ",2/27/2017
CLASS C SOLUTIONS GROUP,MATERIALS - NON-INVENTORY,"$2,263.80 ",2/27/2017
CLASS C SOLUTIONS GROUP,MATERIALS - NON-INVENTORY,"$9,213.40 ",2/27/2017
CLASS C SOLUTIONS GROUP,MATERIALS - NON-INVENTORY,"$1,850.72 ",2/27/2017
CLASS C SOLUTIONS GROUP,MATERIALS - NON-INVENTORY,$392.95 ,2/28/2017
CLASS C SOLUTIONS GROUP,MATERIALS - NON-INVENTORY,"$1,013.47 ",3/1/2017
CLASS C SOLUTIONS GROUP,MATERIALS - NON-INVENTORY,"$1,165.40 ",3/6/2017
CLASS C SOLUTIONS GROUP,MATERIALS - CAPITAL,"$6,429 ",3/7/2017
CLASS C SOLUTIONS GROUP,MATERIALS - NON-INVENTORY,$331.93 ,3/8/2017
CLASS C SOLUTIONS GROUP,MATERIALS - NON-INVENTORY,"$1,169.31 ",3/13/2017
CLASS C SOLUTIONS GROUP,MATERIALS - CAPITAL,"$2,003.50 ",3/20/2017
CLASS C SOLUTIONS GROUP,MATERIALS - CAPITAL,$664 ,3/28/2017
CLASS C SOLUTIONS GROUP,MATERIALS - NON-INVENTORY,$320.08 ,3/28/2017
CLASS C SOLUTIONS GROUP,MATERIALS - NON-INVENTORY,$450 ,3/29/2017
CLASS C SOLUTIONS GROUP,MATERIALS - NON-INVENTORY,"$1,373.36 ",3/29/2017
CLASS C SOLUTIONS GROUP,MATERIALS - CAPITAL,"$2,803.30 ",4/3/2017
CLASS C SOLUTIONS GROUP,MATERIALS - NON-INVENTORY,$181.39 ,4/3/2017
CLASS C SOLUTIONS GROUP,MATERIALS - NON-INVENTORY,$313.15 ,4/10/2017
CLASS C SOLUTIONS GROUP,MATERIALS - NON-INVENTORY,"$1,958.10 ",4/10/2017
CLASS C SOLUTIONS GROUP,MATERIALS - NON-INVENTORY,$56.37 ,4/10/2017
CLASS C SOLUTIONS GROUP,MATERIALS - NON-INVENTORY,"$2,290.12 ",4/13/2017
CLASS C SOLUTIONS GROUP,MATERIALS - NON-INVENTORY,"$3,085.50 ",4/18/2017
CLASS C SOLUTIONS GROUP,MATERIALS - NON-INVENTORY,$70 ,4/19/2017
CLASS C SOLUTIONS GROUP,MATERIALS - NON-INVENTORY,"$1,598.52 ",4/27/2017
CLASS C SOLUTIONS GROUP,MATERIALS - NON-INVENTORY,$596.25 ,4/27/2017
CLASS C SOLUTIONS GROUP,MATERIALS - CAPITAL,$264.59 ,5/1/2017
CLASS C SOLUTIONS GROUP,MATERIALS - NON-INVENTORY,"$11,464.50 ",5/1/2017
CLASS C SOLUTIONS GROUP,MATERIALS - NON-INVENTORY,$50.20 ,5/1/2017
CLASS C SOLUTIONS GROUP,MATERIALS - NON-INVENTORY,"$8,483.38 ",5/1/2017
CLASS C SOLUTIONS GROUP,MATERIALS - NON-INVENTORY,"$1,348.50 ",5/1/2017
CLASS C SOLUTIONS GROUP,MATERIALS - NON-INVENTORY,$21.60 ,5/1/2017
CLASS C SOLUTIONS GROUP,MATERIALS - NON-INVENTORY,$687.97 ,5/1/2017
CLASS C SOLUTIONS GROUP,MATERIALS - NON-INVENTORY,"$2,198.50 ",5/3/2017
CLASS C SOLUTIONS GROUP,MATERIALS - NON-INVENTORY,"$1,059.52 ",5/4/2017
CLASS C SOLUTIONS GROUP,MATERIALS - NON-INVENTORY,$160.70 ,5/8/2017
CLASS C SOLUTIONS GROUP,MATERIALS - NON-INVENTORY,$44.60 ,5/9/2017
CLASS C SOLUTIONS GROUP,OUTSIDE SERVICES,$138.52 ,5/9/2017
CLASS C SOLUTIONS GROUP,MATERIALS - NON-INVENTORY,"$1,523.26 ",5/10/2017
CLASS C SOLUTIONS GROUP,MATERIALS - NON-INVENTORY,"$2,407.42 ",5/11/2017
CLASS C SOLUTIONS GROUP,MATERIALS - NON-INVENTORY,$45 ,5/11/2017
CLASS C SOLUTIONS GROUP,OUTSIDE SERVICES,$242.40 ,5/11/2017
CLASS C SOLUTIONS GROUP,MATERIALS - NON-INVENTORY,$470.48 ,5/15/2017
CLASS C SOLUTIONS GROUP,MATERIALS - NON-INVENTORY,"$2,466.66 ",5/15/2017
CLASS C SOLUTIONS GROUP,MATERIALS - NON-INVENTORY,$368 ,5/16/2017
CLASS C SOLUTIONS GROUP,MATERIALS - CAPITAL,"$1,827.60 ",5/17/2017
CLASS C SOLUTIONS GROUP,MATERIALS - NON-INVENTORY,$841.90 ,5/17/2017
CLASS C SOLUTIONS GROUP,MATERIALS - CAPITAL,"$4,428.66 ",5/18/2017
CLASS C SOLUTIONS GROUP,OUTSIDE SERVICES - CAPITAL,"$2,184 ",5/18/2017
CLASS C SOLUTIONS GROUP,MATERIALS - NON-INVENTORY,"$1,199.43 ",5/18/2017
CLASS C SOLUTIONS GROUP,OUTSIDE SERVICES,"$6,119 ",5/18/2017
CLASS C SOLUTIONS GROUP,MATERIALS - CAPITAL,"$5,244.16 ",5/19/2017
CLASS C SOLUTIONS GROUP,MATERIALS - NON-INVENTORY,"$1,323.08 ",5/19/2017
CLASSIC PARTY RENTALS,OUTSIDE SERVICES,"$1,514 ",3/21/2017
CLASSIC PARTY RENTALS,OUTSIDE SERVICES,$838.90 ,3/29/2017
CLAYBOURNE MILLER,"EMP EXPENSE REIMB, LOCAL",$103.87 ,1/3/2017
CLAYBOURNE MILLER,"EMP EXPENSE REIMB, LOCAL",$138.50 ,1/26/2017
CLAYBOURNE MILLER,"EMP EXPENSE REIMB, LOCAL",$171.52 ,2/2/2017
CLAYBOURNE MILLER,"EMP EXPENSE REIMB, LOCAL",$205.83 ,2/14/2017
CLAYBOURNE MILLER,"EMP EXPENSE REIMB, LOCAL",$102.91 ,2/27/2017
CLAYBOURNE MILLER,"EMP EXPENSE REIMB, LOCAL",$137.22 ,3/20/2017
CLAYBOURNE MILLER,"EMP EXPENSE REIMB, LOCAL",$137.22 ,3/30/2017
CLAYBOURNE MILLER,"EMP EXPENSE REIMB, LOCAL",$171.52 ,4/25/2017
CLAYBOURNE MILLER,"EMP EXPENSE REIMB, LOCAL",$137.22 ,5/4/2017
CLAYBOURNE MILLER,"EMP EXPENSE REIMB, LOCAL",$171.52 ,5/10/2017
CLAYBOURNE MILLER,"EMP EXPENSE REIMB, LOCAL",$171.52 ,5/26/2017
"CLEANING SPECIALIST, INC.",MISCELLANEOUS OTHER EXPENSE,"$2,235 ",1/30/2017
"CLEANING SPECIALIST, INC.",MISCELLANEOUS OTHER EXPENSE,"$2,802 ",2/27/2017
"CLEANING SPECIALIST, INC.",MISCELLANEOUS OTHER EXPENSE,"$10,185 ",3/22/2017
"CLEANING SPECIALIST, INC.",MISCELLANEOUS OTHER EXPENSE,"$10,016.10 ",3/22/2017
"CLEANING SPECIALIST, INC.",MISCELLANEOUS OTHER EXPENSE,"$5,199 ",4/17/2017
"CLEANING SPECIALIST, INC.",MISCELLANEOUS OTHER EXPENSE,"$4,902 ",5/17/2017
"CLEANING SPECIALIST, INC.",MISCELLANEOUS OTHER EXPENSE,$400 ,5/18/2017
CLEMENTS NATIONAL CO.,MATERIALS & ASSETS - CAPITAL,"$18,280 ",1/3/2017
CLEMENTS NATIONAL CO.,MATERIALS - INVENTORY,"$27,817.55 ",1/10/2017
CLEMENTS NATIONAL CO.,MATERIALS - INVENTORY,"$1,294 ",1/11/2017
CLEMENTS NATIONAL CO.,MATERIALS - INVENTORY,"$3,026 ",1/12/2017
CLEMENTS NATIONAL CO.,MATERIALS - INVENTORY,"$3,651 ",1/17/2017
CLEMENTS NATIONAL CO.,MATERIALS - INVENTORY,$720 ,1/23/2017
CLEMENTS NATIONAL CO.,MATERIALS & ASSETS - CAPITAL,"$5,700 ",1/24/2017
CLEMENTS NATIONAL CO.,MATERIALS - INVENTORY,$846 ,2/9/2017
CLEMENTS NATIONAL CO.,MATERIALS - INVENTORY,"$5,317.50 ",2/14/2017
CLEMENTS NATIONAL CO.,MATERIALS & ASSETS - CAPITAL,"$2,400 ",2/27/2017
CLEMENTS NATIONAL CO.,MATERIALS & ASSETS - CAPITAL,"$1,600 ",2/28/2017
CLEMENTS NATIONAL CO.,MATERIALS - INVENTORY,"$14,542.45 ",3/1/2017
CLEMENTS NATIONAL CO.,MATERIALS - INVENTORY,"$1,137.25 ",3/6/2017
CLEMENTS NATIONAL CO.,MATERIALS & ASSETS - CAPITAL,"$3,200 ",3/6/2017
CLEMENTS NATIONAL CO.,MATERIALS & ASSETS - CAPITAL,"$4,800 ",3/7/2017
CLEMENTS NATIONAL CO.,MATERIALS - INVENTORY,"$3,504 ",3/13/2017
CLEMENTS NATIONAL CO.,MATERIALS & ASSETS - CAPITAL,"$6,400 ",3/20/2017
CLEMENTS NATIONAL CO.,MATERIALS - INVENTORY,"$1,983.10 ",3/22/2017
CLEMENTS NATIONAL CO.,MATERIALS - INVENTORY,"$11,333.90 ",3/27/2017
CLEMENTS NATIONAL CO.,MATERIALS & ASSETS - CAPITAL,"$1,600 ",3/27/2017
CLEMENTS NATIONAL CO.,MATERIALS & ASSETS - CAPITAL,"$3,665.60 ",3/28/2017
CLEMENTS NATIONAL CO.,MATERIALS - INVENTORY,"$1,048 ",3/30/2017
CLEMENTS NATIONAL CO.,MATERIALS - INVENTORY,$318 ,4/3/2017
CLEMENTS NATIONAL CO.,MATERIALS & ASSETS - CAPITAL,"$2,400 ",4/5/2017
CLEMENTS NATIONAL CO.,MATERIALS & ASSETS - CAPITAL,"$30,581.90 ",4/10/2017
CLEMENTS NATIONAL CO.,MATERIALS - INVENTORY,"$3,719 ",4/12/2017
CLEMENTS NATIONAL CO.,MATERIALS - INVENTORY,$738 ,4/17/2017
CLEMENTS NATIONAL CO.,MATERIALS & ASSETS - CAPITAL,"$8,333.50 ",4/18/2017
CLEMENTS NATIONAL CO.,MATERIALS - INVENTORY,"$1,987 ",4/20/2017
CLEMENTS NATIONAL CO.,MATERIALS - INVENTORY,"$4,000 ",4/24/2017
CLEMENTS NATIONAL CO.,MATERIALS & ASSETS - CAPITAL,"$36,734 ",4/24/2017
CLEMENTS NATIONAL CO.,MATERIALS - INVENTORY,"$8,837.60 ",4/25/2017
CLEMENTS NATIONAL CO.,MATERIALS - INVENTORY,"$6,136.50 ",5/8/2017
CLEMENTS NATIONAL CO.,MATERIALS & ASSETS - CAPITAL,"$42,375 ",5/8/2017
CLEMENTS NATIONAL CO.,MATERIALS - INVENTORY,"$2,597.65 ",5/10/2017
CLEMENTS NATIONAL CO.,MATERIALS - INVENTORY,"$8,412.25 ",5/15/2017
CLEMENTS NATIONAL CO.,MATERIALS & ASSETS - CAPITAL,"$15,006 ",5/16/2017
CLEMENTS NATIONAL CO.,MATERIALS - INVENTORY,"$5,288.80 ",5/17/2017
CLEMENTS NATIONAL CO.,MATERIALS - INVENTORY,"$2,077 ",5/18/2017
CLEMENTS NATIONAL CO.,MATERIALS - INVENTORY,$600 ,5/19/2017
CODY JOHNSON,"EMP EXPENSE REIMB, LOCAL",$22.68 ,1/12/2017
CODY JOHNSON,"EMP EXPENSE REIMB, LOCAL",$90.72 ,1/24/2017
CODY JOHNSON,"EMP EXPENSE REIMB, LOCAL",$158.36 ,2/27/2017
CODY JOHNSON,"EMP EXPENSE REIMB, LOCAL",$158.36 ,3/28/2017
CODY JOHNSON,"EMP EXPENSE REIMB, LOCAL",$158.36 ,5/2/2017
CODY JOHNSON,"EMP EXPENSE REIMB, LOCAL",$180.83 ,5/23/2017
COHNREZNICK LLP,PROFESSIONAL SERVICES,"$2,040 ",4/18/2017
COLETTE HOLT & ASSOC.,PROFESSIONAL SERVICES,"$5,500 ",3/1/2017
COLETTE HOLT & ASSOC.,PROFESSIONAL SERVICES,"$10,000 ",3/15/2017
COLETTE HOLT & ASSOC.,PROFESSIONAL SERVICES,"$35,000 ",4/20/2017
COLETTE HOLT & ASSOC.,PROFESSIONAL SERVICES,"$39,000 ",5/15/2017
"COM ED-REAL ESTATE DEPT., 4TH FL.",RENTAL EXPENSE,$471.62 ,1/25/2017
"COM ED-REAL ESTATE DEPT., 4TH FL.",RENTAL EXPENSE,$471.62 ,2/27/2017
"COM ED-REAL ESTATE DEPT., 4TH FL.",MISCELLANEOUS OTHER EXPENSE,$707.16 ,5/4/2017
"COM ED-REAL ESTATE DEPT., 4TH FL.",MISCELLANEOUS OTHER EXPENSE,$321.47 ,5/4/2017
"COM ED-REAL ESTATE DEPT., 4TH FL.",RENTAL EXPENSE,"$1,532.76 ",5/24/2017
COMCAST,OUTSIDE SERVICES,"$4,274.39 ",1/11/2017
COMCAST,OUTSIDE SERVICES,$440.19 ,1/19/2017
COMCAST,OUTSIDE SERVICES,$440.19 ,1/19/2017
COMCAST,OUTSIDE SERVICES,$241.19 ,1/19/2017
COMCAST,OUTSIDE SERVICES,$241.19 ,1/19/2017
COMCAST,OUTSIDE SERVICES,"$4,850.93 ",2/13/2017
COMCAST,OUTSIDE SERVICES,"$4,516.03 ",3/13/2017
COMCAST,OUTSIDE SERVICES,"$4,706.22 ",4/10/2017
COMCAST,OUTSIDE SERVICES,"$4,706.56 ",5/15/2017
COMCAST BUSINESS,OUTSIDE SERVICES,"$6,363.74 ",1/17/2017
COMCAST BUSINESS,OUTSIDE SERVICES,"$6,363.74 ",2/22/2017
COMCAST BUSINESS,OUTSIDE SERVICES,"$9,232.48 ",3/20/2017
COMCAST BUSINESS,OUTSIDE SERVICES,"$9,157.38 ",4/13/2017
COMCAST BUSINESS,OUTSIDE SERVICES,"$9,157.38 ",5/15/2017
COMMERCIAL TIRE SERVICE,OUTSIDE SERVICES,"$2,868.67 ",1/12/2017
COMMERCIAL TIRE SERVICE,OUTSIDE SERVICES,$27.50 ,1/17/2017
COMMERCIAL TIRE SERVICE,OUTSIDE SERVICES,"$2,934.50 ",1/23/2017
COMMERCIAL TIRE SERVICE,OUTSIDE SERVICES,$795.46 ,2/6/2017
COMMERCIAL TIRE SERVICE,OUTSIDE SERVICES,$135 ,2/7/2017
COMMERCIAL TIRE SERVICE,OUTSIDE SERVICES,"$1,011.68 ",2/14/2017
COMMERCIAL TIRE SERVICE,OUTSIDE SERVICES,"$2,625.38 ",2/27/2017
COMMERCIAL TIRE SERVICE,OUTSIDE SERVICES,"$1,108.71 ",3/16/2017
COMMERCIAL TIRE SERVICE,OUTSIDE SERVICES,$234.92 ,3/20/2017
COMMERCIAL TIRE SERVICE,OUTSIDE SERVICES,"$1,139.60 ",3/22/2017
COMMERCIAL TIRE SERVICE,OUTSIDE SERVICES,"$1,221.60 ",3/27/2017
COMMERCIAL TIRE SERVICE,OUTSIDE SERVICES,$610.19 ,4/3/2017
COMMERCIAL TIRE SERVICE,OUTSIDE SERVICES,$135 ,4/10/2017
COMMERCIAL TIRE SERVICE,OUTSIDE SERVICES,$165 ,4/11/2017
COMMERCIAL TIRE SERVICE,OUTSIDE SERVICES,$20 ,4/13/2017
COMMERCIAL TIRE SERVICE,OUTSIDE SERVICES,$935.01 ,4/13/2017
COMMERCIAL TIRE SERVICE,OUTSIDE SERVICES,$522.02 ,5/3/2017
COMMERCIAL TIRE SERVICE,OUTSIDE SERVICES,$699.05 ,5/8/2017
COMMERCIAL TIRE SERVICE,OUTSIDE SERVICES,$928.60 ,5/9/2017
COMMERCIAL TIRE SERVICE,OUTSIDE SERVICES,$264.57 ,5/15/2017
COMMERCIAL TIRE SERVICE,OUTSIDE SERVICES,"$1,036.59 ",5/17/2017
COMMERCIAL TIRE SERVICE,OUTSIDE SERVICES,$225.73 ,5/19/2017
COMMONWEALTH EDISON,UTILITIES,"$1,002.47 ",1/3/2017
COMMONWEALTH EDISON,UTILITIES,$702.38 ,1/5/2017
COMMONWEALTH EDISON,UTILITIES,$484.66 ,1/9/2017
COMMONWEALTH EDISON,UTILITIES,"$1,337.45 ",1/12/2017
COMMONWEALTH EDISON,UTILITIES,$616.20 ,1/17/2017
COMMONWEALTH EDISON,UTILITIES,$217.95 ,1/18/2017
COMMONWEALTH EDISON,UTILITIES,$152.70 ,1/18/2017
COMMONWEALTH EDISON,UTILITIES,$767.91 ,1/19/2017
COMMONWEALTH EDISON,UTILITIES,$773.38 ,1/24/2017
COMMONWEALTH EDISON,UTILITIES,$490.79 ,1/30/2017
COMMONWEALTH EDISON,UTILITIES,$104.28 ,2/6/2017
COMMONWEALTH EDISON,UTILITIES,$312.58 ,2/9/2017
COMMONWEALTH EDISON,UTILITIES,"$2,779.77 ",2/13/2017
COMMONWEALTH EDISON,UTILITIES,$619.93 ,2/13/2017
COMMONWEALTH EDISON,UTILITIES,$618.44 ,2/14/2017
COMMONWEALTH EDISON,UTILITIES,"$2,757.13 ",2/16/2017
COMMONWEALTH EDISON,UTILITIES,$312.44 ,2/23/2017
COMMONWEALTH EDISON,UTILITIES,"$10,422.04 ",2/27/2017
COMMONWEALTH EDISON,UTILITIES,$661.76 ,2/27/2017
COMMONWEALTH EDISON,UTILITIES,$39.20 ,3/2/2017
COMMONWEALTH EDISON,UTILITIES,$361.60 ,3/9/2017
COMMONWEALTH EDISON,UTILITIES,$472.02 ,3/13/2017
COMMONWEALTH EDISON,UTILITIES,"$3,434.06 ",3/20/2017
COMMONWEALTH EDISON,UTILITIES,$232.61 ,3/21/2017
COMMONWEALTH EDISON,UTILITIES,$32.11 ,3/23/2017
COMMONWEALTH EDISON,UTILITIES,"$1,059.47 ",3/27/2017
COMMONWEALTH EDISON,UTILITIES,$39.09 ,3/30/2017
COMMONWEALTH EDISON,UTILITIES,$95.77 ,4/3/2017
COMMONWEALTH EDISON,UTILITIES,$77.03 ,4/6/2017
COMMONWEALTH EDISON,UTILITIES,"$2,449.62 ",4/10/2017
COMMONWEALTH EDISON,UTILITIES,$216.77 ,4/11/2017
COMMONWEALTH EDISON,UTILITIES,$38.97 ,4/12/2017
COMMONWEALTH EDISON,UTILITIES,"$3,103.17 ",4/13/2017
COMMONWEALTH EDISON,UTILITIES,$793.66 ,4/24/2017
COMMONWEALTH EDISON,UTILITIES,"$2,337.54 ",5/15/2017
COMMONWEALTH EDISON,UTILITIES,$31.99 ,5/18/2017
COMMONWEALTH EDISON,UTILITIES,$518.88 ,5/24/2017
COMMONWEALTH EDISON,UTILITIES,$126.44 ,5/25/2017
COMMUNITY CHRISTIAN CHURCH,RENTAL EXPENSE,"$9,000 ",5/8/2017
COMPASS MINERALS AMERICA,MATERIALS - NON-INVENTORY,"$4,630.20 ",1/9/2017
COMPASS MINERALS AMERICA,MATERIALS - NON-INVENTORY,"$1,809.70 ",1/19/2017
COMPASS MINERALS AMERICA,MATERIALS - NON-INVENTORY,"$1,562.22 ",1/24/2017
COMPASS MINERALS AMERICA,MATERIALS - NON-INVENTORY,"$1,922.37 ",1/30/2017
COMPASS MINERALS AMERICA,MATERIALS - NON-INVENTORY,"$1,632.94 ",2/1/2017
COMPASS MINERALS AMERICA,OUTSIDE SERVICES,"$1,679.61 ",2/7/2017
COMPASS MINERALS AMERICA,MATERIALS - NON-INVENTORY,"$1,649.10 ",2/7/2017
COMPASS MINERALS AMERICA,OUTSIDE SERVICES,"$1,534.99 ",2/7/2017
COMPASS MINERALS AMERICA,MATERIALS - NON-INVENTORY,"$1,604.08 ",2/13/2017
COMPASS MINERALS AMERICA,MATERIALS - NON-INVENTORY,"$1,735.98 ",2/13/2017
COMPASS MINERALS AMERICA,MATERIALS - NON-INVENTORY,"$1,714.81 ",2/14/2017
COMPASS MINERALS AMERICA,MATERIALS - NON-INVENTORY,"$1,685.43 ",3/28/2017
COMPASS MINERALS AMERICA,MATERIALS - NON-INVENTORY,"$1,694.12 ",4/12/2017
COMPASS MINERALS AMERICA,MATERIALS - NON-INVENTORY,"$1,535.37 ",5/17/2017
COMPROD COMMUNICATIONS LTD.,MATERIALS & ASSETS - CAPITAL,"$15,885 ",2/27/2017
COMPROD COMMUNICATIONS LTD.,MATERIALS & ASSETS - CAPITAL,"$7,942.50 ",2/28/2017
"COMPUTER AID, INC.",OUTSIDE SERVICES,"$19,684.56 ",1/10/2017
"COMPUTER AID, INC.",OUTSIDE SERVICES,"$205,417.74 ",1/31/2017
"COMPUTER AID, INC.",OUTSIDE SERVICES,"$198,163.30 ",2/6/2017
"COMPUTER AID, INC.",OUTSIDE SERVICES,"$11,248.32 ",2/16/2017
"COMPUTER AID, INC.",OUTSIDE SERVICES,"$178,068.64 ",2/22/2017
"COMPUTER AID, INC.",OUTSIDE SERVICES,"$178,068.64 ",4/3/2017
"COMPUTER AID, INC.",OUTSIDE SERVICES,"$182,876.52 ",5/3/2017
"COMPUTER AID, INC.",OUTSIDE SERVICES,"$182,876.52 ",5/15/2017
COMPUTER SCIENCES CORP,PROFESSIONAL SERVICES,"$34,787.78 ",4/27/2017
COMPUTER SCIENCES CORP,MATERIALS & ASSETS - CAPITAL,"$56,108.73 ",5/17/2017
COMTO,MISCELLANEOUS OTHER EXPENSE,$125 ,2/7/2017
CONCEPT MEDIA & PRINT GROUP,MISCELLANEOUS OTHER EXPENSE,"$1,704 ",4/3/2017
CONTROLCASE LLC,PROFESSIONAL SERVICES,"$14,000 ",2/27/2017
CONTROLCASE LLC,PROFESSIONAL SERVICES,"$9,000 ",4/3/2017
CONTROLCASE LLC,PROFESSIONAL SERVICES,"$33,000 ",5/15/2017
COOK COUNTY SHERIFF'S POLICE,OUTSIDE SERVICES,"$203,595.50 ",1/18/2017
COOK COUNTY SHERIFF'S POLICE,OUTSIDE SERVICES,"$211,757 ",3/27/2017
COOK COUNTY SHERIFF'S POLICE,OUTSIDE SERVICES,"$211,757 ",5/19/2017
COOK COUNTY TREASURER,MISCELLANEOUS OTHER EXPENSE,"$63,030.22 ",2/14/2017
"CORPORATE IMAGING CONCEPTS,INC.",MISCELLANEOUS OTHER EXPENSE,$892 ,1/19/2017
"CORPORATE IMAGING CONCEPTS,INC.",MISCELLANEOUS OTHER EXPENSE,"$16,656.11 ",3/1/2017
"CORPORATE IMAGING CONCEPTS,INC.",MISCELLANEOUS OTHER EXPENSE,"$3,470 ",3/22/2017
"CORPORATE IMAGING CONCEPTS,INC.",MISCELLANEOUS OTHER EXPENSE,$583 ,3/27/2017
"CORPORATE IMAGING CONCEPTS,INC.",MISCELLANEOUS OTHER EXPENSE,"$1,283 ",5/3/2017
"CORPORATE IMAGING CONCEPTS,INC.",MISCELLANEOUS OTHER EXPENSE,"$11,739 ",5/17/2017
"CORPORATE IMAGING CONCEPTS,INC.",MISCELLANEOUS OTHER EXPENSE,$301 ,5/18/2017
"CORYS THUNDER, INC.",OUTSIDE SERVICES,"$22,125 ",1/4/2017
"CORYS THUNDER, INC.",OUTSIDE SERVICES,"$14,750 ",3/15/2017
"CORYS THUNDER, INC.",OUTSIDE SERVICES,"$7,375 ",4/20/2017
"CORYS THUNDER, INC.",OUTSIDE SERVICES,"$14,750 ",5/17/2017
COURTNEY AUBRECHT,"EMP EXPENSE REIMB, LOCAL",$30.77 ,4/13/2017
CP RAIL SYSTEM,MISCELLANEOUS OTHER EXPENSE,"$93,549.81 ",2/6/2017
CP RAIL SYSTEM,MISCELLANEOUS OTHER EXPENSE,"$94,674.88 ",2/27/2017
CP RAIL SYSTEM,MISCELLANEOUS OTHER EXPENSE,"$94,674.88 ",3/15/2017
CP RAIL SYSTEM,MISCELLANEOUS OTHER EXPENSE,"$85,131.38 ",4/3/2017
CP RAIL SYSTEM,MISCELLANEOUS OTHER EXPENSE,"$94,765.65 ",5/15/2017
CP RAIL SYSTEM,MISCELLANEOUS OTHER EXPENSE,"$90,833.11 ",5/25/2017
CRAIN'S CHICAGO BUSINESS,MISCELLANEOUS OTHER EXPENSE,$44.20 ,1/17/2017
CRAIN'S CHICAGO BUSINESS,MISCELLANEOUS OTHER EXPENSE,$145.60 ,3/13/2017
CRANEMASTERS INC.,OUTSIDE SERVICES,"$15,964.36 ",1/31/2017
CREATIVE PROMOTIONAL PRODUCTS,MISCELLANEOUS OTHER EXPENSE,$118 ,2/14/2017
"CROWE HORWATH, LLP",MATERIALS & ASSETS - CAPITAL,"$1,958,000 ",2/23/2017
"CROWE HORWATH, LLP",MATERIALS & ASSETS - CAPITAL,"$534,000 ",5/16/2017
"CROWE HORWATH, LLP",PROFESSIONAL SERVICES,"$50,000 ",5/18/2017
CROWN BATTERY MFG. CO.,MATERIALS - INVENTORY,$735 ,2/9/2017
CROWN BATTERY MFG. CO.,MATERIALS - INVENTORY,$980 ,5/17/2017
"CUBIC-TRANSPORTATION SYSTEMS, INC.",BANK CHARGES,"$68,024.45 ",1/3/2017
"CUBIC-TRANSPORTATION SYSTEMS, INC.",MOBILE TICKET COMMISSION,"$187,570.16 ",1/3/2017
"CUBIC-TRANSPORTATION SYSTEMS, INC.",BANK CHARGES,"$58,263.09 ",1/17/2017
"CUBIC-TRANSPORTATION SYSTEMS, INC.",MOBILE TICKET COMMISSION,"$190,799.60 ",1/17/2017
"CUBIC-TRANSPORTATION SYSTEMS, INC.",BANK CHARGES,"$52,588.79 ",2/28/2017
"CUBIC-TRANSPORTATION SYSTEMS, INC.",MOBILE TICKET COMMISSION,"$180,938.10 ",2/28/2017
"CUBIC-TRANSPORTATION SYSTEMS, INC.",BANK CHARGES,"$208,161.33 ",3/27/2017
"CUBIC-TRANSPORTATION SYSTEMS, INC.",MOBILE TICKET COMMISSION,"$203,226.67 ",3/27/2017
CULLEN & ASSOC.,PROFESSIONAL SERVICES,"$5,000 ",1/20/2017
CULLEN & ASSOC.,PROFESSIONAL SERVICES,"$10,000 ",3/14/2017
CULLEN & ASSOC.,PROFESSIONAL SERVICES,"$5,000 ",5/5/2017
CULLEN & ASSOC.,PROFESSIONAL SERVICES,"$5,000 ",5/18/2017
CUMMINS ALLISON CORP.,OUTSIDE SERVICES,"$10,230 ",1/24/2017
"CUMMINS NPOWER, LLC",MATERIALS - NON-INVENTORY,$603.80 ,2/6/2017
"CUMMINS NPOWER, LLC",OUTSIDE SERVICES,"$1,236.18 ",2/14/2017
"CUMMINS NPOWER, LLC",MATERIALS - NON-INVENTORY,$86.01 ,3/8/2017
CURT A. OTERO,"EMP EXPENSE REIMB, LOCAL",$390.33 ,3/30/2017
CURT MILLER,"EMP EXPENSE REIMB, LOCAL",$70.62 ,3/20/2017
CVR COMPUTER SUPPLIES,MATERIALS - NON-INVENTORY,$591 ,1/12/2017
CVR COMPUTER SUPPLIES,MATERIALS - NON-INVENTORY,"$14,570 ",3/6/2017
CVR COMPUTER SUPPLIES,MATERIALS - NON-INVENTORY,"$8,152.60 ",5/4/2017
CYNTHIA LEONARD,"EMP EXPENSE REIMB, LOCAL",$97.20 ,1/12/2017
CYNTHIA LEONARD,"EMP EXPENSE REIMB, LOCAL",$213.84 ,1/24/2017
CYNTHIA LEONARD,"EMP EXPENSE REIMB, LOCAL",$96.30 ,2/14/2017
CYNTHIA LEONARD,"EMP EXPENSE REIMB, LOCAL",$160.50 ,3/22/2017
CYNTHIA LEONARD,"EMP EXPENSE REIMB, LOCAL",$81.32 ,5/2/2017
CYNTHIA LEONARD,"EMP EXPENSE REIMB, LOCAL",$226.84 ,5/23/2017
D & B POWER ASSOC.,MATERIALS & ASSETS - CAPITAL,"$50,387 ",3/13/2017
D & S COMMUNICATIONS,MATERIALS - NON-INVENTORY,"$3,340 ",1/23/2017
D & S COMMUNICATIONS,OUTSIDE SERVICES,"$3,720 ",1/26/2017
D & S COMMUNICATIONS,MATERIALS - NON-INVENTORY,"$5,190.12 ",3/22/2017
D.S. ARMS,MISCELLANEOUS OTHER EXPENSE,"$38,720 ",1/24/2017
DANA HILL,PROFESSIONAL SERVICES,$500 ,5/10/2017
DANELLA RENTAL SYSTEMS INC.,RENTAL EXPENSE,"$12,194.55 ",1/24/2017
DANELLA RENTAL SYSTEMS INC.,RENTAL EXPENSE,"$9,770 ",2/16/2017
DANELLA RENTAL SYSTEMS INC.,RENTAL EXPENSE,"$2,535 ",2/21/2017
DANELLA RENTAL SYSTEMS INC.,RENTAL EXPENSE,"$16,500 ",2/22/2017
DANELLA RENTAL SYSTEMS INC.,RENTAL EXPENSE,"$22,704.32 ",3/1/2017
DANELLA RENTAL SYSTEMS INC.,RENTAL EXPENSE,"$1,365 ",3/6/2017
DANELLA RENTAL SYSTEMS INC.,RENTAL EXPENSE,"$4,273.32 ",3/22/2017
DANELLA RENTAL SYSTEMS INC.,RENTAL EXPENSE,"$1,170 ",3/27/2017
DANELLA RENTAL SYSTEMS INC.,RENTAL EXPENSE,"$63,693.10 ",4/24/2017
DANELLA RENTAL SYSTEMS INC.,RENTAL EXPENSE,"$12,170 ",5/8/2017
DANELLA RENTAL SYSTEMS INC.,RENTAL EXPENSE,"$3,100 ",5/8/2017
DANELLA RENTAL SYSTEMS INC.,RENTAL EXPENSE,"$1,170 ",5/17/2017
DANELLA RENTAL SYSTEMS INC.,RENTAL EXPENSE,"$3,100 ",5/19/2017
DANGRELL S FRAZIER,TUITION REIMBURSEMENT,"$1,540 ",2/8/2017
DANIEL BUDZIOCH,"EMP EXPENSE REIMB, LOCAL",$43.20 ,1/23/2017
DANIEL BUDZIOCH,"EMP EXPENSE REIMB, LOCAL",$34.24 ,5/15/2017
DANIEL FOLLIS,"EMP EXPENSE REIMB, LOCAL",$14.98 ,3/21/2017
DANIEL GALLACHER,"EMP EXPENSE REIMB, LOCAL",$77.04 ,5/15/2017
DANIEL JUDGE,"EMP EXPENSE REIMB, LOCAL",$64.80 ,1/3/2017
DANIEL JUDGE,"EMP EXPENSE REIMB, LOCAL",$291.60 ,1/24/2017
DANIEL LOREK,"EMP EXPENSE REIMB, LOCAL",$241.50 ,5/15/2017
DANIEL MARINELLIE,"EMP EXPENSE REIMB, LOCAL",$444.42 ,1/3/2017
DANIEL MARINELLIE,"EMP EXPENSE REIMB, LOCAL",$412.56 ,1/19/2017
DANIEL MARINELLIE,"EMP EXPENSE REIMB, LOCAL",$472.42 ,2/14/2017
DANIEL MARINELLIE,"EMP EXPENSE REIMB, LOCAL",$234.87 ,3/22/2017
DANIEL MARINELLIE,"EMP EXPENSE REIMB, LOCAL",$444.06 ,4/25/2017
DANIEL MARINELLIE,"EMP EXPENSE REIMB, LOCAL",$239.15 ,5/23/2017
DANIEL MARINELLIE,"EMP EXPENSE REIMB, LOCAL",$228.45 ,5/25/2017
DANIEL MIODONSKI,"EMP EXPENSE REIMB, LOCAL",$8 ,3/30/2017
DANIEL SANTIAGO,"EMP EXPENSE REIMB, LOCAL",$153.90 ,1/4/2017
DANIEL SANTIAGO,"EMP EXPENSE REIMB, LOCAL",$230.04 ,1/12/2017
DANIEL SANTIAGO,"EMP EXPENSE REIMB, LOCAL",$147.96 ,1/24/2017
DANIEL SANTIAGO,"EMP EXPENSE REIMB, LOCAL",$146.06 ,1/30/2017
DANIEL SANTIAGO,"EMP EXPENSE REIMB, LOCAL",$219.89 ,2/13/2017
DANIEL SANTIAGO,"EMP EXPENSE REIMB, LOCAL",$264.30 ,3/8/2017
DANIEL SANTIAGO,"EMP EXPENSE REIMB, LOCAL",$254.13 ,3/20/2017
DANIEL SANTIAGO,"EMP EXPENSE REIMB, LOCAL",$276.07 ,3/30/2017
DANIEL SANTIAGO,"EMP EXPENSE REIMB, LOCAL",$197.42 ,4/20/2017
DANIEL SANTIAGO,"EMP EXPENSE REIMB, LOCAL",$219.89 ,5/9/2017
DANIEL SANTIAGO,"EMP EXPENSE REIMB, LOCAL",$235.41 ,5/10/2017
DANIEL SANTIAGO,"EMP EXPENSE REIMB, LOCAL",$191.53 ,5/25/2017
DANIEL SHEEHAN,"EMP EXPENSE REIMB, LOCAL",$192.60 ,3/7/2017
DANIELLE GAUTHIER,"EMP EXPENSE REIMB, OUT OF TOWN",$284.50 ,2/27/2017
DANNY ZAPATA,"EMP EXPENSE REIMB, OUT OF TOWN",$241.50 ,5/15/2017
DARLYNN BALL,"EMP EXPENSE REIMB, LOCAL",$59.94 ,1/23/2017
DARLYNN BALL,"EMP EXPENSE REIMB, LOCAL",$35.85 ,2/27/2017
DARLYNN BALL,"EMP EXPENSE REIMB, LOCAL",$39.59 ,4/25/2017
DARLYNN BALL,"EMP EXPENSE REIMB, LOCAL",$101.65 ,5/25/2017
DARRELL HORN,"EMP EXPENSE REIMB, LOCAL",$248.40 ,1/23/2017
DARRELL HORN,"EMP EXPENSE REIMB, LOCAL",$196.88 ,2/23/2017
DARRELL P EATON,"EMP EXPENSE REIMB, LOCAL",$159.84 ,1/23/2017
DARRELL P EATON,"EMP EXPENSE REIMB, LOCAL",$118.77 ,3/1/2017
DARRELL P EATON,"EMP EXPENSE REIMB, LOCAL",$203.30 ,4/27/2017
DARRELL P EATON,"EMP EXPENSE REIMB, LOCAL",$197.95 ,5/23/2017
DARRIN RINGO,"EMP EXPENSE REIMB, LOCAL",$70.62 ,3/30/2017
DARRYL P. MCGUIRE,"EMP EXPENSE REIMB, LOCAL",$96.30 ,3/22/2017
DARRYL PUGH,"EMP EXPENSE REIMB, LOCAL",$39.96 ,1/24/2017
DATA DISPLAY PRODUCTS,MATERIALS - INVENTORY,"$5,279.56 ",3/16/2017
DATA DISPLAY PRODUCTS,MATERIALS - INVENTORY,"$6,276.40 ",3/27/2017
DATA DISPLAY PRODUCTS,MATERIALS - INVENTORY,"$3,692 ",4/10/2017
DATA DISPLAY PRODUCTS,MATERIALS - INVENTORY,"$4,061.20 ",5/19/2017
"DATASKILL, INC.",PROFESSIONAL SERVICES,"$157,947.62 ",5/19/2017
DAVE RODRIGUEZ,"EMP EXPENSE REIMB, LOCAL",$62.35 ,1/5/2017
DAVE RODRIGUEZ,"EMP EXPENSE REIMB, LOCAL",$48.47 ,1/24/2017
DAVID A YOKUP,"EMP EXPENSE REIMB, LOCAL",$21 ,1/3/2017
DAVID B. ROBERTS,"EMP EXPENSE REIMB, LOCAL",$339.12 ,1/5/2017
DAVID B. ROBERTS,"EMP EXPENSE REIMB, LOCAL",$265.68 ,1/24/2017
DAVID B. ROBERTS,"EMP EXPENSE REIMB, LOCAL",$220.42 ,2/27/2017
DAVID B. ROBERTS,"EMP EXPENSE REIMB, LOCAL",$196.88 ,4/20/2017
DAVID B. ROBERTS,"EMP EXPENSE REIMB, LOCAL",$140.17 ,5/26/2017
DAVID BOOTH,"EMP EXPENSE REIMB, LOCAL",$141.48 ,1/23/2017
DAVID BOOTH,"EMP EXPENSE REIMB, LOCAL",$62.06 ,2/27/2017
DAVID BOOTH,"EMP EXPENSE REIMB, LOCAL",$79.18 ,3/28/2017
DAVID BOOTH,"EMP EXPENSE REIMB, LOCAL",$79.18 ,4/17/2017
DAVID BOOTH,"EMP EXPENSE REIMB, LOCAL",$98.98 ,5/25/2017
DAVID KINKADE,"EMP EXPENSE REIMB, LOCAL",$64.20 ,5/24/2017
DAVID L. MARTINEZ,"EMP EXPENSE REIMB, OUT OF TOWN","$1,316.30 ",1/3/2017
DAVID LORENTZ,"EMP EXPENSE REIMB, LOCAL",$158.36 ,2/27/2017
DAVID LORENTZ,"EMP EXPENSE REIMB, LOCAL",$46.01 ,4/11/2017
DAVID LORENTZ,"EMP EXPENSE REIMB, LOCAL",$114.49 ,5/8/2017
DAVID R. DENNISON,"EMP EXPENSE REIMB, LOCAL",$159.84 ,1/23/2017
DAVID R. DENNISON,"EMP EXPENSE REIMB, LOCAL",$237.54 ,3/1/2017
DAVID R. DENNISON,"EMP EXPENSE REIMB, LOCAL",$158.36 ,3/22/2017
DAVID R. DENNISON,"EMP EXPENSE REIMB, LOCAL",$118.77 ,4/20/2017
DAVID R. DENNISON,"EMP EXPENSE REIMB, LOCAL",$158.36 ,5/23/2017
DAVID SICKMAN,"EMP EXPENSE REIMB, LOCAL",$91.32 ,3/30/2017
DAVID W. OPILKA,TUITION REIMBURSEMENT,"$2,445 ",4/5/2017
DAWN BRUCE,TUITION REIMBURSEMENT,"$2,451 ",5/10/2017
"DAY-N-NITE, INC.",MATERIALS - NON-INVENTORY,$583.60 ,1/11/2017
"DAY-N-NITE, INC.",MISCELLANEOUS OTHER EXPENSE,$18.25 ,1/11/2017
"DAY-N-NITE, INC.",MISCELLANEOUS OTHER EXPENSE,$79.53 ,1/17/2017
"DAY-N-NITE, INC.",MISCELLANEOUS OTHER EXPENSE,$199.95 ,1/19/2017
"DAY-N-NITE, INC.",MISCELLANEOUS OTHER EXPENSE,$69.90 ,1/24/2017
"DAY-N-NITE, INC.",MISCELLANEOUS OTHER EXPENSE,$7.50 ,2/6/2017
"DAY-N-NITE, INC.",MISCELLANEOUS OTHER EXPENSE,$437.75 ,2/14/2017
"DAY-N-NITE, INC.",MATERIALS - NON-INVENTORY,$83.45 ,2/21/2017
"DAY-N-NITE, INC.",MISCELLANEOUS OTHER EXPENSE,$6 ,2/27/2017
"DAY-N-NITE, INC.",MISCELLANEOUS OTHER EXPENSE,$745.50 ,3/13/2017
"DAY-N-NITE, INC.",MISCELLANEOUS OTHER EXPENSE,$47.50 ,3/20/2017
"DAY-N-NITE, INC.",MISCELLANEOUS OTHER EXPENSE,$653 ,4/3/2017
"DAY-N-NITE, INC.",MISCELLANEOUS OTHER EXPENSE,$51.45 ,4/10/2017
"DAY-N-NITE, INC.",MISCELLANEOUS OTHER EXPENSE,$61.50 ,4/13/2017
"DAY-N-NITE, INC.",MATERIALS - NON-INVENTORY,$147.50 ,4/24/2017
"DAY-N-NITE, INC.",MISCELLANEOUS OTHER EXPENSE,$421.43 ,5/4/2017
"DAY-N-NITE, INC.",MISCELLANEOUS OTHER EXPENSE,$85 ,5/15/2017
"DAY-N-NITE, INC.",MISCELLANEOUS OTHER EXPENSE,$158.10 ,5/19/2017
DEBORAH G. BROWN,"EMP EXPENSE REIMB, LOCAL",$79.18 ,5/25/2017
DEBORAH JAMROS,"EMP EXPENSE REIMB, OUT OF TOWN",$768.87 ,2/8/2017
DECARRI WESTBROOKS,"EMP EXPENSE REIMB, LOCAL",$12.88 ,4/5/2017
DECKER BROS. CONSTRUCTION,OUTSIDE SERVICES,$475 ,2/13/2017
DECKER BROTHERS CONSTRUCTION,OUTSIDE SERVICES,"$3,400 ",5/8/2017
"DELFORD INDUSTRIES, INC.",MATERIALS & ASSETS - CAPITAL,"$1,311.30 ",4/13/2017
"DELFORD INDUSTRIES, INC.",MATERIALS & ASSETS - CAPITAL,"$8,460.90 ",5/2/2017
"DELFORD INDUSTRIES, INC.",MATERIALS - INVENTORY,$625 ,5/3/2017
"DELFORD INDUSTRIES, INC.",MATERIALS - INVENTORY,$760 ,5/4/2017
DELTA INDUSTRIES INC.,MATERIALS - NON-INVENTORY,"$4,997.25 ",1/9/2017
DELTA INDUSTRIES INC.,MISCELLANEOUS OTHER EXPENSE,$82.60 ,1/9/2017
DELTA INDUSTRIES INC.,OUTSIDE SERVICES,$482 ,3/15/2017
DELTA INDUSTRIES INC.,OUTSIDE SERVICES,$383.25 ,5/15/2017
DELTA SONIC CAR WASH SYSTEM INC,OUTSIDE SERVICES,$120.50 ,1/10/2017
DELTA SONIC CAR WASH SYSTEM INC,OUTSIDE SERVICES,$90.50 ,2/9/2017
DELTA SONIC CAR WASH SYSTEM INC,OUTSIDE SERVICES,$75.50 ,3/1/2017
DELTA SONIC CAR WASH SYSTEM INC,OUTSIDE SERVICES,$146 ,3/27/2017
DELTA SONIC CAR WASH SYSTEM INC,OUTSIDE SERVICES,$214.50 ,5/15/2017
DELTA SONIC CAR WASH SYSTEM INC,OUTSIDE SERVICES,$155 ,5/19/2017
DEMOND PORTER,"EMP EXPENSE REIMB, LOCAL",$42.54 ,5/26/2017
DEMOULIN BROTHERS & CO.,MISCELLANEOUS OTHER EXPENSE,"$22,193.18 ",1/10/2017
DEMOULIN BROTHERS & CO.,MISCELLANEOUS OTHER EXPENSE,"$64,507.54 ",2/23/2017
DEMOULIN BROTHERS & CO.,MISCELLANEOUS OTHER EXPENSE,"$80,108.88 ",2/27/2017
DEMOULIN BROTHERS & CO.,MISCELLANEOUS OTHER EXPENSE,"$54,818.70 ",3/23/2017
DEMOULIN BROTHERS & CO.,FRINGE BENEFIT,"$4,920.76 ",3/23/2017
DEMOULIN BROTHERS & CO.,FRINGE BENEFIT,"$14,317.55 ",3/27/2017
DEMOULIN BROTHERS & CO.,MISCELLANEOUS OTHER EXPENSE,"$1,809.17 ",4/6/2017
DEMOULIN BROTHERS & CO.,MISCELLANEOUS OTHER EXPENSE,"$19,529.27 ",4/27/2017
DEMOULIN BROTHERS & CO.,MISCELLANEOUS OTHER EXPENSE,"$16,409.05 ",5/15/2017
DEMOULIN BROTHERS & CO.,MISCELLANEOUS OTHER EXPENSE,"$6,159.86 ",5/17/2017
DENISE PEREZ,"EMP EXPENSE REIMB, LOCAL",$128.88 ,1/3/2017
DENISE PEREZ,"EMP EXPENSE REIMB, LOCAL",$35.51 ,1/24/2017
DENISE PEREZ,"EMP EXPENSE REIMB, LOCAL",$210.35 ,2/14/2017
DENISE PEREZ,"EMP EXPENSE REIMB, LOCAL",$151.99 ,4/6/2017
DENISE PEREZ,"EMP EXPENSE REIMB, LOCAL",$58.58 ,5/8/2017
DEPAUL UNIVERSITY CAREER CENTER,MISCELLANEOUS OTHER EXPENSE,$175 ,3/15/2017
DEPT OF WATER SUPER OF WATER,UTILITIES,$7.64 ,1/9/2017
DEPT OF WATER SUPER OF WATER,UTILITIES,"$1,276.16 ",1/17/2017
DEPT OF WATER SUPER OF WATER,UTILITIES,"$14,731.84 ",1/23/2017
DEPT OF WATER SUPER OF WATER,UTILITIES,"$22,736.88 ",1/30/2017
DEPT OF WATER SUPER OF WATER,UTILITIES,$98.90 ,2/7/2017
DEPT OF WATER SUPER OF WATER,UTILITIES,"$6,023.94 ",2/21/2017
DEPT OF WATER SUPER OF WATER,UTILITIES,"$21,962.92 ",2/23/2017
DEPT OF WATER SUPER OF WATER,UTILITIES,"$14,148.32 ",2/27/2017
DEPT OF WATER SUPER OF WATER,UTILITIES,"$5,055.52 ",2/28/2017
DEPT OF WATER SUPER OF WATER,UTILITIES,$892.16 ,3/1/2017
DEPT OF WATER SUPER OF WATER,UTILITIES,"$1,504.66 ",3/13/2017
DEPT OF WATER SUPER OF WATER,UTILITIES,"$6,389.96 ",3/21/2017
DEPT OF WATER SUPER OF WATER,UTILITIES,"$22,284.16 ",3/22/2017
DEPT OF WATER SUPER OF WATER,UTILITIES,"$5,098.82 ",4/3/2017
DEPT OF WATER SUPER OF WATER,UTILITIES,"$3,391.66 ",4/5/2017
DEPT OF WATER SUPER OF WATER,UTILITIES,"$16,634.50 ",4/13/2017
DEPT OF WATER SUPER OF WATER,UTILITIES,"$7,780 ",4/19/2017
DEPT OF WATER SUPER OF WATER,UTILITIES,"$11,437.78 ",4/26/2017
DEPT OF WATER SUPER OF WATER,UTILITIES,"$1,166.64 ",5/4/2017
DEPT OF WATER SUPER OF WATER,UTILITIES,$32.84 ,5/15/2017
DEPT OF WATER SUPER OF WATER,UTILITIES,"$18,208.16 ",5/16/2017
DEPT OF WATER SUPER OF WATER,UTILITIES,"$17,023.26 ",5/25/2017
DEPT OF WATER SUPER OF WATER,UTILITIES,$885.90 ,5/26/2017
DEREK STIPATI,"EMP EXPENSE REIMB, LOCAL",$108.61 ,2/13/2017
DEREK STIPATI,"EMP EXPENSE REIMB, LOCAL",$115.56 ,3/20/2017
DERONZO BRIM,"EMP EXPENSE REIMB, LOCAL",$71.28 ,1/24/2017
DESIGN GROUP SIGNAGE CORP.,MATERIALS - INVENTORY,"$2,025 ",1/11/2017
DESIGN GROUP SIGNAGE CORP.,MATERIALS - INVENTORY,$478.50 ,1/17/2017
DESIGN GROUP SIGNAGE CORP.,MATERIALS - INVENTORY,"$2,089.75 ",1/24/2017
DESIGN GROUP SIGNAGE CORP.,MATERIALS - INVENTORY,"$1,425.45 ",1/26/2017
DESIGN GROUP SIGNAGE CORP.,MATERIALS - INVENTORY,$460 ,2/9/2017
DESIGN GROUP SIGNAGE CORP.,MATERIALS - INVENTORY,$616.25 ,3/1/2017
DESIGN GROUP SIGNAGE CORP.,MATERIALS - INVENTORY,$785.58 ,3/8/2017
DESIGN GROUP SIGNAGE CORP.,MATERIALS - INVENTORY,"$6,776.50 ",3/13/2017
DESIGN GROUP SIGNAGE CORP.,MATERIALS - INVENTORY,$857.50 ,3/20/2017
DESIGN GROUP SIGNAGE CORP.,MATERIALS - INVENTORY,"$2,839 ",3/22/2017
DESIGN GROUP SIGNAGE CORP.,MATERIALS - INVENTORY,$195 ,3/23/2017
DESIGN GROUP SIGNAGE CORP.,CONSTRUCTION,"$27,391.85 ",3/27/2017
DESIGN GROUP SIGNAGE CORP.,MATERIALS - INVENTORY,"$1,073.50 ",4/5/2017
DESIGN GROUP SIGNAGE CORP.,MATERIALS & ASSETS - CAPITAL,"$3,491.60 ",4/5/2017
DESIGN GROUP SIGNAGE CORP.,MATERIALS - INVENTORY,"$1,885 ",4/10/2017
DESIGN GROUP SIGNAGE CORP.,MATERIALS - INVENTORY,"$4,034.25 ",4/24/2017
DESIGN GROUP SIGNAGE CORP.,MATERIALS - INVENTORY,"$5,629.70 ",4/25/2017
DESIGN GROUP SIGNAGE CORP.,MATERIALS - INVENTORY,$58 ,5/4/2017
DESIGN GROUP SIGNAGE CORP.,MATERIALS - INVENTORY,$702 ,5/15/2017
DESIGN GROUP SIGNAGE CORP.,MATERIALS - INVENTORY,$416 ,5/17/2017
DESIGN GROUP SIGNAGE CORP.,MATERIALS - INVENTORY,"$2,006.25 ",5/19/2017
DEVIN L. BURKS,"EMP EXPENSE REIMB, LOCAL",$199.80 ,1/23/2017
DEVIN L. BURKS,"EMP EXPENSE REIMB, LOCAL",$123.27 ,3/6/2017
DEVIN L. BURKS,"EMP EXPENSE REIMB, LOCAL",$39.59 ,4/3/2017
DEVIN L. BURKS,"EMP EXPENSE REIMB, LOCAL",$22.47 ,5/8/2017
DEVIN L. BURKS,"EMP EXPENSE REIMB, LOCAL",$54.25 ,5/25/2017
DEX ONE,UTILITIES,$19 ,1/9/2017
DEX ONE,UTILITIES,$131.79 ,1/24/2017
DEX ONE,UTILITIES,$93.50 ,3/9/2017
DEX ONE,UTILITIES,$113.78 ,4/10/2017
DEXTER LOCK SERVICE INC,OUTSIDE SERVICES,$47 ,1/12/2017
DEXTER LOCK SERVICE INC,OUTSIDE SERVICES,$47 ,2/14/2017
DEXTER LOCK SERVICE INC,OUTSIDE SERVICES,$22 ,4/3/2017
DEXTER LOCK SERVICE INC,OUTSIDE SERVICES,$32 ,4/10/2017
DEXTER LOCK SERVICE INC,OUTSIDE SERVICES,$44 ,5/4/2017
DICK'S INDUSTRIAL SUPPLY,MATERIALS & ASSETS - CAPITAL,"$1,843 ",1/31/2017
"DIEBOLD, INC.",OUTSIDE SERVICES,$213.58 ,1/23/2017
"DIEBOLD, INC.",OUTSIDE SERVICES,"$1,375.77 ",1/30/2017
"DIEBOLD, INC.",OUTSIDE SERVICES,$481 ,4/11/2017
"DIEBOLD, INC.",OUTSIDE SERVICES,$125.79 ,4/12/2017
"DIESEL ELECTRICAL EQUIPMENT, INC.",MATERIALS - NON-INVENTORY,"$8,268 ",2/9/2017
"DIESEL ELECTRICAL EQUIPMENT, INC.",MATERIALS & ASSETS - CAPITAL,"$4,129.20 ",2/13/2017
"DIESEL ELECTRICAL EQUIPMENT, INC.",MATERIALS & ASSETS - CAPITAL,"$2,790 ",3/7/2017
"DIESEL ELECTRICAL EQUIPMENT, INC.",MATERIALS & ASSETS - CAPITAL,"$4,185 ",4/10/2017
"DIESEL ELECTRICAL EQUIPMENT, INC.",MATERIALS & ASSETS - CAPITAL,"$2,790 ",4/18/2017
"DIESEL ELECTRICAL EQUIPMENT, INC.",MATERIALS & ASSETS - CAPITAL,"$2,790 ",5/1/2017
DIGI-KEY CORP.,MATERIALS - NON-INVENTORY,"$3,431.40 ",4/6/2017
DIGI-KEY CORP.,MISCELLANEOUS OTHER EXPENSE,$10.75 ,4/6/2017
DIRECTIONS,PROFESSIONAL SERVICES,"$4,125 ",2/16/2017
"DIXIE PRECAST, INC.",MATERIALS - INVENTORY,$640 ,1/17/2017
"DIXIE PRECAST, INC.",MATERIALS - NON-INVENTORY,"$16,470 ",4/13/2017
"DIXIE PRECAST, INC.",MATERIALS - INVENTORY,"$6,250 ",5/9/2017
"DIXIE PRECAST, INC.",MATERIALS - CAPITAL,"$9,750 ",5/18/2017
DLL INC.,OUTSIDE SERVICES,"$1,995 ",1/30/2017
DLL INC.,OUTSIDE SERVICES,"$1,595 ",1/30/2017
DLL INC.,OUTSIDE SERVICES,"$4,785 ",2/6/2017
DLL INC.,OUTSIDE SERVICES,"$5,440 ",3/27/2017
DLL INC.,OUTSIDE SERVICES,"$2,595 ",4/24/2017
DONALD A. ORSENO,"EMP EXPENSE REIMB, LOCAL",$21.50 ,1/23/2017
DONALD A. ORSENO,"EMP EXPENSE REIMB, LOCAL",$9.25 ,3/6/2017
DONALD A. ORSENO,"EMP EXPENSE REIMB, OUT OF TOWN","$2,736.74 ",4/6/2017
DONALD A. ORSENO,"EMP EXPENSE REIMB, OUT OF TOWN",$649.78 ,5/19/2017
DONALD D. LEWIS,"EMP EXPENSE REIMB, LOCAL",$39.96 ,1/3/2017
DONALD D. LEWIS,"EMP EXPENSE REIMB, LOCAL",$79.18 ,3/28/2017
DONALD D. LEWIS,"EMP EXPENSE REIMB, LOCAL",$79.18 ,5/2/2017
DONALD D. LEWIS,"EMP EXPENSE REIMB, LOCAL",$158.36 ,5/24/2017
DONNA J. ANDERSON,"EMP EXPENSE REIMB, LOCAL",$62.01 ,2/23/2017
DONNA J. ANDERSON,"EMP EXPENSE REIMB, LOCAL",$85.85 ,5/8/2017
DOOR SYSTEMS,OUTSIDE SERVICES,"$15,889.80 ",5/15/2017
DORIS WILLIAMS,"EMP EXPENSE REIMB, LOCAL",$98.28 ,1/3/2017
DORIS WILLIAMS,"EMP EXPENSE REIMB, LOCAL",$150.23 ,1/24/2017
DORIS WILLIAMS,"EMP EXPENSE REIMB, LOCAL",$187.25 ,5/26/2017
"DOUCETTE INDUSTRIES, INC.",MATERIALS - INVENTORY,$389.12 ,1/17/2017
"DOUCETTE INDUSTRIES, INC.",MATERIALS - INVENTORY,$97.28 ,2/9/2017
DRIVE FRIEDLER JOINT VENTURE,MISCELLANEOUS OTHER EXPENSE,"$182,793.54 ",5/17/2017
DUANE PERRY,"EMP EXPENSE REIMB, OUT OF TOWN",$241.50 ,5/16/2017
DUN & BRADSTREET,MISCELLANEOUS OTHER EXPENSE,"$3,988 ",3/15/2017
DUNNET BAY CONSTRUCTION CO.,CONSTRUCTION,"$116,828.43 ",1/24/2017
DUNNET BAY CONSTRUCTION CO.,CONSTRUCTION,"$116,828.45 ",1/24/2017
DUNNET BAY CONSTRUCTION CO.,CONSTRUCTION,"$1,646.75 ",5/1/2017
DUNNET BAY CONSTRUCTION CO.,CONSTRUCTION,"$1,646.75 ",5/1/2017
DUO-GARD INDUSTRIES INC.,OUTSIDE SERVICES - CAPITAL,"$5,859 ",2/6/2017
DUO-GARD INDUSTRIES INC.,MATERIALS - CAPITAL,"$1,160 ",3/30/2017
DUO-GARD INDUSTRIES INC.,MATERIALS - CAPITAL,"$23,436 ",4/3/2017
"DURABLE ROOFING SOLUTIONS, INC.",OUTSIDE SERVICES,"$5,312 ",1/25/2017
DUROX CO.,MATERIALS - INVENTORY,$903.36 ,1/24/2017
DUROX CO.,MATERIALS - INVENTORY,"$1,029.30 ",1/30/2017
DUROX CO.,MATERIALS - INVENTORY,$338.88 ,2/9/2017
DUROX CO.,MATERIALS - INVENTORY,$508.32 ,2/13/2017
DUROX CO.,MATERIALS - INVENTORY,"$2,160.94 ",3/1/2017
DUROX CO.,MATERIALS - INVENTORY,$941 ,3/6/2017
DUROX CO.,MATERIALS - INVENTORY,"$2,009.86 ",3/20/2017
DUROX CO.,MATERIALS - INVENTORY,$473.88 ,3/23/2017
DUROX CO.,MATERIALS - INVENTORY,"$1,196.63 ",3/30/2017
DUROX CO.,MATERIALS - INVENTORY,"$7,560 ",4/3/2017
DUROX CO.,MATERIALS - INVENTORY,"$2,158.84 ",5/4/2017
DUROX CO.,MATERIALS - INVENTORY,$650.26 ,5/18/2017
DURRELL GARTH,"EMP EXPENSE REIMB, LOCAL",$93.09 ,2/27/2017
DURRELL GARTH,"EMP EXPENSE REIMB, LOCAL",$148.73 ,3/22/2017
DYKEMA GOSSETT PLLC,PROFESSIONAL SERVICES,"$1,232 ",2/6/2017
"DYNAMIC METALS, LLC",MATERIALS & ASSETS - CAPITAL,"$7,716.18 ",1/3/2017
"DYNAMIC METALS, LLC",MATERIALS & ASSETS - CAPITAL,"$25,720.60 ",1/9/2017
"DYNAMIC METALS, LLC",MATERIALS & ASSETS - CAPITAL,"$42,372.69 ",1/23/2017
"DYNAMIC METALS, LLC",MATERIALS & ASSETS - CAPITAL,"$7,136.61 ",1/24/2017
"DYNAMIC METALS, LLC",MATERIALS & ASSETS - CAPITAL,"$47,577.40 ",1/25/2017
"DYNAMIC METALS, LLC",MATERIALS & ASSETS - CAPITAL,"$32,857.21 ",1/31/2017
"DYNAMIC METALS, LLC",MATERIALS & ASSETS - CAPITAL,"$54,013.26 ",2/16/2017
"DYNAMIC METALS, LLC",MATERIALS & ASSETS - CAPITAL,"$14,273.22 ",2/23/2017
"DYNAMIC METALS, LLC",MATERIALS & ASSETS - CAPITAL,"$23,788.70 ",2/27/2017
"DYNAMIC METALS, LLC",MATERIALS & ASSETS - CAPITAL,"$36,649 ",2/28/2017
"DYNAMIC METALS, LLC",MATERIALS & ASSETS - CAPITAL,"$76,123.84 ",3/1/2017
"DYNAMIC METALS, LLC",MATERIALS & ASSETS - CAPITAL,"$12,860.30 ",3/13/2017
"DYNAMIC METALS, LLC",MATERIALS & ASSETS - CAPITAL,"$47,577.40 ",3/20/2017
"DYNAMIC METALS, LLC",MATERIALS & ASSETS - CAPITAL,"$23,788.70 ",3/21/2017
"DYNAMIC METALS, LLC",MATERIALS & ASSETS - CAPITAL,"$49,509.30 ",3/27/2017
"DYNAMIC METALS, LLC",MATERIALS & ASSETS - CAPITAL,"$15,432.36 ",4/3/2017
"DYNAMIC METALS, LLC",MATERIALS & ASSETS - CAPITAL,"$25,720.60 ",4/5/2017
"DYNAMIC METALS, LLC",MATERIALS & ASSETS - CAPITAL,"$47,577.40 ",4/12/2017
"DYNAMIC METALS, LLC",MATERIALS & ASSETS - CAPITAL,"$23,788.70 ",4/26/2017
"DYNAMIC METALS, LLC",MATERIALS & ASSETS - CAPITAL,"$35,042.89 ",5/8/2017
"DYNAMIC METALS, LLC",MATERIALS & ASSETS - CAPITAL,"$15,432.36 ",5/15/2017
DYNAMICS EDGE. INC.,OUTSIDE SERVICES,"$7,479 ",2/13/2017
"D2K TRAFFIC EQUIPMENT & DESIGN, LLC",OUTSIDE SERVICES,"$2,075.25 ",1/10/2017
E & R TOWING,OUTSIDE SERVICES,$160.65 ,1/3/2017
E & R TOWING,OUTSIDE SERVICES,"$5,078.54 ",1/3/2017
E & R TOWING,MISCELLANEOUS OTHER EXPENSE,$315.15 ,1/3/2017
E & R TOWING,OUTSIDE SERVICES,$322.18 ,1/9/2017
E & R TOWING,OUTSIDE SERVICES,"$1,217.11 ",1/9/2017
E & R TOWING,MISCELLANEOUS OTHER EXPENSE,$137.55 ,1/9/2017
E & R TOWING,OUTSIDE SERVICES,$262.50 ,1/10/2017
E & R TOWING,OUTSIDE SERVICES,"$1,677.99 ",1/10/2017
E & R TOWING,MISCELLANEOUS OTHER EXPENSE,"$1,544.75 ",1/10/2017
E & R TOWING,OUTSIDE SERVICES,$719.26 ,1/11/2017
E & R TOWING,OUTSIDE SERVICES,"$5,376.67 ",1/11/2017
E & R TOWING,MISCELLANEOUS OTHER EXPENSE,$32.55 ,1/11/2017
E & R TOWING,OUTSIDE SERVICES,$191.10 ,1/23/2017
E & R TOWING,OUTSIDE SERVICES,"$1,626.46 ",1/23/2017
E & R TOWING,MISCELLANEOUS OTHER EXPENSE,$138.20 ,1/23/2017
E & R TOWING,OUTSIDE SERVICES,$498.40 ,1/24/2017
E & R TOWING,MISCELLANEOUS OTHER EXPENSE,$136.50 ,1/24/2017
E & R TOWING,OUTSIDE SERVICES,$133.88 ,1/30/2017
E & R TOWING,OUTSIDE SERVICES,$922.50 ,1/30/2017
E & R TOWING,MISCELLANEOUS OTHER EXPENSE,$35.70 ,1/30/2017
E & R TOWING,OUTSIDE SERVICES,$667.84 ,1/31/2017
E & R TOWING,MISCELLANEOUS OTHER EXPENSE,$251.80 ,1/31/2017
E & R TOWING,OUTSIDE SERVICES,$275 ,2/7/2017
E & R TOWING,OUTSIDE SERVICES,"$3,691.16 ",2/7/2017
E & R TOWING,MISCELLANEOUS OTHER EXPENSE,$541.55 ,2/7/2017
E & R TOWING,OUTSIDE SERVICES,"$1,804.20 ",2/9/2017
E & R TOWING,MISCELLANEOUS OTHER EXPENSE,$35.70 ,2/9/2017
E & R TOWING,OUTSIDE SERVICES,$898.13 ,2/13/2017
E & R TOWING,OUTSIDE SERVICES,"$3,749.76 ",2/13/2017
E & R TOWING,MISCELLANEOUS OTHER EXPENSE,$170.75 ,2/13/2017
E & R TOWING,OUTSIDE SERVICES,$77.55 ,2/14/2017
E & R TOWING,OUTSIDE SERVICES,$393.75 ,2/21/2017
E & R TOWING,OUTSIDE SERVICES,$98.11 ,2/21/2017
E & R TOWING,MISCELLANEOUS OTHER EXPENSE,$235.85 ,2/21/2017
E & R TOWING,OUTSIDE SERVICES,$105 ,2/23/2017
E & R TOWING,OUTSIDE SERVICES,$855.37 ,2/23/2017
E & R TOWING,OUTSIDE SERVICES,$549.53 ,2/27/2017
E & R TOWING,MISCELLANEOUS OTHER EXPENSE,$271.55 ,2/27/2017
E & R TOWING,OUTSIDE SERVICES,$789.22 ,3/2/2017
E & R TOWING,MISCELLANEOUS OTHER EXPENSE,$162.75 ,3/2/2017
E & R TOWING,OUTSIDE SERVICES,$203.66 ,3/6/2017
E & R TOWING,MISCELLANEOUS OTHER EXPENSE,$407.27 ,3/6/2017
E & R TOWING,OUTSIDE SERVICES,"$3,080.14 ",3/7/2017
E & R TOWING,OUTSIDE SERVICES,"$1,793.16 ",3/13/2017
E & R TOWING,MISCELLANEOUS OTHER EXPENSE,$103.95 ,3/13/2017
E & R TOWING,OUTSIDE SERVICES,$618.75 ,3/14/2017
E & R TOWING,OUTSIDE SERVICES,"$3,868.61 ",3/14/2017
E & R TOWING,MISCELLANEOUS OTHER EXPENSE,$89.78 ,3/14/2017
E & R TOWING,OUTSIDE SERVICES,"$3,070.90 ",3/20/2017
E & R TOWING,MISCELLANEOUS OTHER EXPENSE,$162.75 ,3/20/2017
E & R TOWING,MISCELLANEOUS OTHER EXPENSE,$159.70 ,3/21/2017
E & R TOWING,OUTSIDE SERVICES,"$1,910.14 ",3/27/2017
E & R TOWING,MISCELLANEOUS OTHER EXPENSE,$486.78 ,3/27/2017
E & R TOWING,MISCELLANEOUS OTHER EXPENSE,$37.40 ,3/28/2017
E & R TOWING,OUTSIDE SERVICES,$343.75 ,3/30/2017
E & R TOWING,OUTSIDE SERVICES,"$1,552.97 ",3/30/2017
E & R TOWING,OUTSIDE SERVICES,$32.55 ,4/3/2017
E & R TOWING,MISCELLANEOUS OTHER EXPENSE,$501.05 ,4/3/2017
E & R TOWING,OUTSIDE SERVICES,$111.38 ,4/6/2017
E & R TOWING,OUTSIDE SERVICES,$936.04 ,4/10/2017
E & R TOWING,MISCELLANEOUS OTHER EXPENSE,$265.25 ,4/10/2017
E & R TOWING,OUTSIDE SERVICES,$262.50 ,4/11/2017
E & R TOWING,OUTSIDE SERVICES,$749.54 ,4/11/2017
E & R TOWING,OUTSIDE SERVICES,$640.08 ,4/12/2017
E & R TOWING,MISCELLANEOUS OTHER EXPENSE,$130.20 ,4/12/2017
E & R TOWING,OUTSIDE SERVICES,$171.80 ,4/13/2017
E & R TOWING,MISCELLANEOUS OTHER EXPENSE,$107.35 ,4/13/2017
E & R TOWING,OUTSIDE SERVICES,$86.49 ,4/18/2017
E & R TOWING,OUTSIDE SERVICES,$621.50 ,4/27/2017
E & R TOWING,OUTSIDE SERVICES,"$5,726.02 ",4/27/2017
E & R TOWING,MISCELLANEOUS OTHER EXPENSE,$203.30 ,4/27/2017
E & R TOWING,OUTSIDE SERVICES,$930.87 ,5/8/2017
E & R TOWING,MISCELLANEOUS OTHER EXPENSE,$172.30 ,5/8/2017
E & R TOWING,OUTSIDE SERVICES,$147 ,5/15/2017
E & R TOWING,OUTSIDE SERVICES,"$7,413.06 ",5/15/2017
E & R TOWING,MISCELLANEOUS OTHER EXPENSE,$307.15 ,5/15/2017
E & R TOWING,OUTSIDE SERVICES,$315 ,5/18/2017
E & R TOWING,OUTSIDE SERVICES,"$3,563.34 ",5/18/2017
E & R TOWING,MISCELLANEOUS OTHER EXPENSE,$572.35 ,5/18/2017
E & R TOWING,OUTSIDE SERVICES,$490 ,5/19/2017
E & R TOWING,OUTSIDE SERVICES,"$1,936.56 ",5/19/2017
E & R TOWING,MISCELLANEOUS OTHER EXPENSE,$838.10 ,5/19/2017
EDGAR ALVARADO,"EMP EXPENSE REIMB, LOCAL",$39.96 ,1/23/2017
EDGAR ALVARADO,"EMP EXPENSE REIMB, LOCAL",$197.95 ,2/27/2017
EDGAR ALVARADO,"EMP EXPENSE REIMB, LOCAL",$158.36 ,3/22/2017
EDGAR ALVARADO,"EMP EXPENSE REIMB, LOCAL",$79.18 ,4/17/2017
EDGAR ALVARADO,"EMP EXPENSE REIMB, LOCAL",$118.77 ,5/25/2017
"EDUARDO ANDRADE, JR.","EMP EXPENSE REIMB, LOCAL",$46.44 ,1/24/2017
"EDUARDO ANDRADE, JR.","EMP EXPENSE REIMB, LOCAL",$34.24 ,2/27/2017
"EDUARDO ANDRADE, JR.","EMP EXPENSE REIMB, LOCAL",$77.04 ,3/20/2017
"EDUARDO ANDRADE, JR.","EMP EXPENSE REIMB, LOCAL",$80.25 ,5/15/2017
"EDUARDO ANDRADE, JR.","EMP EXPENSE REIMB, LOCAL",$376.64 ,5/25/2017
EDWARD C. BLAISE,"EMP EXPENSE REIMB, LOCAL",$8 ,3/28/2017
EDWARD P. JAROSIEWICZ,"EMP EXPENSE REIMB, LOCAL",$42.68 ,1/24/2017
EDWARD P. JAROSIEWICZ,"EMP EXPENSE REIMB, LOCAL",$103.07 ,2/14/2017
"EDWIN BOGAN,SR.","EMP EXPENSE REIMB, LOCAL",$125.19 ,2/27/2017
EEOC TRAINING INSTITUTE,PROFESSIONAL SERVICES,"$1,500 ",5/17/2017
EEOC TRAINING INSTITUTE,PROFESSIONAL SERVICES,"$1,500 ",5/17/2017
EEOC TRAINING INSTITUTE,PROFESSIONAL SERVICES,"$1,500 ",5/17/2017
EFFICIENCY REPORTING,MISCELLANEOUS OTHER EXPENSE,$274 ,3/13/2017
"ELCON, INC.",MATERIALS - NON-INVENTORY,"$1,260 ",1/17/2017
"ELCON, INC.",OUTSIDE SERVICES,$225 ,1/17/2017
"ELCON, INC.",MATERIALS - INVENTORY,"$1,200 ",1/18/2017
"ELCON, INC.",MATERIALS - NON-INVENTORY,$410 ,1/23/2017
"ELCON, INC.",MATERIALS - NON-INVENTORY,$205 ,1/30/2017
"ELCON, INC.",OUTSIDE SERVICES,"$1,665 ",2/7/2017
"ELCON, INC.",MATERIALS - INVENTORY,$480 ,2/14/2017
"ELCON, INC.",OUTSIDE SERVICES,$435 ,2/22/2017
"ELCON, INC.",OUTSIDE SERVICES,$225 ,2/22/2017
"ELCON, INC.",OUTSIDE SERVICES,$225 ,2/27/2017
"ELCON, INC.",MATERIALS - INVENTORY,$480 ,3/1/2017
"ELCON, INC.",MATERIALS - INVENTORY,"$1,680 ",3/13/2017
"ELCON, INC.",OUTSIDE SERVICES,$450 ,3/22/2017
"ELCON, INC.",MATERIALS - NON-INVENTORY,$685 ,3/22/2017
"ELCON, INC.",OUTSIDE SERVICES,$225 ,3/22/2017
"ELCON, INC.",OUTSIDE SERVICES,"$2,049 ",3/27/2017
"ELCON, INC.",OUTSIDE SERVICES,$435 ,3/27/2017
"ELCON, INC.",MATERIALS - INVENTORY,$480 ,4/3/2017
"ELCON, INC.",MATERIALS - INVENTORY,"$1,440 ",4/4/2017
"ELCON, INC.",OUTSIDE SERVICES,"$2,049 ",4/10/2017
"ELCON, INC.",MATERIALS - NON-INVENTORY,$410 ,4/18/2017
"ELCON, INC.",OUTSIDE SERVICES,$210 ,4/18/2017
"ELCON, INC.",MATERIALS - INVENTORY,"$1,440 ",4/27/2017
"ELCON, INC.",OUTSIDE SERVICES,$205 ,5/17/2017
"ELCON, INC.",OUTSIDE SERVICES,$205 ,5/18/2017
ELDY LEMBE,TUITION REIMBURSEMENT,$218 ,1/17/2017
ELEAZAR N. ALVARADO,"EMP EXPENSE REIMB, LOCAL",$208.38 ,1/3/2017
ELEAZAR N. ALVARADO,"EMP EXPENSE REIMB, LOCAL",$161.95 ,1/24/2017
ELEAZAR N. ALVARADO,"EMP EXPENSE REIMB, LOCAL",$147.89 ,1/31/2017
ELEAZAR N. ALVARADO,"EMP EXPENSE REIMB, LOCAL",$331.11 ,3/8/2017
ELEAZAR N. ALVARADO,"EMP EXPENSE REIMB, LOCAL",$13.63 ,3/21/2017
ELEAZAR N. ALVARADO,"EMP EXPENSE REIMB, LOCAL",$201.41 ,4/3/2017
ELEAZAR N. ALVARADO,"EMP EXPENSE REIMB, LOCAL",$312.91 ,4/17/2017
ELEAZAR N. ALVARADO,"EMP EXPENSE REIMB, LOCAL",$243.10 ,5/8/2017
ELEAZAR N. ALVARADO,"EMP EXPENSE REIMB, LOCAL",$243.97 ,5/26/2017
"ELECTRO WIRE, INC.",MATERIALS - INVENTORY,"$1,090 ",1/9/2017
"ELECTRO WIRE, INC.",MATERIALS - INVENTORY,$980 ,1/30/2017
"ELECTRO WIRE, INC.",MATERIALS - INVENTORY,"$3,134 ",1/31/2017
"ELECTRO WIRE, INC.",MATERIALS - NON-INVENTORY,"$1,472 ",2/9/2017
"ELECTRO WIRE, INC.",MATERIALS - INVENTORY,"$4,024 ",2/14/2017
"ELECTRO WIRE, INC.",MATERIALS - INVENTORY,"$4,581.28 ",2/21/2017
"ELECTRO WIRE, INC.",MATERIALS - INVENTORY,"$4,290 ",3/1/2017
"ELECTRO WIRE, INC.",MATERIALS - INVENTORY,"$5,208.40 ",3/13/2017
"ELECTRO WIRE, INC.",MATERIALS - INVENTORY,$560 ,3/15/2017
"ELECTRO WIRE, INC.",MATERIALS - INVENTORY,"$1,120 ",3/23/2017
"ELECTRO WIRE, INC.",MATERIALS - INVENTORY,"$71,428.32 ",4/3/2017
"ELECTRO WIRE, INC.",MATERIALS - INVENTORY,"$2,240 ",4/5/2017
"ELECTRO WIRE, INC.",MATERIALS - INVENTORY,"$17,501 ",4/6/2017
"ELECTRO WIRE, INC.",MATERIALS - INVENTORY,"$30,010.34 ",4/10/2017
"ELECTRO WIRE, INC.",MATERIALS - INVENTORY,"$4,842 ",4/12/2017
"ELECTRO WIRE, INC.",MATERIALS - INVENTORY,"$1,081.28 ",4/17/2017
"ELECTRO WIRE, INC.",MATERIALS - INVENTORY,$685 ,4/27/2017
"ELECTRO WIRE, INC.",MATERIALS - INVENTORY,"$2,240 ",5/3/2017
"ELECTRO WIRE, INC.",MATERIALS - INVENTORY,"$47,174 ",5/4/2017
"ELECTRO WIRE, INC.",MATERIALS - INVENTORY,"$1,370 ",5/8/2017
"ELECTRO WIRE, INC.",MATERIALS - INVENTORY,$534 ,5/10/2017
"ELECTRO WIRE, INC.",MATERIALS - INVENTORY,"$8,550 ",5/17/2017
"ELECTRO WIRE, INC.",MATERIALS - INVENTORY,"$64,547.68 ",5/18/2017
"ELECTRO WIRE, INC.",MATERIALS - INVENTORY,"$1,370 ",5/19/2017
"ELECTRO-MECHANICAL INDUSTRIES, INC.",MATERIALS & ASSETS - CAPITAL,"$3,535 ",1/23/2017
"ELECTRO-MOTIVE DIESEL, INC.",MATERIALS - INVENTORY,"$1,719.46 ",1/4/2017
"ELECTRO-MOTIVE DIESEL, INC.",MATERIALS - INVENTORY,$114.32 ,1/9/2017
"ELECTRO-MOTIVE DIESEL, INC.",MATERIALS - INVENTORY,$434.44 ,1/11/2017
"ELECTRO-MOTIVE DIESEL, INC.",OUTSIDE SERVICES,$247.34 ,1/11/2017
"ELECTRO-MOTIVE DIESEL, INC.",MATERIALS - NON-INVENTORY,"$1,357.11 ",1/30/2017
"ELECTRO-MOTIVE DIESEL, INC.",MATERIALS - NON-INVENTORY,"$12,930.40 ",1/30/2017
"ELECTRO-MOTIVE DIESEL, INC.",OUTSIDE SERVICES,"$25,387.51 ",1/31/2017
"ELECTRO-MOTIVE DIESEL, INC.",OUTSIDE SERVICES,"$3,316.09 ",2/9/2017
ELITE ADMINISTRATION,PROFESSIONAL SERVICES,$25 ,5/26/2017
ELIZA S. STANFORD,"EMP EXPENSE REIMB, LOCAL",$4.50 ,1/4/2017
ELIZABETH A. MCNULTY,"EMP EXPENSE REIMB, LOCAL",$183.60 ,1/3/2017
ELIZABETH A. MCNULTY,"EMP EXPENSE REIMB, LOCAL",$132.84 ,1/24/2017
ELIZABETH A. MCNULTY,"EMP EXPENSE REIMB, LOCAL",$112.35 ,2/27/2017
ELIZABETH A. MCNULTY,"EMP EXPENSE REIMB, LOCAL",$39.59 ,3/30/2017
ELIZABETH A. MCNULTY,"EMP EXPENSE REIMB, LOCAL",$190.46 ,4/25/2017
ELIZE WASHINGTON,"EMP EXPENSE REIMB, LOCAL",$150.87 ,5/26/2017
ELLCON-NATIONAL****0004543906,OUTSIDE SERVICES,"$4,678.65 ",4/17/2017
ELLCON-NATIONAL****0004543906,MATERIALS - INVENTORY,"$1,899.90 ",5/18/2017
"ENGINEERED PLASTICS, INC.",MATERIALS - INVENTORY,"$26,510 ",1/3/2017
ENRIQUE ROSAS,"EMP EXPENSE REIMB, LOCAL",$32.40 ,1/4/2017
"ENVIROPLUS, INC.",CONSTRUCTION,"$26,350 ",1/31/2017
"ENVIROPLUS, INC.",CONSTRUCTION,"$26,350 ",3/20/2017
"ENVIROPLUS, INC.",CONSTRUCTION,"$26,350 ",3/28/2017
"ENVIROPLUS, INC.",OUTSIDE SERVICES,"$40,000 ",4/27/2017
ENWAVE CHICAGO INC.,UTILITIES,"$14,709.35 ",2/1/2017
ENWAVE CHICAGO INC.,UTILITIES,"$15,031.95 ",2/27/2017
ENWAVE CHICAGO INC.,UTILITIES,"$16,254.07 ",3/27/2017
ENWAVE CHICAGO INC.,UTILITIES,"$17,288.37 ",4/25/2017
ENWAVE CHICAGO INC.,UTILITIES,"$22,183.83 ",5/17/2017
EQUIPMENT WATCH,MISCELLANEOUS OTHER EXPENSE,$20 ,2/27/2017
EQUIPMENT WATCH,MISCELLANEOUS OTHER EXPENSE,"$1,320 ",2/27/2017
ERIC ASPENSON,"EMP EXPENSE REIMB, LOCAL",$77.76 ,1/24/2017
ERIC ASPENSON,"EMP EXPENSE REIMB, LOCAL",$68.48 ,2/27/2017
ERIC ASPENSON,"EMP EXPENSE REIMB, LOCAL",$85.60 ,3/28/2017
ERIC ASPENSON,"EMP EXPENSE REIMB, LOCAL",$86.67 ,5/15/2017
ERIC ASPENSON,"EMP EXPENSE REIMB, LOCAL",$68.48 ,5/25/2017
ERIC J COLE,"EMP EXPENSE REIMB, LOCAL",$118.77 ,3/1/2017
ERIC J COLE,"EMP EXPENSE REIMB, LOCAL",$158.36 ,3/21/2017
ERIC J COLE,"EMP EXPENSE REIMB, LOCAL",$79.18 ,4/27/2017
ERIC K. BALARK,"EMP EXPENSE REIMB, LOCAL",$70.62 ,3/20/2017
ERIC WATSON,"EMP EXPENSE REIMB, LOCAL",$96.30 ,3/20/2017
ERIC WATSON,"EMP EXPENSE REIMB, LOCAL",$32.10 ,4/24/2017
ERICAL GROUP INC.,OUTSIDE SERVICES,$688.70 ,5/18/2017
ERICO,MATERIALS - INVENTORY,"$1,609 ",1/3/2017
ERICO,MATERIALS - INVENTORY,"$2,058.50 ",1/10/2017
ERICO,MATERIALS - INVENTORY,"$2,906.06 ",1/17/2017
ERICO,MATERIALS - INVENTORY,"$1,906 ",2/9/2017
ERICO,MATERIALS - NON-INVENTORY,$552 ,2/9/2017
ERICO,MATERIALS - INVENTORY,"$3,002.14 ",3/2/2017
ERICO,MATERIALS - INVENTORY,$441 ,3/13/2017
ERICO,MATERIALS - INVENTORY,$323.04 ,3/23/2017
ERICO,MATERIALS - INVENTORY,$206 ,5/4/2017
ERICO,MATERIALS - INVENTORY,"$3,020.08 ",5/8/2017
ERICO,MATERIALS - INVENTORY,"$2,277.50 ",5/10/2017
ERICO,MATERIALS - INVENTORY,"$4,130.05 ",5/15/2017
ERICO,MATERIALS - NON-INVENTORY,"$2,067.20 ",5/17/2017
ERICO,MATERIALS - INVENTORY,"$6,838.66 ",5/18/2017
ERIK S. GREENE,"EMP EXPENSE REIMB, LOCAL",$45.36 ,1/23/2017
ERIK S. GREENE,"EMP EXPENSE REIMB, LOCAL",$67.41 ,2/23/2017
ERIK S. GREENE,"EMP EXPENSE REIMB, LOCAL",$44.94 ,3/28/2017
ERIK S. GREENE,"EMP EXPENSE REIMB, LOCAL",$89.88 ,5/1/2017
ERIK S. GREENE,"EMP EXPENSE REIMB, LOCAL",$89.88 ,5/24/2017
EVAN D. MCLEAN,"EMP EXPENSE REIMB, LOCAL",$58.32 ,1/11/2017
EVAN D. MCLEAN,"EMP EXPENSE REIMB, LOCAL",$185.76 ,1/24/2017
EVAN D. MCLEAN,"EMP EXPENSE REIMB, LOCAL",$115.56 ,2/14/2017
EVAN D. MCLEAN,"EMP EXPENSE REIMB, LOCAL",$93.09 ,3/22/2017
EVAN D. MCLEAN,"EMP EXPENSE REIMB, LOCAL",$68.48 ,4/25/2017
EVAN D. MCLEAN,"EMP EXPENSE REIMB, LOCAL",$208.12 ,5/23/2017
EVELISSE NAVARRO,"EMP EXPENSE REIMB, LOCAL",$207.36 ,1/24/2017
EVELISSE NAVARRO,"EMP EXPENSE REIMB, LOCAL",$120.91 ,3/22/2017
EVELISSE NAVARRO,"EMP EXPENSE REIMB, LOCAL",$119.84 ,5/26/2017
EVERGREEN SUPPLY CO.,MATERIALS - INVENTORY,$900 ,1/9/2017
EVERGREEN SUPPLY CO.,MATERIALS - INVENTORY,$240 ,1/11/2017
EVERGREEN SUPPLY CO.,MATERIALS - INVENTORY,$490 ,1/12/2017
EVERGREEN SUPPLY CO.,MATERIALS - INVENTORY,$85 ,1/17/2017
EVERGREEN SUPPLY CO.,MATERIALS - INVENTORY,"$1,440 ",2/9/2017
EVERGREEN SUPPLY CO.,MATERIALS - INVENTORY,$200 ,2/16/2017
EVERGREEN SUPPLY CO.,MATERIALS - INVENTORY,$40 ,3/2/2017
EVERGREEN SUPPLY CO.,MATERIALS - INVENTORY,$10 ,3/14/2017
EVERGREEN SUPPLY CO.,MATERIALS - INVENTORY,$740 ,3/27/2017
EVERGREEN SUPPLY CO.,MATERIALS & ASSETS - CAPITAL,"$27,850 ",4/13/2017
EVERGREEN SUPPLY CO.,MATERIALS - INVENTORY,$40 ,5/4/2017
EVERGREEN SUPPLY CO.,MATERIALS - INVENTORY,$255 ,5/18/2017
"EXAM WORKS CLINICAL SOLUTIONS, LLC",PROFESSIONAL SERVICES,"$1,000 ",1/4/2017
"EXAM WORKS CLINICAL SOLUTIONS, LLC",PROFESSIONAL SERVICES,"$1,000 ",2/7/2017
"EXAM WORKS CLINICAL SOLUTIONS, LLC",PROFESSIONAL SERVICES,"$1,000 ",3/7/2017
"EXAM WORKS CLINICAL SOLUTIONS, LLC",PROFESSIONAL SERVICES,"$2,000 ",5/16/2017
"EZTECH MFG., INC.",MATERIALS - INVENTORY,$597.04 ,1/11/2017
"EZTECH MFG., INC.",MATERIALS - INVENTORY,$597.04 ,2/22/2017
"EZTECH MFG., INC.",MATERIALS - INVENTORY,$597.04 ,3/27/2017
"EZTECH MFG., INC.",MATERIALS - INVENTORY,"$2,089.64 ",5/18/2017
"F W KLINE & SONS, INC.",OUTSIDE SERVICES,"$1,306.75 ",1/3/2017
"F W KLINE & SONS, INC.",MATERIALS - NON-INVENTORY,"$11,457 ",1/3/2017
"F W KLINE & SONS, INC.",OUTSIDE SERVICES,"$1,229.50 ",1/4/2017
"F W KLINE & SONS, INC.",OUTSIDE SERVICES,"$5,741.65 ",1/19/2017
"F W KLINE & SONS, INC.",OUTSIDE SERVICES,"$1,124.50 ",2/8/2017
"F W KLINE & SONS, INC.",OUTSIDE SERVICES,"$7,204.90 ",2/21/2017
"F W KLINE & SONS, INC.",OUTSIDE SERVICES,"$6,669.20 ",3/22/2017
"F W KLINE & SONS, INC.",MATERIALS - NON-INVENTORY,"$2,526.95 ",3/22/2017
"F W KLINE & SONS, INC.",OUTSIDE SERVICES,$523.75 ,4/24/2017
"F W KLINE & SONS, INC.",OUTSIDE SERVICES,$318.86 ,4/25/2017
"F W KLINE & SONS, INC.",OUTSIDE SERVICES,"$1,095 ",5/8/2017
"F W KLINE & SONS, INC.",MATERIALS - NON-INVENTORY,"$4,783.50 ",5/10/2017
FACTORY MOTOR PARTS,MATERIALS - INVENTORY,$74.37 ,5/15/2017
FAIVELEY TRANSPORT NORTH AMERICA,MATERIALS - INVENTORY,"$25,655.75 ",1/3/2017
FAIVELEY TRANSPORT NORTH AMERICA,MATERIALS & ASSETS - CAPITAL,"$11,040 ",1/3/2017
FAIVELEY TRANSPORT NORTH AMERICA,MATERIALS - INVENTORY,"$21,306.17 ",1/4/2017
FAIVELEY TRANSPORT NORTH AMERICA,MATERIALS - INVENTORY,"$32,341.55 ",1/9/2017
FAIVELEY TRANSPORT NORTH AMERICA,MATERIALS - INVENTORY,"$2,779.80 ",1/11/2017
FAIVELEY TRANSPORT NORTH AMERICA,MATERIALS - INVENTORY,"$4,485.54 ",1/12/2017
FAIVELEY TRANSPORT NORTH AMERICA,OUTSIDE SERVICES,"$2,924.73 ",1/12/2017
FAIVELEY TRANSPORT NORTH AMERICA,MATERIALS - NON-INVENTORY,$207.50 ,1/17/2017
FAIVELEY TRANSPORT NORTH AMERICA,MATERIALS - INVENTORY,"$39,445.27 ",1/19/2017
FAIVELEY TRANSPORT NORTH AMERICA,MATERIALS - INVENTORY,"$7,988 ",1/23/2017
FAIVELEY TRANSPORT NORTH AMERICA,MATERIALS & ASSETS - CAPITAL,"$5,888 ",1/23/2017
FAIVELEY TRANSPORT NORTH AMERICA,MATERIALS - INVENTORY,"$2,062.68 ",1/31/2017
FAIVELEY TRANSPORT NORTH AMERICA,MATERIALS - INVENTORY,"$17,474.36 ",2/8/2017
FAIVELEY TRANSPORT NORTH AMERICA,MATERIALS - INVENTORY,"$6,809.59 ",2/13/2017
FAIVELEY TRANSPORT NORTH AMERICA,OUTSIDE SERVICES,"$10,084.87 ",2/13/2017
FAIVELEY TRANSPORT NORTH AMERICA,MATERIALS - NON-INVENTORY,$55.68 ,2/14/2017
FAIVELEY TRANSPORT NORTH AMERICA,MATERIALS & ASSETS - CAPITAL,"$11,882 ",3/1/2017
FAIVELEY TRANSPORT NORTH AMERICA,MATERIALS - INVENTORY,"$2,215.50 ",3/2/2017
FAIVELEY TRANSPORT NORTH AMERICA,MATERIALS - INVENTORY,"$25,140.55 ",3/6/2017
FAIVELEY TRANSPORT NORTH AMERICA,MATERIALS - NON-INVENTORY,$350.40 ,3/6/2017
FAIVELEY TRANSPORT NORTH AMERICA,MATERIALS - INVENTORY,"$5,318.90 ",3/13/2017
FAIVELEY TRANSPORT NORTH AMERICA,MATERIALS - NON-INVENTORY,$232.80 ,3/13/2017
FAIVELEY TRANSPORT NORTH AMERICA,MATERIALS & ASSETS - CAPITAL,"$1,252.64 ",3/16/2017
FAIVELEY TRANSPORT NORTH AMERICA,MATERIALS - INVENTORY,"$9,839.37 ",3/20/2017
FAIVELEY TRANSPORT NORTH AMERICA,MATERIALS & ASSETS - CAPITAL,"$10,476 ",3/22/2017
FAIVELEY TRANSPORT NORTH AMERICA,MATERIALS - INVENTORY,$77.98 ,3/23/2017
FAIVELEY TRANSPORT NORTH AMERICA,MATERIALS & ASSETS - CAPITAL,"$5,040 ",3/23/2017
FAIVELEY TRANSPORT NORTH AMERICA,MATERIALS - INVENTORY,"$3,702.76 ",3/27/2017
FAIVELEY TRANSPORT NORTH AMERICA,MATERIALS & ASSETS - CAPITAL,"$1,458.25 ",3/28/2017
FAIVELEY TRANSPORT NORTH AMERICA,MATERIALS - INVENTORY,"$3,600 ",4/3/2017
FAIVELEY TRANSPORT NORTH AMERICA,MATERIALS - INVENTORY,"$18,368.70 ",4/10/2017
FAIVELEY TRANSPORT NORTH AMERICA,MATERIALS - INVENTORY,"$10,788.09 ",4/11/2017
FAIVELEY TRANSPORT NORTH AMERICA,MATERIALS - INVENTORY,"$15,076.40 ",4/12/2017
FAIVELEY TRANSPORT NORTH AMERICA,MATERIALS - INVENTORY,$421.20 ,4/13/2017
FAIVELEY TRANSPORT NORTH AMERICA,MATERIALS & ASSETS - CAPITAL,"$4,784 ",4/13/2017
FAIVELEY TRANSPORT NORTH AMERICA,MATERIALS & ASSETS - CAPITAL,"$8,615 ",4/13/2017
FAIVELEY TRANSPORT NORTH AMERICA,OUTSIDE SERVICES,"$2,323.30 ",4/18/2017
FAIVELEY TRANSPORT NORTH AMERICA,MATERIALS - INVENTORY,$252.40 ,4/19/2017
FAIVELEY TRANSPORT NORTH AMERICA,MATERIALS - INVENTORY,"$11,722.68 ",4/20/2017
FAIVELEY TRANSPORT NORTH AMERICA,MATERIALS - INVENTORY,"$8,987.48 ",4/24/2017
FAIVELEY TRANSPORT NORTH AMERICA,OUTSIDE SERVICES,"$1,220.74 ",4/24/2017
FAIVELEY TRANSPORT NORTH AMERICA,OUTSIDE SERVICES,"$6,342.05 ",4/24/2017
FAIVELEY TRANSPORT NORTH AMERICA,MATERIALS - NON-INVENTORY,$16.44 ,4/26/2017
FAIVELEY TRANSPORT NORTH AMERICA,MATERIALS - INVENTORY,$387.20 ,4/27/2017
FAIVELEY TRANSPORT NORTH AMERICA,MATERIALS - NON-INVENTORY,$170 ,5/3/2017
FAIVELEY TRANSPORT NORTH AMERICA,MATERIALS - INVENTORY,"$17,307.45 ",5/4/2017
FAIVELEY TRANSPORT NORTH AMERICA,MATERIALS - INVENTORY,"$3,340.86 ",5/8/2017
FAIVELEY TRANSPORT NORTH AMERICA,MATERIALS & ASSETS - CAPITAL,"$1,252.64 ",5/8/2017
FAIVELEY TRANSPORT NORTH AMERICA,MATERIALS & ASSETS - CAPITAL,"$1,458.25 ",5/8/2017
FAIVELEY TRANSPORT NORTH AMERICA,MATERIALS - INVENTORY,"$84,051.85 ",5/10/2017
FAIVELEY TRANSPORT NORTH AMERICA,OUTSIDE SERVICES,"$3,043.86 ",5/10/2017
FAIVELEY TRANSPORT NORTH AMERICA,MATERIALS - NON-INVENTORY,$160 ,5/10/2017
FAIVELEY TRANSPORT NORTH AMERICA,OUTSIDE SERVICES,"$1,252.64 ",5/11/2017
FAIVELEY TRANSPORT NORTH AMERICA,MATERIALS - INVENTORY,"$4,529.47 ",5/18/2017
FAIVELEY TRANSPORT NORTH AMERICA,MATERIALS - NON-INVENTORY,$56.40 ,5/18/2017
FAIVELEY TRANSPORT NORTH AMERICA,MATERIALS - INVENTORY,$990.15 ,5/19/2017
FAIVELEY TRANSPORT NORTH AMERICA,MATERIALS - NON-INVENTORY,"$13,495.94 ",5/19/2017
FEDERAL EXPRESS CORP.,MISCELLANEOUS OTHER EXPENSE,$995.41 ,1/5/2017
FEDERAL EXPRESS CORP.,MISCELLANEOUS OTHER EXPENSE,$672.37 ,1/5/2017
FEDERAL EXPRESS CORP.,MISCELLANEOUS OTHER EXPENSE,$350.35 ,1/12/2017
FEDERAL EXPRESS CORP.,MISCELLANEOUS OTHER EXPENSE,$210.13 ,1/18/2017
FEDERAL EXPRESS CORP.,MISCELLANEOUS OTHER EXPENSE,$451.13 ,1/18/2017
FEDERAL EXPRESS CORP.,MISCELLANEOUS OTHER EXPENSE,$284.17 ,2/1/2017
FEDERAL EXPRESS CORP.,MISCELLANEOUS OTHER EXPENSE,$359.04 ,2/8/2017
FEDERAL EXPRESS CORP.,MISCELLANEOUS OTHER EXPENSE,$836.62 ,2/9/2017
FEDERAL EXPRESS CORP.,MISCELLANEOUS OTHER EXPENSE,$774.72 ,2/14/2017
FEDERAL EXPRESS CORP.,MISCELLANEOUS OTHER EXPENSE,$41.01 ,2/14/2017
FEDERAL EXPRESS CORP.,MISCELLANEOUS OTHER EXPENSE,$448.20 ,3/1/2017
FEDERAL EXPRESS CORP.,MISCELLANEOUS OTHER EXPENSE,$518.63 ,3/8/2017
FEDERAL EXPRESS CORP.,MISCELLANEOUS OTHER EXPENSE,$574.82 ,3/13/2017
FEDERAL EXPRESS CORP.,MISCELLANEOUS OTHER EXPENSE,$792.93 ,3/20/2017
FEDERAL EXPRESS CORP.,MISCELLANEOUS OTHER EXPENSE,"$1,135.69 ",3/30/2017
FEDERAL EXPRESS CORP.,MATERIALS - NON-INVENTORY,$639.66 ,4/10/2017
FEDERAL EXPRESS CORP.,MISCELLANEOUS OTHER EXPENSE,$555.39 ,4/12/2017
FEDERAL EXPRESS CORP.,MISCELLANEOUS OTHER EXPENSE,$921.11 ,5/1/2017
FEDERAL EXPRESS CORP.,MISCELLANEOUS OTHER EXPENSE,$178.40 ,5/15/2017
FEDERAL EXPRESS CORP.,MISCELLANEOUS OTHER EXPENSE,$569.78 ,5/15/2017
FEDERAL EXPRESS CORP.,MISCELLANEOUS OTHER EXPENSE,$41.41 ,5/15/2017
FEDERAL EXPRESS CORP.,MISCELLANEOUS OTHER EXPENSE,"$1,315.24 ",5/23/2017
FEDERAL RAILROAD ADMINISTRATION,MISCELLANEOUS OTHER EXPENSE,"$17,500 ",3/27/2017
FEDERAL RAILROAD ADMINISTRATION,MISCELLANEOUS OTHER EXPENSE,"$15,400 ",3/27/2017
FIBERGRATE COMPOSITE STRUCTURES INC,MATERIALS - NON-INVENTORY,"$31,200 ",1/11/2017
FIBERGRATE COMPOSITE STRUCTURES INC,MATERIALS - NON-INVENTORY,"$15,600 ",1/26/2017
FIBERGRATE COMPOSITE STRUCTURES INC,MATERIALS - NON-INVENTORY,"$15,600 ",3/7/2017
FIBERGRATE COMPOSITE STRUCTURES INC,MATERIALS - CAPITAL,"$21,357 ",5/18/2017
FIELD TRAINING ASSOCIATES,PROFESSIONAL SERVICES,"$8,400 ",1/30/2017
FILOMENO DURAN,"EMP EXPENSE REIMB, LOCAL",$300.13 ,5/26/2017
FIRESTONE COMPLETE AUTO CARE,OUTSIDE SERVICES,$59.96 ,1/12/2017
FIRESTONE COMPLETE AUTO CARE,OUTSIDE SERVICES,$14.99 ,1/17/2017
FIRESTONE COMPLETE AUTO CARE,OUTSIDE SERVICES,"$1,105.35 ",1/26/2017
FIRESTONE COMPLETE AUTO CARE,OUTSIDE SERVICES,$977.01 ,1/30/2017
FIRESTONE COMPLETE AUTO CARE,OUTSIDE SERVICES,$382.91 ,2/8/2017
FIRESTONE COMPLETE AUTO CARE,OUTSIDE SERVICES,$87.45 ,2/13/2017
FIRESTONE COMPLETE AUTO CARE,OUTSIDE SERVICES,$7.50 ,3/6/2017
FIRESTONE COMPLETE AUTO CARE,OUTSIDE SERVICES,"$1,089.90 ",4/11/2017
FIRESTONE COMPLETE AUTO CARE,OUTSIDE SERVICES,$29.98 ,5/10/2017
FIRESTONE COMPLETE AUTO CARE,OUTSIDE SERVICES,$14.99 ,5/10/2017
FIRESTONE COMPLETE AUTO CARE,OUTSIDE SERVICES,$14.99 ,5/15/2017
FIRESTONE COMPLETE AUTO CARE,OUTSIDE SERVICES,$105.67 ,5/19/2017
FIS,OUTSIDE SERVICES,"$6,670.55 ",1/11/2017
FIS,OUTSIDE SERVICES,"$6,039.88 ",2/13/2017
FIS,OUTSIDE SERVICES,"$5,682.45 ",3/15/2017
FIS,OUTSIDE SERVICES,"$4,941.87 ",4/13/2017
FIS,OUTSIDE SERVICES,"$5,349.51 ",5/10/2017
FISCHER ENGINEERING COMPANY,MATERIALS - NON-INVENTORY,"$4,812 ",5/18/2017
"FLETCHER & SIPPEL, LLC",PROFESSIONAL SERVICES,$209.50 ,1/19/2017
"FLETCHER & SIPPEL, LLC",PROFESSIONAL SERVICES,"$4,624.50 ",3/6/2017
"FLETCHER & SIPPEL, LLC",PROFESSIONAL SERVICES,"$2,313.80 ",3/27/2017
"FLETCHER & SIPPEL, LLC",PROFESSIONAL SERVICES,"$5,600.90 ",4/24/2017
"FLETCHER & SIPPEL, LLC",PROFESSIONAL SERVICES,"$5,068.90 ",5/18/2017
FLOOR-CHEM INC.,MATERIALS - INVENTORY,$569.80 ,1/19/2017
FLOOR-CHEM INC.,MATERIALS - INVENTORY,$284.90 ,3/6/2017
FLOOR-CHEM INC.,MATERIALS - INVENTORY,$569.80 ,3/13/2017
FLOOR-CHEM INC.,MATERIALS - INVENTORY,$427.35 ,4/10/2017
FLOOR-CHEM INC.,MATERIALS - INVENTORY,$569.80 ,4/12/2017
FLOOR-CHEM INC.,MATERIALS - INVENTORY,$569.80 ,5/10/2017
FLOOR-CHEM INC.,MATERIALS - INVENTORY,$284.90 ,5/18/2017
FOLEY & LARDNER LLP,PROFESSIONAL SERVICES,$240 ,3/6/2017
FOUR NINES TECHNOLOGIES,PROFESSIONAL SERVICES,"$84,600 ",5/18/2017
FRANCIS MASCARENHAS,"EMP EXPENSE REIMB, OUT OF TOWN",$814.70 ,5/8/2017
FRANCIS PALACIOS,"EMP EXPENSE REIMB, LOCAL",$95.23 ,5/26/2017
FRANCISCO GARCIA,TUITION REIMBURSEMENT,$563.50 ,5/25/2017
FRANCZEK RADELET P.C.,PROFESSIONAL SERVICES,$365 ,3/6/2017
FRANCZEK RADELET P.C.,PROFESSIONAL SERVICES,$365 ,4/10/2017
FRANK RALPHS INC.,MATERIALS & ASSETS - CAPITAL,"$16,080 ",5/2/2017
FRANK RALPHS INC.,MATERIALS & ASSETS - CAPITAL,"$7,798 ",5/8/2017
FRANK RALPHS INC.,MATERIALS & ASSETS - CAPITAL,"$11,196 ",5/9/2017
FRANK RALPHS INC.,MATERIALS & ASSETS - CAPITAL,"$7,097 ",5/15/2017
FRANK SANDERS,"EMP EXPENSE REIMB, LOCAL",$42 ,2/13/2017
FRANK SANDERS,"EMP EXPENSE REIMB, LOCAL",$85.60 ,5/15/2017
FRASER STAMP & SEAL CO.,MATERIALS - NON-INVENTORY,$12.90 ,1/19/2017
FRASER STAMP & SEAL CO.,MATERIALS - NON-INVENTORY,$153.60 ,2/13/2017
FRASER STAMP & SEAL CO.,MATERIALS - NON-INVENTORY,$10.80 ,3/6/2017
FRASER STAMP & SEAL CO.,MATERIALS - NON-INVENTORY,$135.90 ,3/7/2017
FRASER STAMP & SEAL CO.,MATERIALS - NON-INVENTORY,$85.40 ,3/15/2017
FRASER STAMP & SEAL CO.,MATERIALS - NON-INVENTORY,$343.30 ,3/27/2017
FRASER STAMP & SEAL CO.,MATERIALS - NON-INVENTORY,"$1,205.95 ",5/18/2017
FREEWAY FORD-STERLING TRUCK SALES,OUTSIDE SERVICES,"$10,018.30 ",1/3/2017
FREEWAY FORD-STERLING TRUCK SALES,OUTSIDE SERVICES,"$7,254.19 ",1/19/2017
FREEWAY FORD-STERLING TRUCK SALES,OUTSIDE SERVICES,"$26,695.66 ",1/24/2017
FREEWAY FORD-STERLING TRUCK SALES,OUTSIDE SERVICES,"$1,207.10 ",2/1/2017
FREEWAY FORD-STERLING TRUCK SALES,OUTSIDE SERVICES,"$1,233.09 ",2/28/2017
FREEWAY FORD-STERLING TRUCK SALES,OUTSIDE SERVICES,"$3,576.80 ",3/27/2017
FREEWAY FORD-STERLING TRUCK SALES,OUTSIDE SERVICES,"$4,170.94 ",4/3/2017
FREEWAY FORD-STERLING TRUCK SALES,OUTSIDE SERVICES,"$39,115 ",4/10/2017
FREEWAY FORD-STERLING TRUCK SALES,OUTSIDE SERVICES,"$1,560.42 ",4/13/2017
FREEWAY FORD-STERLING TRUCK SALES,OUTSIDE SERVICES,$150.50 ,4/25/2017
FREEWAY FORD-STERLING TRUCK SALES,OUTSIDE SERVICES,"$1,446.91 ",4/25/2017
FREEWAY FORD-STERLING TRUCK SALES,OUTSIDE SERVICES,$494.50 ,4/27/2017
FREEWAY FORD-STERLING TRUCK SALES,OUTSIDE SERVICES,"$1,618.60 ",5/19/2017
FULLIFE SAFETY CENTER,OUTSIDE SERVICES,$98 ,1/3/2017
FULLIFE SAFETY CENTER,OUTSIDE SERVICES,$98 ,1/9/2017
FULLIFE SAFETY CENTER,OUTSIDE SERVICES,$392 ,3/27/2017
FULLIFE SAFETY CENTER,OUTSIDE SERVICES,$98 ,4/10/2017
FULLIFE SAFETY CENTER,OUTSIDE SERVICES,$196 ,5/18/2017
"FUTURE ENVIRONMENTAL, INC.",OUTSIDE SERVICES,"$59,950 ",1/26/2017
"FUTURE ENVIRONMENTAL, INC.",OUTSIDE SERVICES,"$1,009.28 ",2/27/2017
"FUTURE ENVIRONMENTAL, INC.",OUTSIDE SERVICES,"$3,816.84 ",3/22/2017
"FUTURE ENVIRONMENTAL, INC.",OUTSIDE SERVICES,$15 ,3/28/2017
"FUTURE ENVIRONMENTAL, INC.",OUTSIDE SERVICES,$15 ,4/3/2017
"FUTURE ENVIRONMENTAL, INC.",OUTSIDE SERVICES,"$1,489.10 ",4/20/2017
"FUTURE ENVIRONMENTAL, INC.",OUTSIDE SERVICES,$205 ,5/10/2017
"FUTURE ENVIRONMENTAL, INC.",OUTSIDE SERVICES,$630 ,5/18/2017
"G & B SPECIALTIES, INC.",MATERIALS - CAPITAL,"$2,760 ",1/3/2017
"G & B SPECIALTIES, INC.",MATERIALS - NON-INVENTORY,"$4,200 ",5/8/2017
G & E SALES CORP.,MATERIALS - NON-INVENTORY,"$2,793.68 ",1/12/2017
G & E SALES CORP.,MATERIALS - NON-INVENTORY,"$2,442.91 ",1/18/2017
G & E SALES CORP.,MATERIALS - INVENTORY,"$1,697.86 ",2/7/2017
G & E SALES CORP.,MATERIALS - INVENTORY,$387.26 ,2/21/2017
G & E SALES CORP.,MATERIALS - INVENTORY,"$1,195.35 ",2/23/2017
G & E SALES CORP.,MATERIALS - NON-INVENTORY,"$7,804.42 ",2/23/2017
G & E SALES CORP.,OUTSIDE SERVICES,"$2,018.75 ",2/23/2017
G & E SALES CORP.,MATERIALS - INVENTORY,"$1,012.44 ",2/27/2017
G & E SALES CORP.,MATERIALS - NON-INVENTORY,"$5,497.81 ",2/27/2017
G & E SALES CORP.,MATERIALS - INVENTORY,$517.44 ,3/7/2017
G & E SALES CORP.,MATERIALS - INVENTORY,$521.49 ,3/15/2017
G & E SALES CORP.,MATERIALS - INVENTORY,"$1,071.58 ",3/22/2017
G & E SALES CORP.,MATERIALS - NON-INVENTORY,"$1,779.87 ",3/22/2017
G & E SALES CORP.,MATERIALS - INVENTORY,"$1,647.36 ",3/23/2017
G & E SALES CORP.,MATERIALS - NON-INVENTORY,"$9,101.26 ",3/23/2017
G & E SALES CORP.,MATERIALS - INVENTORY,$68.73 ,3/27/2017
G & E SALES CORP.,MATERIALS - INVENTORY,$225.05 ,3/30/2017
G & E SALES CORP.,MATERIALS - INVENTORY,$90.86 ,4/5/2017
G & E SALES CORP.,MATERIALS - NON-INVENTORY,"$6,167.53 ",4/5/2017
G & E SALES CORP.,MATERIALS - INVENTORY,$238.81 ,4/13/2017
G & E SALES CORP.,MATERIALS - NON-INVENTORY,"$4,268.59 ",4/13/2017
G & E SALES CORP.,MATERIALS - INVENTORY,$23.52 ,4/20/2017
G & E SALES CORP.,MATERIALS - NON-INVENTORY,"$6,787.26 ",5/8/2017
G & E SALES CORP.,MATERIALS - INVENTORY,$832.29 ,5/15/2017
G & E SALES CORP.,MATERIALS - INVENTORY,$483.34 ,5/18/2017
G & E SALES CORP.,MATERIALS - NON-INVENTORY,"$6,389.18 ",5/18/2017
G & O THERMAL SUPPLY,MATERIALS - NON-INVENTORY,"$1,407 ",1/12/2017
G & O THERMAL SUPPLY,MATERIALS - NON-INVENTORY,"$2,162.83 ",1/30/2017
G & O THERMAL SUPPLY,MATERIALS - NON-INVENTORY,"$9,066.62 ",2/8/2017
G & O THERMAL SUPPLY,MATERIALS - INVENTORY,$137.24 ,2/13/2017
G & O THERMAL SUPPLY,MATERIALS - INVENTORY,$428.32 ,2/21/2017
G & O THERMAL SUPPLY,MATERIALS - NON-INVENTORY,$225.90 ,2/21/2017
G & O THERMAL SUPPLY,MATERIALS - NON-INVENTORY,"$3,961.50 ",2/21/2017
G & O THERMAL SUPPLY,MATERIALS - INVENTORY,"$1,707.93 ",3/27/2017
G & O THERMAL SUPPLY,MATERIALS - INVENTORY,$159.52 ,4/10/2017
G & O THERMAL SUPPLY,MATERIALS - INVENTORY,$208.56 ,4/27/2017
G. PHILANDER GREER,"EMP EXPENSE REIMB, LOCAL",$125.28 ,1/23/2017
G. PHILANDER GREER,"EMP EXPENSE REIMB, LOCAL",$124.12 ,2/27/2017
G. PHILANDER GREER,"EMP EXPENSE REIMB, LOCAL",$124.12 ,3/28/2017
G. PHILANDER GREER,"EMP EXPENSE REIMB, LOCAL",$124.12 ,5/1/2017
G. PHILANDER GREER,"EMP EXPENSE REIMB, LOCAL",$156.60 ,5/19/2017
G. PHILANDER GREER,"EMP EXPENSE REIMB, LOCAL",$93.09 ,5/26/2017
"GALCO INDUSTRIAL ELECTRONICS, INC.",OUTSIDE SERVICES,"$1,455 ",1/26/2017
"GALCO INDUSTRIAL ELECTRONICS, INC.",OUTSIDE SERVICES,"$1,455 ",2/13/2017
"GALCO INDUSTRIAL ELECTRONICS, INC.",OUTSIDE SERVICES,"$1,937 ",2/28/2017
"GALCO INDUSTRIAL ELECTRONICS, INC.",OUTSIDE SERVICES,"$1,937 ",3/6/2017
"GALCO INDUSTRIAL ELECTRONICS, INC.",OUTSIDE SERVICES,$485 ,3/15/2017
"GARDA CL GREAT LAKES, INC.",PROFESSIONAL SERVICES,"$13,675 ",1/26/2017
"GARDA CL GREAT LAKES, INC.",PROFESSIONAL SERVICES,"$13,675 ",2/23/2017
"GARDA CL GREAT LAKES, INC.",PROFESSIONAL SERVICES,"$13,675 ",3/15/2017
"GARDA CL GREAT LAKES, INC.",PROFESSIONAL SERVICES,"$13,675 ",4/13/2017
"GARDA CL GREAT LAKES, INC.",PROFESSIONAL SERVICES,"$13,675 ",5/15/2017
GARVEY'S OFFICE PRODUCTS,MATERIALS & ASSETS - CAPITAL,"$3,624.05 ",1/3/2017
GARVEY'S OFFICE PRODUCTS,MATERIALS - NON-INVENTORY,"$1,150.35 ",1/9/2017
GARVEY'S OFFICE PRODUCTS,MATERIALS - NON-INVENTORY,$449.20 ,1/12/2017
GARVEY'S OFFICE PRODUCTS,MATERIALS - NON-INVENTORY,"$1,732.12 ",1/19/2017
GARVEY'S OFFICE PRODUCTS,MATERIALS - NON-INVENTORY,"$2,333.86 ",1/30/2017
GARVEY'S OFFICE PRODUCTS,MATERIALS - NON-INVENTORY,$877.93 ,2/8/2017
GARVEY'S OFFICE PRODUCTS,MATERIALS & ASSETS - CAPITAL,"$60,554.92 ",2/13/2017
GARVEY'S OFFICE PRODUCTS,MATERIALS & ASSETS - CAPITAL,"$4,271.86 ",2/14/2017
GARVEY'S OFFICE PRODUCTS,MATERIALS & ASSETS - CAPITAL,"$12,399.60 ",2/21/2017
GARVEY'S OFFICE PRODUCTS,MATERIALS - NON-INVENTORY,"$2,653.74 ",3/6/2017
GARVEY'S OFFICE PRODUCTS,MISCELLANEOUS OTHER EXPENSE,$427.62 ,3/6/2017
GARVEY'S OFFICE PRODUCTS,MATERIALS - NON-INVENTORY,$180.33 ,3/7/2017
GARVEY'S OFFICE PRODUCTS,MATERIALS - NON-INVENTORY,$481.40 ,3/9/2017
GARVEY'S OFFICE PRODUCTS,MATERIALS - NON-INVENTORY,$51.50 ,3/9/2017
GARVEY'S OFFICE PRODUCTS,MATERIALS - NON-INVENTORY,$264.80 ,3/13/2017
GARVEY'S OFFICE PRODUCTS,MISCELLANEOUS OTHER EXPENSE,"$5,361.43 ",3/15/2017
GARVEY'S OFFICE PRODUCTS,MATERIALS - NON-INVENTORY,$690.46 ,3/20/2017
GARVEY'S OFFICE PRODUCTS,MATERIALS - NON-INVENTORY,"$1,426.31 ",3/27/2017
GARVEY'S OFFICE PRODUCTS,MATERIALS & ASSETS - CAPITAL,"$36,931.25 ",4/4/2017
GARVEY'S OFFICE PRODUCTS,MATERIALS - NON-INVENTORY,$914.87 ,4/10/2017
GARVEY'S OFFICE PRODUCTS,MATERIALS - NON-INVENTORY,$926.90 ,4/12/2017
GARVEY'S OFFICE PRODUCTS,MATERIALS - NON-INVENTORY,$300 ,4/13/2017
GARVEY'S OFFICE PRODUCTS,MATERIALS & ASSETS - CAPITAL,"$5,713.55 ",4/13/2017
GARVEY'S OFFICE PRODUCTS,MATERIALS - NON-INVENTORY,$636.45 ,5/8/2017
GARVEY'S OFFICE PRODUCTS,MATERIALS - NON-INVENTORY,$998.70 ,5/16/2017
GARY M JONES,"EMP EXPENSE REIMB, LOCAL",$41.82 ,1/11/2017
GARY M JONES,"EMP EXPENSE REIMB, LOCAL",$14.90 ,5/2/2017
GARY M JONES,"EMP EXPENSE REIMB, LOCAL",$31.04 ,5/26/2017
"GEIB INDUSTRIES, INC.",MATERIALS - INVENTORY,$235.24 ,1/9/2017
"GEIB INDUSTRIES, INC.",MATERIALS - INVENTORY,$143.23 ,3/27/2017
"GENARO MORALES, JR.","EMP EXPENSE REIMB, LOCAL",$98.44 ,2/14/2017
"GENARO MORALES, JR.","EMP EXPENSE REIMB, LOCAL",$147.66 ,5/25/2017
"GENESIS TECHNOLOGIES, INC.",MATERIALS - CAPITAL,"$5,115 ",5/10/2017
GENFARE,OUTSIDE SERVICES,"$1,990 ",1/12/2017
GENFARE,MATERIALS - NON-INVENTORY,"$1,446.36 ",1/26/2017
GENFARE,MATERIALS - NON-INVENTORY,"$2,892.72 ",3/6/2017
GENFARE,OUTSIDE SERVICES,"$1,748 ",3/6/2017
GENFARE,OUTSIDE SERVICES,$874 ,3/7/2017
GENFARE,OUTSIDE SERVICES,"$1,233 ",3/15/2017
GENFARE,MATERIALS - NON-INVENTORY,"$2,892.72 ",3/27/2017
GENFARE,OUTSIDE SERVICES,"$1,272 ",5/15/2017
GENFARE,OUTSIDE SERVICES,"$1,670 ",5/18/2017
GEOFFREY G. LACINA,"EMP EXPENSE REIMB, LOCAL",$400 ,3/22/2017
GEORGE  GOUNARIS,"EMP EXPENSE REIMB, OUT OF TOWN",$299.42 ,3/7/2017
GEORGE  GOUNARIS,"EMP EXPENSE REIMB, OUT OF TOWN",$76.50 ,4/6/2017
GEORGE LEKA,"EMP EXPENSE REIMB, LOCAL",$369.36 ,1/12/2017
GEORGE LEKA,"EMP EXPENSE REIMB, LOCAL",$192.24 ,1/24/2017
GEORGE LEKA,"EMP EXPENSE REIMB, LOCAL",$295.32 ,2/27/2017
GEORGE LEKA,"EMP EXPENSE REIMB, LOCAL",$230.05 ,3/21/2017
GEORGE LEKA,"EMP EXPENSE REIMB, LOCAL",$306.02 ,5/2/2017
GEORGE LEKA,"EMP EXPENSE REIMB, LOCAL",$42.80 ,5/24/2017
GERRY M. NICHOLS,"EMP EXPENSE REIMB, LOCAL",$71.28 ,1/3/2017
GEXPRO,MATERIALS - NON-INVENTORY,$580 ,5/15/2017
GEXPRO,MATERIALS - NON-INVENTORY,"$45,100 ",5/18/2017
GLASS AMERICA,OUTSIDE SERVICES,"$1,529.50 ",1/19/2017
GLASS AMERICA,OUTSIDE SERVICES,"$2,498 ",3/28/2017
GLENN A. MAYES,"EMP EXPENSE REIMB, LOCAL",$16.20 ,1/19/2017
GLENN A. MAYES,"EMP EXPENSE REIMB, LOCAL",$79.18 ,2/27/2017
GLENN A. MAYES,"EMP EXPENSE REIMB, LOCAL",$197.95 ,4/25/2017
GLENN A. MAYES,"EMP EXPENSE REIMB, LOCAL",$180 ,5/25/2017
GLOBAL EQUIPMENT CO.,MATERIALS - NON-INVENTORY,"$3,090.50 ",3/6/2017
GLOBAL VISION EYEWEAR,MATERIALS - INVENTORY,$894 ,1/3/2017
GLOBAL VISION EYEWEAR,MATERIALS - INVENTORY,"$4,505 ",1/4/2017
GLOBAL VISION EYEWEAR,MATERIALS - INVENTORY,$768 ,1/12/2017
GLOBAL VISION EYEWEAR,MATERIALS - INVENTORY,$495 ,1/17/2017
GLOBAL VISION EYEWEAR,MATERIALS - INVENTORY,$82.50 ,1/19/2017
GLOBAL VISION EYEWEAR,MATERIALS - INVENTORY,$198 ,1/25/2017
GLOBAL VISION EYEWEAR,MATERIALS - INVENTORY,$336 ,1/30/2017
GLOBAL VISION EYEWEAR,MATERIALS - INVENTORY,$404 ,2/8/2017
GLOBAL VISION EYEWEAR,MATERIALS - INVENTORY,$811 ,2/13/2017
GLOBAL VISION EYEWEAR,MATERIALS - INVENTORY,"$1,209 ",3/6/2017
GLOBAL VISION EYEWEAR,MATERIALS - INVENTORY,$660 ,3/13/2017
GLOBAL VISION EYEWEAR,MATERIALS - INVENTORY,$320 ,3/20/2017
GLOBAL VISION EYEWEAR,MATERIALS - INVENTORY,"$1,749 ",3/27/2017
GLOBAL VISION EYEWEAR,MATERIALS - INVENTORY,$165 ,4/5/2017
GLOBAL VISION EYEWEAR,MATERIALS - INVENTORY,"$1,840.50 ",4/10/2017
GLOBAL VISION EYEWEAR,MATERIALS - INVENTORY,$192 ,4/12/2017
GLOBAL VISION EYEWEAR,MATERIALS - INVENTORY,$712 ,4/24/2017
GLOBAL VISION EYEWEAR,MATERIALS - INVENTORY,"$1,092 ",5/8/2017
GLOBAL VISION EYEWEAR,MATERIALS - INVENTORY,"$3,131.50 ",5/10/2017
GLOBAL VISION EYEWEAR,MATERIALS - INVENTORY,$924 ,5/16/2017
GLOBAL VISION EYEWEAR,MATERIALS - INVENTORY,$602 ,5/18/2017
"GLOBAL WATER TECHNOLOGY, INC.",OUTSIDE SERVICES,$935 ,1/3/2017
"GLOBAL WATER TECHNOLOGY, INC.",OUTSIDE SERVICES,$945 ,2/7/2017
"GLOBAL WATER TECHNOLOGY, INC.",OUTSIDE SERVICES,$945 ,2/23/2017
"GLOBAL WATER TECHNOLOGY, INC.",OUTSIDE SERVICES,$945 ,3/27/2017
"GLOBAL WATER TECHNOLOGY, INC.",OUTSIDE SERVICES,$945 ,4/19/2017
"GLOBAL WATER TECHNOLOGY, INC.",OUTSIDE SERVICES,$945 ,5/15/2017
GLOCK PROFESSIONAL INC,PROFESSIONAL SERVICES,"$1,650 ",1/24/2017
GNB INDUSTRIAL POWER,MATERIALS - NON-INVENTORY,"$5,324 ",5/10/2017
GNB INDUSTRIAL POWER,MATERIALS - NON-INVENTORY,"$12,052.32 ",5/19/2017
GORDANA MANOJLOVIC,"EMP EXPENSE REIMB, LOCAL",$199.80 ,1/24/2017
GORDANA MANOJLOVIC,"EMP EXPENSE REIMB, LOCAL",$79.18 ,2/21/2017
GORDANA MANOJLOVIC,"EMP EXPENSE REIMB, LOCAL",$79.18 ,3/30/2017
GORDON ELECTRIC SUPPLY,MATERIALS - INVENTORY,$614.85 ,1/4/2017
GORDON ELECTRIC SUPPLY,MATERIALS - INVENTORY,$491.88 ,1/17/2017
GORDON ELECTRIC SUPPLY,MATERIALS - INVENTORY,$380.99 ,4/13/2017
GRAINGER,MATERIALS - NON-INVENTORY,"$1,127.71 ",1/11/2017
GRAINGER,MATERIALS - NON-INVENTORY,$677.46 ,1/12/2017
GRAINGER,MATERIALS - NON-INVENTORY,$662.40 ,1/17/2017
GRAINGER,MATERIALS - NON-INVENTORY,$961.64 ,1/17/2017
GRAINGER,MATERIALS - NON-INVENTORY,"$2,663.64 ",3/6/2017
GRAINGER,MATERIALS - NON-INVENTORY,$182.75 ,3/6/2017
GRAINGER,MATERIALS - NON-INVENTORY,$252.50 ,3/6/2017
GRAINGER,MATERIALS - NON-INVENTORY,"$1,344 ",3/9/2017
GRAINGER,MATERIALS - NON-INVENTORY,$476.85 ,3/9/2017
GRAINGER,MATERIALS - NON-INVENTORY,"$11,706 ",3/9/2017
GRAINGER,MATERIALS - NON-INVENTORY,"$1,959 ",3/13/2017
GRAINGER,MATERIALS - NON-INVENTORY,$498.50 ,3/28/2017
GRAINGER,MATERIALS - NON-INVENTORY,$820 ,4/3/2017
GRAINGER,MATERIALS - NON-INVENTORY,$650.65 ,4/10/2017
GRAINGER,MATERIALS - NON-INVENTORY,$486 ,4/25/2017
GRAINGER,MATERIALS - NON-INVENTORY,"$2,019.60 ",5/18/2017
GRAPHIC ARTS STUDIO,OUTSIDE SERVICES,"$11,407 ",1/17/2017
GRAPHIC ARTS STUDIO,OUTSIDE SERVICES,"$3,150 ",3/27/2017
GRAPHIC ARTS STUDIO,OUTSIDE SERVICES,"$8,935 ",3/29/2017
"GRAPHIC PRODUCTS, INC.",MATERIALS - NON-INVENTORY,"$1,484.96 ",3/27/2017
"GRAPHIC PRODUCTS, INC.",MISCELLANEOUS OTHER EXPENSE,$50.86 ,3/27/2017
GREAT PLAINS ADA CENTER,PROFESSIONAL SERVICES,"$1,640 ",3/9/2017
"GREAT REALTY ADVISORS, INC.",PROFESSIONAL SERVICES,$250 ,1/3/2017
"GREAT REALTY ADVISORS, INC.",PROFESSIONAL SERVICES,$600 ,2/27/2017
"GREAT REALTY ADVISORS, INC.",PROFESSIONAL SERVICES,$112.50 ,4/10/2017
"GREAT REALTY ADVISORS, INC.",PROFESSIONAL SERVICES,"$3,000 ",4/20/2017
"GREAT REALTY ADVISORS, INC.",PROFESSIONAL SERVICES,"$2,250 ",5/4/2017
GREENBRIER RAIL SERVICES,OUTSIDE SERVICES,"$1,710 ",1/23/2017
GREENBRIER RAIL SERVICES,OUTSIDE SERVICES,"$8,655 ",1/23/2017
GREENBRIER RAIL SERVICES,OUTSIDE SERVICES,"$2,565 ",2/7/2017
GREENBRIER RAIL SERVICES,OUTSIDE SERVICES,"$3,420 ",2/13/2017
GREENBRIER RAIL SERVICES,OUTSIDE SERVICES,$855 ,2/13/2017
GREENBRIER RAIL SERVICES,OUTSIDE SERVICES,"$3,455 ",2/13/2017
GREENBRIER RAIL SERVICES,OUTSIDE SERVICES,$855 ,3/15/2017
GREENBRIER RAIL SERVICES,MATERIALS & ASSETS - CAPITAL,"$41,424 ",3/27/2017
GREENBRIER RAIL SERVICES,OUTSIDE SERVICES,$855 ,4/19/2017
GREENBRIER RAIL SERVICES,OUTSIDE SERVICES,$855 ,5/15/2017
GREENBRIER RAIL SERVICES,MATERIALS & ASSETS - CAPITAL,"$41,424 ",5/16/2017
GREENBRIER RAIL SERVICES,OUTSIDE SERVICES,"$5,985 ",5/18/2017
GREENBRIER RAIL SERVICES,OUTSIDE SERVICES,"$3,444 ",5/18/2017
GREGORY  HARRIS,"EMP EXPENSE REIMB, LOCAL",$119.88 ,1/23/2017
GREGORY  HARRIS,"EMP EXPENSE REIMB, LOCAL",$118.77 ,2/23/2017
GREGORY  HARRIS,"EMP EXPENSE REIMB, LOCAL",$158.36 ,3/28/2017
GREGORY  HARRIS,"EMP EXPENSE REIMB, LOCAL",$118.77 ,5/1/2017
GREGORY  HARRIS,"EMP EXPENSE REIMB, LOCAL",$197.95 ,5/24/2017
GRIFFIN/WILLIAMS LLP,PROFESSIONAL SERVICES,$315 ,4/24/2017
"GROVE MASONRY MAINTENANCE, INC.",CONSTRUCTION,"$16,453.16 ",1/31/2017
"GROVE MASONRY MAINTENANCE, INC.",CONSTRUCTION,"$77,459.20 ",4/20/2017
GROWER EQUIPMENT & SUPPLY CO.,MATERIALS - INVENTORY,"$1,953.98 ",1/3/2017
GROWER EQUIPMENT & SUPPLY CO.,MATERIALS - INVENTORY,"$22,226 ",1/12/2017
GROWER EQUIPMENT & SUPPLY CO.,MATERIALS - INVENTORY,"$19,587 ",1/23/2017
GUILERMO PONCE,"EMP EXPENSE REIMB, LOCAL",$16.80 ,1/3/2017
GUILERMO PONCE,"EMP EXPENSE REIMB, LOCAL",$34.26 ,4/6/2017
G4S SECURE INTEGRATION LLC,OUTSIDE SERVICES,$125 ,3/13/2017
G4S SECURE INTEGRATION LLC,OUTSIDE SERVICES,$125 ,5/10/2017
G4S TECHNOLOGY LLC,MATERIALS & ASSETS - CAPITAL,"$33,344.48 ",2/21/2017
HACIA,MISCELLANEOUS OTHER EXPENSE,"$1,875 ",2/6/2017
HADADY CORP.,MATERIALS & ASSETS - CAPITAL,"$37,300 ",3/20/2017
HADADY CORP.,MATERIALS & ASSETS - CAPITAL,"$37,300 ",3/21/2017
HADADY CORP.,MATERIALS & ASSETS - CAPITAL,"$74,600 ",5/8/2017
"HAGERTY INDUSTRIAL SUPPLY, INC.",MATERIALS - INVENTORY,"$2,319.45 ",1/3/2017
"HAGERTY INDUSTRIAL SUPPLY, INC.",MATERIALS - NON-INVENTORY,$751.98 ,1/3/2017
"HAGERTY INDUSTRIAL SUPPLY, INC.",MATERIALS - INVENTORY,$955.36 ,1/4/2017
"HAGERTY INDUSTRIAL SUPPLY, INC.",MATERIALS - INVENTORY,$136.76 ,2/8/2017
"HAGERTY INDUSTRIAL SUPPLY, INC.",MATERIALS - NON-INVENTORY,"$1,514.94 ",2/8/2017
"HAGERTY INDUSTRIAL SUPPLY, INC.",MATERIALS - INVENTORY,$136.76 ,2/13/2017
"HAGERTY INDUSTRIAL SUPPLY, INC.",MATERIALS - NON-INVENTORY,"$2,019.04 ",3/6/2017
"HAGERTY INDUSTRIAL SUPPLY, INC.",MATERIALS - NON-INVENTORY,$90 ,3/7/2017
"HAGERTY INDUSTRIAL SUPPLY, INC.",MATERIALS - INVENTORY,$136.76 ,3/27/2017
"HAGERTY INDUSTRIAL SUPPLY, INC.",MATERIALS - CAPITAL,$92.99 ,4/12/2017
"HAGERTY INDUSTRIAL SUPPLY, INC.",MATERIALS - NON-INVENTORY,"$1,008 ",4/27/2017
"HAGERTY INDUSTRIAL SUPPLY, INC.",MATERIALS - NON-INVENTORY,"$10,148.23 ",4/27/2017
"HAGERTY INDUSTRIAL SUPPLY, INC.",MATERIALS - NON-INVENTORY,"$1,853.76 ",5/8/2017
"HAGERTY INDUSTRIAL SUPPLY, INC.",MATERIALS - INVENTORY,$437.40 ,5/15/2017
"HAGERTY INDUSTRIAL SUPPLY, INC.",MATERIALS - INVENTORY,$212.80 ,5/18/2017
"HAGERTY INDUSTRIAL SUPPLY, INC.",MATERIALS - NON-INVENTORY,"$9,294.94 ",5/18/2017
"HAGERTY INDUSTRIAL SUPPLY, INC.",MATERIALS - NON-INVENTORY,"$3,196.55 ",5/19/2017
HAPP'S INC.,OUTSIDE SERVICES,"$5,258.25 ",3/7/2017
HAPP'S INC.,OUTSIDE SERVICES,"$7,409 ",3/8/2017
HARLAN WEIVODA,"EMP EXPENSE REIMB, LOCAL",$105.84 ,1/3/2017
HARLAN WEIVODA,"EMP EXPENSE REIMB, LOCAL",$66.34 ,2/27/2017
HARLAN WEIVODA,"EMP EXPENSE REIMB, LOCAL",$92.02 ,4/5/2017
HARLAN WEIVODA,"EMP EXPENSE REIMB, LOCAL",$32.10 ,5/24/2017
HARRIS EQUIPMENT CORP.,MATERIALS - INVENTORY,$756 ,4/10/2017
HARRIS EQUIPMENT CORP.,MATERIALS - INVENTORY,$350 ,4/12/2017
"HARRIS ICE CO., INC.",OUTSIDE SERVICES - CAPITAL,$202.50 ,5/18/2017
"HARRIS ICE CO., INC.",MATERIALS - NON-INVENTORY,$380 ,5/18/2017
"HARRISON ELECTRIC, INC.",OUTSIDE SERVICES,"$4,750 ",1/12/2017
"HARRISON ELECTRIC, INC.",OUTSIDE SERVICES,"$15,266.84 ",2/13/2017
"HARRISON ELECTRIC, INC.",OUTSIDE SERVICES,"$2,855 ",3/6/2017
"HARRISON ELECTRIC, INC.",OUTSIDE SERVICES,"$17,660 ",4/3/2017
HARRY NICHOLSON,"EMP EXPENSE REIMB, LOCAL",$162 ,1/24/2017
HARRY NICHOLSON,"EMP EXPENSE REIMB, LOCAL",$64.20 ,2/21/2017
HARRY NICHOLSON,"EMP EXPENSE REIMB, LOCAL",$145.52 ,3/20/2017
HARRY NICHOLSON,"EMP EXPENSE REIMB, LOCAL",$162.64 ,5/25/2017
"HARRY O HEFTER - ASSOC., INC.",ENGINEERING & DESIGN,"$13,210.75 ",3/7/2017
"HARRY O HEFTER - ASSOC., INC.",ENGINEERING & DESIGN,"$14,848.48 ",3/21/2017
"HARSCO RAIL, DIV. OF HARSCO CORP.",MATERIALS - INVENTORY,$345.21 ,1/5/2017
"HARSCO RAIL, DIV. OF HARSCO CORP.",MATERIALS - NON-INVENTORY,$473.52 ,1/11/2017
"HARSCO RAIL, DIV. OF HARSCO CORP.",MATERIALS - NON-INVENTORY,"$13,581.25 ",1/23/2017
"HARSCO RAIL, DIV. OF HARSCO CORP.",MATERIALS - NON-INVENTORY,$230.28 ,2/21/2017
"HARSCO RAIL, DIV. OF HARSCO CORP.",MATERIALS - INVENTORY,"$5,067.68 ",2/23/2017
"HARSCO RAIL, DIV. OF HARSCO CORP.",MATERIALS - NON-INVENTORY,"$10,623.85 ",2/23/2017
"HARSCO RAIL, DIV. OF HARSCO CORP.",MATERIALS - INVENTORY,$120.92 ,3/7/2017
"HARSCO RAIL, DIV. OF HARSCO CORP.",MATERIALS - INVENTORY,$449.64 ,3/15/2017
"HARSCO RAIL, DIV. OF HARSCO CORP.",MATERIALS - NON-INVENTORY,"$8,874.98 ",3/15/2017
"HARSCO RAIL, DIV. OF HARSCO CORP.",MATERIALS - INVENTORY,$196.32 ,3/16/2017
"HARSCO RAIL, DIV. OF HARSCO CORP.",MATERIALS - NON-INVENTORY,$523.92 ,3/20/2017
"HARSCO RAIL, DIV. OF HARSCO CORP.",MATERIALS - NON-INVENTORY,"$1,320.74 ",3/23/2017
"HARSCO RAIL, DIV. OF HARSCO CORP.",MATERIALS - INVENTORY,$385.96 ,4/3/2017
"HARSCO RAIL, DIV. OF HARSCO CORP.",MATERIALS - NON-INVENTORY,$45.16 ,4/5/2017
"HARSCO RAIL, DIV. OF HARSCO CORP.",MATERIALS - NON-INVENTORY,"$16,956 ",4/10/2017
"HARSCO RAIL, DIV. OF HARSCO CORP.",MATERIALS - INVENTORY,$345.21 ,4/13/2017
"HARSCO RAIL, DIV. OF HARSCO CORP.",MATERIALS - NON-INVENTORY,"$4,956.08 ",4/13/2017
"HARSCO RAIL, DIV. OF HARSCO CORP.",MATERIALS - NON-INVENTORY,"$24,466.82 ",4/19/2017
"HARSCO RAIL, DIV. OF HARSCO CORP.",MATERIALS - INVENTORY,"$1,893.51 ",4/27/2017
"HARSCO RAIL, DIV. OF HARSCO CORP.",MATERIALS - NON-INVENTORY,"$13,109.44 ",5/4/2017
"HARSCO RAIL, DIV. OF HARSCO CORP.",MATERIALS - NON-INVENTORY,"$12,233.41 ",5/10/2017
"HARSCO RAIL, DIV. OF HARSCO CORP.",MATERIALS - INVENTORY,"$5,928.18 ",5/15/2017
"HARSCO RAIL, DIV. OF HARSCO CORP.",MATERIALS - NON-INVENTORY,"$6,436.69 ",5/15/2017
"HARSCO RAIL, DIV. OF HARSCO CORP.",MATERIALS - INVENTORY,$916.39 ,5/18/2017
"HARVARD COLLECTION SERVICES, INC.",PROFESSIONAL SERVICES,$22.14 ,3/28/2017
"HAYMARKET MEDIA, INC.",MISCELLANEOUS OTHER EXPENSE,$348 ,2/21/2017
"HAYSITE REINFORCED PLASTICS, LLC",MATERIALS & ASSETS - CAPITAL,"$12,870.51 ",5/8/2017
"HAYSITE REINFORCED PLASTICS, LLC",MATERIALS & ASSETS - CAPITAL,"$54,116 ",5/18/2017
HECTOR ESCALANTE JR.,TUITION REIMBURSEMENT,$465.45 ,1/30/2017
HECTOR ESCALANTE JR.,TUITION REIMBURSEMENT,$676.60 ,5/24/2017
HENRY RYAN,"EMP EXPENSE REIMB, LOCAL",$68.31 ,3/8/2017
HERMAN RAY,"EMP EXPENSE REIMB, LOCAL",$39.96 ,1/24/2017
HERMAN RAY,"EMP EXPENSE REIMB, LOCAL",$79.18 ,4/20/2017
HEWLETT PACKARD ENTERPRISE COMPANY,OUTSIDE SERVICES,"$3,575.04 ",1/19/2017
HEWLETT PACKARD ENTERPRISE COMPANY,MATERIALS & ASSETS - CAPITAL,"$27,555.86 ",2/13/2017
HEWLETT PACKARD ENTERPRISE COMPANY,MATERIALS & ASSETS - CAPITAL,$610 ,5/16/2017
HEWLETT PACKARD ENTERPRISE COMPANY,MATERIALS & ASSETS - CAPITAL,"$18,035.28 ",5/18/2017
HIGH PSI LTD.,OUTSIDE SERVICES,$427.72 ,2/2/2017
HIGH PSI LTD.,MATERIALS - NON-INVENTORY,"$1,481.85 ",3/6/2017
HIGH PSI LTD.,OUTSIDE SERVICES,$156.79 ,3/6/2017
HIGH PSI LTD.,OUTSIDE SERVICES,$182.37 ,3/13/2017
HIGH PSI LTD.,OUTSIDE SERVICES,$378.56 ,4/10/2017
HIGH PSI LTD.,OUTSIDE SERVICES,$348.25 ,4/10/2017
HIGH PSI LTD.,OUTSIDE SERVICES,$133.51 ,5/4/2017
HIGH PSI LTD.,OUTSIDE SERVICES,$798.58 ,5/15/2017
HILARY E. KONCZAL,"EMP EXPENSE REIMB, OUT OF TOWN",$288 ,1/17/2017
HILARY E. KONCZAL,"EMP EXPENSE REIMB, OUT OF TOWN",$310.50 ,2/21/2017
HILARY E. KONCZAL,"EMP EXPENSE REIMB, LOCAL",$130.09 ,5/15/2017
HINCKLEY SPRINGS,RENTAL EXPENSE,$19.96 ,1/26/2017
HINCKLEY SPRINGS,RENTAL EXPENSE,$19.96 ,3/6/2017
HINCKLEY SPRINGS,RENTAL EXPENSE,$19.96 ,3/27/2017
HINCKLEY SPRINGS,RENTAL EXPENSE,$19.96 ,4/12/2017
HINCKLEY SPRINGS,RENTAL EXPENSE,$19.96 ,5/18/2017
HINSHAW & CULBERTSON,PROFESSIONAL SERVICES,"$3,166.80 ",1/19/2017
HINSHAW & CULBERTSON,MISCELLANEOUS OTHER EXPENSE,$43.78 ,2/21/2017
HINSHAW & CULBERTSON,PROFESSIONAL SERVICES,"$9,858.30 ",2/21/2017
HINSHAW & CULBERTSON,MISCELLANEOUS OTHER EXPENSE,"$4,483.90 ",3/27/2017
HINSHAW & CULBERTSON,MISCELLANEOUS OTHER EXPENSE,"$4,830.20 ",4/24/2017
HINSHAW & CULBERTSON,PROFESSIONAL SERVICES,"$19,501.20 ",4/24/2017
HINSHAW & CULBERTSON,MISCELLANEOUS OTHER EXPENSE,"$2,102.51 ",5/15/2017
HINSHAW & CULBERTSON,PROFESSIONAL SERVICES,"$14,986.10 ",5/15/2017
HISPANIC NATIONAL BAR ASSOCIATION,MISCELLANEOUS OTHER EXPENSE,$250 ,3/27/2017
HISPANIC NATIONAL BAR ASSOCIATION,MISCELLANEOUS OTHER EXPENSE,$250 ,4/19/2017
HNTB CORP.,ENGINEERING & DESIGN,"$13,744.59 ",1/26/2017
HOFFMAN BROTHERS,OUTSIDE SERVICES,$333.16 ,3/20/2017
"HOPKINS FORD OF ELGIN, INC.",OUTSIDE SERVICES,"$1,286.94 ",5/18/2017
"HOPKINS FORD OF ELGIN, INC.",OUTSIDE SERVICES,"$1,874.09 ",5/19/2017
HP PRODUCTS,MATERIALS - INVENTORY,"$93,368.75 ",1/4/2017
HP PRODUCTS,MATERIALS - INVENTORY,"$8,131.86 ",1/17/2017
HP PRODUCTS,MATERIALS - INVENTORY,$116 ,1/18/2017
HP PRODUCTS,MATERIALS - INVENTORY,"$4,600.10 ",1/23/2017
HP PRODUCTS,MATERIALS - INVENTORY,"$11,859.10 ",2/6/2017
HP PRODUCTS,MATERIALS - INVENTORY,$27 ,2/7/2017
HP PRODUCTS,MATERIALS - INVENTORY,"$2,029.92 ",2/9/2017
HP PRODUCTS,MATERIALS - INVENTORY,"$32,000.34 ",2/13/2017
HP PRODUCTS,MATERIALS - INVENTORY,"$1,022.90 ",2/16/2017
HP PRODUCTS,MATERIALS - INVENTORY,"$8,316.51 ",2/21/2017
HP PRODUCTS,MATERIALS - INVENTORY,$21.10 ,2/23/2017
HP PRODUCTS,MATERIALS - INVENTORY,"$5,690.37 ",3/1/2017
HP PRODUCTS,MATERIALS - INVENTORY,"$14,725.34 ",3/6/2017
HP PRODUCTS,MATERIALS - INVENTORY,"$2,335.76 ",3/8/2017
HP PRODUCTS,MATERIALS - INVENTORY,$142.56 ,3/9/2017
HP PRODUCTS,MATERIALS - INVENTORY,"$1,716.95 ",3/13/2017
HP PRODUCTS,MATERIALS - INVENTORY,"$2,830.80 ",3/20/2017
HP PRODUCTS,MATERIALS - INVENTORY,"$2,772.11 ",3/22/2017
HP PRODUCTS,MATERIALS - INVENTORY,"$20,490.57 ",3/27/2017
HP PRODUCTS,MATERIALS - INVENTORY,"$9,055.16 ",4/3/2017
HP PRODUCTS,MATERIALS - INVENTORY,$353.44 ,4/10/2017
HP PRODUCTS,MATERIALS - INVENTORY,"$4,648.67 ",4/11/2017
HP PRODUCTS,MATERIALS - INVENTORY,"$13,335.35 ",4/12/2017
HP PRODUCTS,MATERIALS - INVENTORY,"$3,586.83 ",4/13/2017
HP PRODUCTS,MATERIALS - INVENTORY,"$10,394.39 ",4/19/2017
HP PRODUCTS,MATERIALS - INVENTORY,"$4,149.69 ",4/24/2017
HP PRODUCTS,MATERIALS - INVENTORY,"$5,911.39 ",4/25/2017
HP PRODUCTS,MATERIALS - INVENTORY,$52.20 ,5/3/2017
HP PRODUCTS,MATERIALS - INVENTORY,"$8,975.30 ",5/10/2017
HP PRODUCTS,MATERIALS - INVENTORY,$312.80 ,5/17/2017
HP PRODUCTS,MATERIALS - INVENTORY,"$8,159 ",5/18/2017
HP PRODUCTS,MATERIALS - INVENTORY,$475.20 ,5/19/2017
"HR GREEN, INC.",ENGINEERING & DESIGN,"$19,851.36 ",3/13/2017
HUMBERTO TAPIA,"EMP EXPENSE REIMB, LOCAL",$82.94 ,3/2/2017
HVAC EXCELLENCE,PROFESSIONAL SERVICES,$240 ,2/13/2017
HVACUSA.COM,MATERIALS - INVENTORY,$954.40 ,4/27/2017
HYDRAULIC DESIGN & REPAIR INC.,MATERIALS - NON-INVENTORY,$238.52 ,1/3/2017
HYDRAULIC DESIGN & REPAIR INC.,MATERIALS - NON-INVENTORY,$39.24 ,1/9/2017
HYDRAULIC DESIGN & REPAIR INC.,OUTSIDE SERVICES,"$7,508.02 ",1/12/2017
HYDRAULIC DESIGN & REPAIR INC.,MATERIALS - NON-INVENTORY,"$1,781.56 ",1/19/2017
HYDRAULIC DESIGN & REPAIR INC.,OUTSIDE SERVICES,$251.35 ,1/19/2017
HYDRAULIC DESIGN & REPAIR INC.,OUTSIDE SERVICES,$447.70 ,2/7/2017
HYDRAULIC DESIGN & REPAIR INC.,OUTSIDE SERVICES,$653.66 ,2/8/2017
HYDRAULIC DESIGN & REPAIR INC.,OUTSIDE SERVICES,"$2,615.07 ",2/13/2017
HYDRAULIC DESIGN & REPAIR INC.,OUTSIDE SERVICES,"$2,647.89 ",3/6/2017
HYDRAULIC DESIGN & REPAIR INC.,MATERIALS - NON-INVENTORY,"$6,975 ",3/7/2017
HYDRAULIC DESIGN & REPAIR INC.,OUTSIDE SERVICES,$592.41 ,3/15/2017
HYDRAULIC DESIGN & REPAIR INC.,MATERIALS - NON-INVENTORY,$442.40 ,3/22/2017
HYDRAULIC DESIGN & REPAIR INC.,OUTSIDE SERVICES,"$2,294.28 ",3/22/2017
HYDRAULIC DESIGN & REPAIR INC.,MATERIALS - NON-INVENTORY,"$5,870.10 ",3/27/2017
HYDRAULIC DESIGN & REPAIR INC.,OUTSIDE SERVICES,"$1,228.66 ",3/27/2017
HYDRAULIC DESIGN & REPAIR INC.,MATERIALS - NON-INVENTORY,$523.48 ,4/10/2017
HYDRAULIC DESIGN & REPAIR INC.,OUTSIDE SERVICES,"$3,801 ",4/10/2017
HYDRAULIC DESIGN & REPAIR INC.,OUTSIDE SERVICES,"$1,880.78 ",4/13/2017
HYDRAULIC DESIGN & REPAIR INC.,OUTSIDE SERVICES,"$3,920.10 ",5/10/2017
HYDRAULIC DESIGN & REPAIR INC.,OUTSIDE SERVICES,$914.88 ,5/15/2017
ID WHOLESALER,MATERIALS - NON-INVENTORY,$485.50 ,4/10/2017
IDEAL ELECTRICAL SUPPLY CORP,MATERIALS - INVENTORY,$131.52 ,1/19/2017
"IDESCO SAFETY CO., LLC",MATERIALS - INVENTORY,$280.50 ,1/10/2017
"IDESCO SAFETY CO., LLC",MATERIALS - INVENTORY,$108 ,1/19/2017
"IDESCO SAFETY CO., LLC",MATERIALS - INVENTORY,$943.50 ,1/24/2017
"IHC CONSTRUCTION COMPANIES, LLC",OUTSIDE SERVICES,"$6,637.93 ",2/9/2017
IHC CONSTRUCTION/ICC JOINT VENTURE,CONSTRUCTION,"$2,344,823.87 ",2/9/2017
ILL DEPT. OF PUBLIC HEALTH,OUTSIDE SERVICES,$150 ,2/14/2017
ILL DEPT. OF PUBLIC HEALTH,PROFESSIONAL SERVICES,$150 ,2/14/2017
ILLINOIS ASSN. OF CHIEFS OF POLICE,MISCELLANEOUS OTHER EXPENSE,$220 ,1/4/2017
ILLINOIS ASSN. OF CHIEFS OF POLICE,MISCELLANEOUS OTHER EXPENSE,$220 ,2/6/2017
ILLINOIS ASSN. OF CHIEFS OF POLICE,PROFESSIONAL SERVICES,$360 ,2/14/2017
ILLINOIS ASSOCIATION OF PROPERTY &,MISCELLANEOUS OTHER EXPENSE,$70 ,2/6/2017
ILLINOIS AUTO ELECTRIC CO.,MATERIALS - INVENTORY,$70.32 ,1/4/2017
ILLINOIS AUTO ELECTRIC CO.,MATERIALS - INVENTORY,"$1,113.57 ",1/9/2017
ILLINOIS AUTO ELECTRIC CO.,MATERIALS - INVENTORY,"$1,961.40 ",1/10/2017
ILLINOIS AUTO ELECTRIC CO.,MATERIALS - INVENTORY,$248.70 ,1/17/2017
ILLINOIS AUTO ELECTRIC CO.,MATERIALS - INVENTORY,$181.55 ,1/30/2017
ILLINOIS AUTO ELECTRIC CO.,MATERIALS - INVENTORY,$70.32 ,2/28/2017
ILLINOIS AUTO ELECTRIC CO.,MATERIALS - INVENTORY,"$1,471.05 ",3/6/2017
ILLINOIS AUTO ELECTRIC CO.,MATERIALS - INVENTORY,"$1,961.40 ",3/27/2017
ILLINOIS AUTO ELECTRIC CO.,MATERIALS - INVENTORY,$946.22 ,4/11/2017
ILLINOIS CENTRAL RAILROAD,CONSTRUCTION,"$39,100 ",1/4/2017
ILLINOIS CENTRAL RAILROAD,RENTAL EXPENSE,$117.60 ,1/9/2017
ILLINOIS CENTRAL RAILROAD,RENTAL EXPENSE,"$23,862.24 ",1/11/2017
ILLINOIS CENTRAL RAILROAD,CONSTRUCTION,"$15,600 ",1/18/2017
ILLINOIS CENTRAL RAILROAD,OUTSIDE SERVICES,$357.44 ,2/7/2017
ILLINOIS CENTRAL RAILROAD,RENTAL EXPENSE,$177.80 ,2/7/2017
ILLINOIS CENTRAL RAILROAD,RENTAL EXPENSE,"$24,073.08 ",2/21/2017
ILLINOIS CENTRAL RAILROAD,RENTAL EXPENSE,$67.20 ,2/27/2017
ILLINOIS CENTRAL RAILROAD,RENTAL EXPENSE,"$23,517.68 ",3/22/2017
ILLINOIS CENTRAL RAILROAD,RENTAL EXPENSE,"$22,329.24 ",4/11/2017
ILLINOIS CENTRAL RAILROAD,RENTAL EXPENSE,$74.40 ,5/1/2017
ILLINOIS CENTRAL RAILROAD,RENTAL EXPENSE,"$25,962.52 ",5/15/2017
ILLINOIS CENTRAL RAILROAD,RENTAL EXPENSE,"$9,300 ",5/18/2017
ILLINOIS CENTRAL RAILROAD,RENTAL EXPENSE,$163.20 ,5/19/2017
ILLINOIS CENTRAL RAILROAD,RENTAL EXPENSE,"$22,516.12 ",5/24/2017
"ILLINOIS COMMUNICATIONS SALES,INC.",MATERIALS - NON-INVENTORY,$345.20 ,1/9/2017
"ILLINOIS COMMUNICATIONS SALES,INC.",MATERIALS - NON-INVENTORY,$352.20 ,1/17/2017
"ILLINOIS COMMUNICATIONS SALES,INC.",MATERIALS - NON-INVENTORY,"$1,330.75 ",1/19/2017
"ILLINOIS COMMUNICATIONS SALES,INC.",MATERIALS & ASSETS - CAPITAL,"$5,552.95 ",1/24/2017
"ILLINOIS COMMUNICATIONS SALES,INC.",MATERIALS - NON-INVENTORY,"$2,610.09 ",2/28/2017
"ILLINOIS COMMUNICATIONS SALES,INC.",MATERIALS - NON-INVENTORY,"$3,966.15 ",4/4/2017
"ILLINOIS COMMUNICATIONS SALES,INC.",MATERIALS - NON-INVENTORY,"$1,142.50 ",5/15/2017
ILLINOIS DEPT. OF NATURAL RESOURCES,ENGINEERING & DESIGN,"$5,000 ",3/22/2017
ILLINOIS DEPT. OF PUBLIC HEALTH,PROFESSIONAL SERVICES,$150 ,5/19/2017
ILLINOIS STATE BAR ASSOCIATION,MISCELLANEOUS OTHER EXPENSE,$150 ,3/17/2017
ILLINOIS STATE TOLL HWY. AUTHORITY,MISCELLANEOUS OTHER EXPENSE,"$8,252.98 ",1/9/2017
ILLINOIS STATE TOLL HWY. AUTHORITY,MISCELLANEOUS OTHER EXPENSE,"$9,305.49 ",3/6/2017
ILLINOIS STATE TOLL HWY. AUTHORITY,PROFESSIONAL SERVICES,$242.28 ,5/15/2017
ILLINOIS STATE TOLL HWY. AUTHORITY,MISCELLANEOUS OTHER EXPENSE,"$7,121.44 ",5/18/2017
"IMPACT NETWORKING, LLC",OUTSIDE SERVICES,"$2,101.46 ",1/11/2017
"IMPACT NETWORKING, LLC",OUTSIDE SERVICES,"$2,101.46 ",1/31/2017
"IMPACT NETWORKING, LLC",OUTSIDE SERVICES,"$2,101.46 ",2/14/2017
"IMPACT NETWORKING, LLC",OUTSIDE SERVICES,"$2,101.46 ",3/21/2017
"IMPACT NETWORKING, LLC",OUTSIDE SERVICES,"$2,024.84 ",4/11/2017
"IMPACT NETWORKING, LLC",OUTSIDE SERVICES,"$2,055.78 ",5/16/2017
IMPULSE NC LLC,MATERIALS - INVENTORY,"$3,544.80 ",1/11/2017
IMPULSE NC LLC,MATERIALS - INVENTORY,"$2,215.50 ",3/1/2017
IMPULSE NC LLC,MATERIALS - INVENTORY,"$11,007 ",3/6/2017
IMPULSE NC LLC,MATERIALS - INVENTORY,"$11,007 ",3/7/2017
IMPULSE NC LLC,MATERIALS - INVENTORY,$982.38 ,4/4/2017
"INDEPENDENT MACHINE CO., INC.",MATERIALS - INVENTORY,"$2,822.50 ",1/10/2017
"INDEPENDENT MACHINE CO., INC.",MATERIALS - INVENTORY,"$1,969.50 ",1/11/2017
"INDEPENDENT MACHINE CO., INC.",MATERIALS - INVENTORY,"$1,693.50 ",2/27/2017
"INDEPENDENT MACHINE CO., INC.",MATERIALS - INVENTORY,$542.25 ,3/7/2017
"INDEPENDENT MACHINE CO., INC.",MATERIALS - INVENTORY,$646.50 ,5/8/2017
"INDEPENDENT RECYCLING SERVICES, INC",OUTSIDE SERVICES - CAPITAL,"$9,658.57 ",1/4/2017
"INDEPENDENT RECYCLING SERVICES, INC",OUTSIDE SERVICES,"$9,537.18 ",1/4/2017
"INDEPENDENT RECYCLING SERVICES, INC",MATERIALS - CAPITAL,"$12,498.10 ",1/9/2017
"INDEPENDENT RECYCLING SERVICES, INC",OUTSIDE SERVICES,"$1,520.86 ",1/9/2017
"INDEPENDENT RECYCLING SERVICES, INC",OUTSIDE SERVICES,"$1,927.18 ",1/10/2017
"INDEPENDENT RECYCLING SERVICES, INC",OUTSIDE SERVICES,$341.54 ,1/11/2017
"INDEPENDENT RECYCLING SERVICES, INC",OUTSIDE SERVICES,"$2,167.57 ",1/26/2017
"INDEPENDENT RECYCLING SERVICES, INC",OUTSIDE SERVICES,"$4,342.60 ",3/6/2017
"INDEPENDENT RECYCLING SERVICES, INC",OUTSIDE SERVICES,$378.98 ,3/7/2017
"INDEPENDENT RECYCLING SERVICES, INC",OUTSIDE SERVICES - CAPITAL,"$4,369.69 ",3/13/2017
"INDEPENDENT RECYCLING SERVICES, INC",OUTSIDE SERVICES,"$3,914.21 ",3/13/2017
"INDEPENDENT RECYCLING SERVICES, INC",OUTSIDE SERVICES - CAPITAL,"$2,992.01 ",3/28/2017
"INDEPENDENT RECYCLING SERVICES, INC",OUTSIDE SERVICES,"$2,239.85 ",3/28/2017
"INDEPENDENT RECYCLING SERVICES, INC",OUTSIDE SERVICES,$541.95 ,4/3/2017
"INDEPENDENT RECYCLING SERVICES, INC",OUTSIDE SERVICES - CAPITAL,"$2,433.77 ",4/11/2017
"INDEPENDENT RECYCLING SERVICES, INC",OUTSIDE SERVICES,"$6,125.65 ",4/11/2017
"INDEPENDENT RECYCLING SERVICES, INC",OUTSIDE SERVICES,$310.34 ,4/27/2017
"INDEPENDENT RECYCLING SERVICES, INC",OUTSIDE SERVICES,"$2,577.20 ",5/2/2017
"INDEPENDENT RECYCLING SERVICES, INC",OUTSIDE SERVICES - CAPITAL,"$2,812.42 ",5/8/2017
"INDEPENDENT RECYCLING SERVICES, INC",OUTSIDE SERVICES,"$2,669.73 ",5/8/2017
"INDEPENDENT RECYCLING SERVICES, INC",OUTSIDE SERVICES,"$2,776.26 ",5/18/2017
"INDUSTRIAL SPECIALTY CHEMICALS, INC",MATERIALS - INVENTORY,$885.50 ,1/9/2017
"INDUSTRIAL SPECIALTY CHEMICALS, INC",MATERIALS - INVENTORY,$885.50 ,3/13/2017
"INDUSTRY-RAILWAY SUPPLIERS, INC.",MATERIALS - INVENTORY,"$4,141.50 ",1/3/2017
"INDUSTRY-RAILWAY SUPPLIERS, INC.",MATERIALS - INVENTORY,$980.80 ,1/10/2017
"INDUSTRY-RAILWAY SUPPLIERS, INC.",MATERIALS - INVENTORY,"$2,039.20 ",1/17/2017
"INDUSTRY-RAILWAY SUPPLIERS, INC.",MATERIALS - NON-INVENTORY,$650 ,1/31/2017
"INDUSTRY-RAILWAY SUPPLIERS, INC.",MATERIALS - INVENTORY,"$1,058.60 ",2/6/2017
"INDUSTRY-RAILWAY SUPPLIERS, INC.",MATERIALS - INVENTORY,"$1,875.25 ",2/8/2017
"INDUSTRY-RAILWAY SUPPLIERS, INC.",MATERIALS - INVENTORY,"$1,460 ",2/13/2017
"INDUSTRY-RAILWAY SUPPLIERS, INC.",MATERIALS - INVENTORY,"$1,567.50 ",2/22/2017
"INDUSTRY-RAILWAY SUPPLIERS, INC.",MATERIALS - INVENTORY,$950 ,2/23/2017
"INDUSTRY-RAILWAY SUPPLIERS, INC.",MATERIALS - INVENTORY,"$2,211.85 ",2/27/2017
"INDUSTRY-RAILWAY SUPPLIERS, INC.",MATERIALS - INVENTORY,$335 ,2/28/2017
"INDUSTRY-RAILWAY SUPPLIERS, INC.",MATERIALS - INVENTORY,"$3,173.65 ",3/13/2017
"INDUSTRY-RAILWAY SUPPLIERS, INC.",MATERIALS - INVENTORY,"$3,889 ",3/27/2017
"INDUSTRY-RAILWAY SUPPLIERS, INC.",MATERIALS - INVENTORY,"$4,709.50 ",4/10/2017
"INDUSTRY-RAILWAY SUPPLIERS, INC.",MATERIALS - INVENTORY,$896.30 ,5/8/2017
"INDUSTRY-RAILWAY SUPPLIERS, INC.",MATERIALS - INVENTORY,"$1,014.65 ",5/11/2017
"INDUSTRY-RAILWAY SUPPLIERS, INC.",MATERIALS - INVENTORY,"$1,991.90 ",5/15/2017
"INDUSTRY-RAILWAY SUPPLIERS, INC.",MATERIALS - INVENTORY,"$4,221.65 ",5/18/2017
"INDUSTRY-RAILWAY SUPPLIERS, INC.",MATERIALS - INVENTORY,$186.40 ,5/19/2017
INFOR (US) INC,MISCELLANEOUS OTHER EXPENSE,"$122,520.18 ",5/8/2017
"INNOVATIVE POWER SOLUTIONS, INC.",OUTSIDE SERVICES,$431.67 ,1/26/2017
"INNOVATIVE POWER SOLUTIONS, INC.",OUTSIDE SERVICES,"$2,692.05 ",1/31/2017
"INNOVATIVE POWER SOLUTIONS, INC.",OUTSIDE SERVICES,"$1,079.15 ",2/6/2017
"INNOVATIVE POWER SOLUTIONS, INC.",OUTSIDE SERVICES,$688.10 ,3/27/2017
"INNOVATIVE POWER SOLUTIONS, INC.",MATERIALS - INVENTORY,"$4,363.68 ",4/11/2017
"INNOVATIVE POWER SOLUTIONS, INC.",OUTSIDE SERVICES,"$2,460.94 ",5/16/2017
"INNOVATIVE POWER SOLUTIONS, INC.",OUTSIDE SERVICES,$699.31 ,5/16/2017
"INNOVATIVE POWER SOLUTIONS, INC.",OUTSIDE SERVICES,"$3,029.41 ",5/18/2017
"INNOVATIVE POWER SOLUTIONS, INC.",OUTSIDE SERVICES,$468.36 ,5/19/2017
INSCERCO MANUFACTURING INC.,OUTSIDE SERVICES,"$4,425 ",2/14/2017
"INSIGHT ADVERTISING, INC.",MISCELLANEOUS OTHER EXPENSE,"$12,049.63 ",5/15/2017
INSTITUTE OF MANAGEMENT ACCOUNTANTS,MISCELLANEOUS OTHER EXPENSE,$415 ,1/19/2017
"INTER-CITY SUPPLY CO., INC.",MATERIALS - NON-INVENTORY,"$1,569.45 ",1/19/2017
"INTER-CITY SUPPLY CO., INC.",MATERIALS & ASSETS - CAPITAL,"$108,105.72 ",4/13/2017
"INTER-CITY SUPPLY CO., INC.",MATERIALS & ASSETS - CAPITAL,"$24,359.20 ",5/2/2017
"INTERIORS FOR BUSINESS, INC.",MISCELLANEOUS OTHER EXPENSE,"$8,620 ",3/20/2017
INTERNATIONAL ASSOC. OF,MISCELLANEOUS OTHER EXPENSE,$150 ,2/6/2017
INTERNATIONAL BUSINESS MACHINE,OUTSIDE SERVICES,$678.16 ,1/11/2017
INTERNATIONAL BUSINESS MACHINE,RENTAL EXPENSE,"$18,165.56 ",1/11/2017
INTERNATIONAL BUSINESS MACHINE,OUTSIDE SERVICES,$262 ,1/26/2017
INTERNATIONAL BUSINESS MACHINE,OUTSIDE SERVICES,$154.16 ,2/6/2017
INTERNATIONAL BUSINESS MACHINE,RENTAL EXPENSE,"$103,541.30 ",2/6/2017
INTERNATIONAL BUSINESS MACHINE,RENTAL EXPENSE,"$14,086.64 ",2/9/2017
INTERNATIONAL BUSINESS MACHINE,OUTSIDE SERVICES,$262 ,2/23/2017
INTERNATIONAL BUSINESS MACHINE,RENTAL EXPENSE,"$14,086.64 ",2/23/2017
INTERNATIONAL BUSINESS MACHINE,RENTAL EXPENSE,"$5,226.40 ",3/7/2017
INTERNATIONAL BUSINESS MACHINE,OUTSIDE SERVICES,$154.16 ,3/13/2017
INTERNATIONAL BUSINESS MACHINE,OUTSIDE SERVICES,$262 ,3/22/2017
INTERNATIONAL BUSINESS MACHINE,RENTAL EXPENSE,"$14,086.64 ",3/22/2017
INTERNATIONAL BUSINESS MACHINE,OUTSIDE SERVICES,"$5,380.56 ",4/20/2017
INTERNATIONAL BUSINESS MACHINE,OUTSIDE SERVICES,$262 ,4/26/2017
INTERNATIONAL BUSINESS MACHINE,RENTAL EXPENSE,"$14,086.64 ",4/26/2017
INTERNATIONAL BUSINESS MACHINE,RENTAL EXPENSE,"$98,314.90 ",5/8/2017
INTERNATIONAL BUSINESS MACHINE,OUTSIDE SERVICES,"$5,380.56 ",5/15/2017
INTERNATIONAL COUNCIL FOR MACHINERY,OUTSIDE SERVICES,$275 ,4/5/2017
INTERSTATE ELECTRONICS CO.,MATERIALS - NON-INVENTORY,"$2,856 ",3/8/2017
INTERSTATE ELECTRONICS CO.,MATERIALS - NON-INVENTORY,"$3,076 ",4/11/2017
INTERSTATE ELECTRONICS CO.,MATERIALS - NON-INVENTORY,$955 ,4/20/2017
INTERSTATE-MCBEE,OUTSIDE SERVICES,"$15,950 ",1/23/2017
INTERSTATE-MCBEE,OUTSIDE SERVICES,$450 ,1/23/2017
INTERSTATE-MCBEE,OUTSIDE SERVICES,"$19,200 ",2/21/2017
INTERSTATE-MCBEE,MATERIALS - NON-INVENTORY,"$25,600 ",3/1/2017
INTERSTATE-MCBEE,MATERIALS - NON-INVENTORY,"$12,000 ",3/7/2017
INTERSTATE-MCBEE,MATERIALS - NON-INVENTORY,"$52,700 ",3/13/2017
INTERSTATE-MCBEE,OUTSIDE SERVICES,"$47,993.28 ",3/20/2017
INTERSTATE-MCBEE,MATERIALS - NON-INVENTORY,$750 ,3/27/2017
INTERSTATE-MCBEE,MATERIALS - NON-INVENTORY,"$24,000 ",4/3/2017
INTERSTATE-MCBEE,OUTSIDE SERVICES,"$14,250 ",5/8/2017
INTERSTATE-MCBEE,OUTSIDE SERVICES,"$42,500 ",5/15/2017
INTERSTATE-MCBEE,OUTSIDE SERVICES,"$7,193.28 ",5/15/2017
INTERSTATE-MCBEE,OUTSIDE SERVICES,"$19,193.28 ",5/19/2017
"IS TECHNOLOGY SOLUTIONS, INC.",OUTSIDE SERVICES,"$5,000 ",3/22/2017
"IS TECHNOLOGY SOLUTIONS, INC.",OUTSIDE SERVICES,"$2,500 ",5/16/2017
ISACA,MISCELLANEOUS OTHER EXPENSE,$230 ,1/4/2017
"ISO SERVICES, INC.",PROFESSIONAL SERVICES,$31.20 ,1/9/2017
"ISO SERVICES, INC.",PROFESSIONAL SERVICES,"$1,141.60 ",1/25/2017
"ISO SERVICES, INC.",PROFESSIONAL SERVICES,$75.25 ,2/28/2017
"ISO SERVICES, INC.",PROFESSIONAL SERVICES,$10.75 ,4/11/2017
"ISO SERVICES, INC.",PROFESSIONAL SERVICES,$32.25 ,5/18/2017
ITT - ENIDINE INC.,MATERIALS - INVENTORY,"$4,824 ",1/9/2017
ITT - ENIDINE INC.,MATERIALS - INVENTORY,"$6,432 ",1/17/2017
ITT - ENIDINE INC.,MATERIALS - INVENTORY,"$4,020 ",5/18/2017
J P SIMONS & CO.,MATERIALS - NON-INVENTORY,"$3,170.04 ",1/10/2017
J P SIMONS & CO.,MATERIALS - NON-INVENTORY,"$34,044.66 ",1/10/2017
J P SIMONS & CO.,MATERIALS - INVENTORY,"$42,759.92 ",1/11/2017
J P SIMONS & CO.,MATERIALS - INVENTORY,"$40,308.15 ",1/12/2017
J P SIMONS & CO.,MATERIALS - CAPITAL,"$3,082.20 ",1/12/2017
J P SIMONS & CO.,MATERIALS - NON-INVENTORY,$64.05 ,1/12/2017
J P SIMONS & CO.,MATERIALS - NON-INVENTORY,$603.63 ,1/12/2017
J P SIMONS & CO.,MATERIALS - NON-INVENTORY,$788.80 ,1/12/2017
J P SIMONS & CO.,MATERIALS - NON-INVENTORY,"$3,602.72 ",1/12/2017
J P SIMONS & CO.,MATERIALS - NON-INVENTORY,"$6,837.96 ",1/12/2017
J P SIMONS & CO.,MATERIALS - NON-INVENTORY,"$1,369.48 ",1/12/2017
J P SIMONS & CO.,MATERIALS - INVENTORY,"$20,608.18 ",1/17/2017
J P SIMONS & CO.,MATERIALS - CAPITAL,"$6,286 ",1/17/2017
J P SIMONS & CO.,MATERIALS - NON-INVENTORY,"$3,010.78 ",1/17/2017
J P SIMONS & CO.,MATERIALS - NON-INVENTORY,"$2,431.57 ",1/17/2017
J P SIMONS & CO.,MATERIALS - NON-INVENTORY,"$6,057.78 ",1/17/2017
J P SIMONS & CO.,MATERIALS - INVENTORY,$900.90 ,1/19/2017
J P SIMONS & CO.,MATERIALS - NON-INVENTORY,"$5,860.35 ",1/19/2017
J P SIMONS & CO.,MATERIALS - NON-INVENTORY,"$3,540.58 ",1/19/2017
J P SIMONS & CO.,MATERIALS - INVENTORY,"$25,508.65 ",1/23/2017
J P SIMONS & CO.,MATERIALS - NON-INVENTORY,"$1,779.48 ",1/23/2017
J P SIMONS & CO.,MATERIALS - NON-INVENTORY,$986.40 ,1/23/2017
J P SIMONS & CO.,MATERIALS - NON-INVENTORY,"$1,073.68 ",1/23/2017
J P SIMONS & CO.,MATERIALS - NON-INVENTORY,"$1,315.18 ",1/23/2017
J P SIMONS & CO.,MATERIALS - NON-INVENTORY,$184.72 ,1/23/2017
J P SIMONS & CO.,MATERIALS - NON-INVENTORY,$722.09 ,1/26/2017
J P SIMONS & CO.,MATERIALS - NON-INVENTORY,"$1,773.76 ",1/26/2017
J P SIMONS & CO.,MATERIALS - INVENTORY,"$9,916.04 ",1/30/2017
J P SIMONS & CO.,MATERIALS - NON-INVENTORY,"$1,074.16 ",1/30/2017
J P SIMONS & CO.,MATERIALS - NON-INVENTORY,"$1,199.76 ",1/30/2017
J P SIMONS & CO.,MATERIALS - NON-INVENTORY,"$2,791.51 ",1/30/2017
J P SIMONS & CO.,MATERIALS - INVENTORY,"$8,425.02 ",1/31/2017
J P SIMONS & CO.,MATERIALS - NON-INVENTORY,"$1,693.20 ",1/31/2017
J P SIMONS & CO.,MATERIALS - NON-INVENTORY,$119.90 ,2/8/2017
J P SIMONS & CO.,MATERIALS - NON-INVENTORY,"$3,374.40 ",2/8/2017
J P SIMONS & CO.,MATERIALS - NON-INVENTORY,$850.87 ,2/8/2017
J P SIMONS & CO.,MATERIALS - NON-INVENTORY,$35.91 ,2/8/2017
J P SIMONS & CO.,MATERIALS - NON-INVENTORY,"$3,263.85 ",2/8/2017
J P SIMONS & CO.,MATERIALS - NON-INVENTORY,"$1,855 ",2/8/2017
J P SIMONS & CO.,MATERIALS - INVENTORY,"$10,347.82 ",2/9/2017
J P SIMONS & CO.,MATERIALS - NON-INVENTORY,"$3,280 ",2/14/2017
J P SIMONS & CO.,MATERIALS - NON-INVENTORY,$438.98 ,2/16/2017
J P SIMONS & CO.,MATERIALS - NON-INVENTORY,"$1,369.92 ",2/16/2017
J P SIMONS & CO.,MATERIALS - NON-INVENTORY,"$2,055 ",2/16/2017
J P SIMONS & CO.,MATERIALS - INVENTORY,$48.60 ,2/21/2017
J P SIMONS & CO.,MATERIALS - NON-INVENTORY,$342 ,2/21/2017
J P SIMONS & CO.,MATERIALS - NON-INVENTORY,"$2,425.08 ",2/21/2017
J P SIMONS & CO.,MATERIALS - NON-INVENTORY,$240 ,2/21/2017
J P SIMONS & CO.,MATERIALS & ASSETS - CAPITAL,"$5,723.05 ",2/21/2017
J P SIMONS & CO.,MATERIALS - INVENTORY,"$7,347.09 ",2/22/2017
J P SIMONS & CO.,MATERIALS - NON-INVENTORY,$391.56 ,2/23/2017
J P SIMONS & CO.,MATERIALS - INVENTORY,"$5,399.38 ",2/27/2017
J P SIMONS & CO.,MATERIALS - NON-INVENTORY,"$13,665.20 ",2/27/2017
J P SIMONS & CO.,MATERIALS - NON-INVENTORY,"$17,775 ",2/27/2017
J P SIMONS & CO.,MATERIALS - NON-INVENTORY,"$1,235 ",2/27/2017
J P SIMONS & CO.,MATERIALS - INVENTORY,"$20,353.46 ",2/28/2017
J P SIMONS & CO.,MATERIALS - INVENTORY,"$24,682.24 ",3/1/2017
J P SIMONS & CO.,MATERIALS - NON-INVENTORY,"$1,556.64 ",3/1/2017
J P SIMONS & CO.,MATERIALS - NON-INVENTORY,$530.48 ,3/1/2017
J P SIMONS & CO.,MATERIALS - INVENTORY,"$19,329.69 ",3/6/2017
J P SIMONS & CO.,MATERIALS - CAPITAL,"$2,172.50 ",3/6/2017
J P SIMONS & CO.,OUTSIDE SERVICES - CAPITAL,"$2,255.76 ",3/6/2017
J P SIMONS & CO.,MATERIALS - NON-INVENTORY,"$1,852 ",3/6/2017
J P SIMONS & CO.,MATERIALS - NON-INVENTORY,"$4,874.32 ",3/6/2017
J P SIMONS & CO.,MATERIALS - NON-INVENTORY,"$1,223.13 ",3/6/2017
J P SIMONS & CO.,MATERIALS & ASSETS - CAPITAL,"$38,309.33 ",3/6/2017
J P SIMONS & CO.,MATERIALS - INVENTORY,"$4,928.61 ",3/7/2017
J P SIMONS & CO.,MATERIALS - INVENTORY,"$17,295.28 ",3/13/2017
J P SIMONS & CO.,MATERIALS - NON-INVENTORY,"$1,807.10 ",3/13/2017
J P SIMONS & CO.,MATERIALS - NON-INVENTORY,"$1,890.28 ",3/13/2017
J P SIMONS & CO.,MATERIALS - INVENTORY,"$2,389.65 ",3/20/2017
J P SIMONS & CO.,MATERIALS - NON-INVENTORY,"$4,416.82 ",3/20/2017
J P SIMONS & CO.,MATERIALS & ASSETS - CAPITAL,"$4,604.48 ",3/21/2017
J P SIMONS & CO.,MATERIALS - NON-INVENTORY,"$1,036.14 ",3/22/2017
J P SIMONS & CO.,MATERIALS - NON-INVENTORY,"$4,081.47 ",3/22/2017
J P SIMONS & CO.,MATERIALS - CAPITAL,"$2,154 ",3/23/2017
J P SIMONS & CO.,MATERIALS - INVENTORY,"$85,824.22 ",3/27/2017
J P SIMONS & CO.,MATERIALS - CAPITAL,"$7,090.50 ",3/27/2017
J P SIMONS & CO.,MATERIALS - NON-INVENTORY,"$1,710.15 ",3/27/2017
J P SIMONS & CO.,MATERIALS - NON-INVENTORY,"$4,400.28 ",3/27/2017
J P SIMONS & CO.,MATERIALS - NON-INVENTORY,"$7,534.60 ",3/27/2017
J P SIMONS & CO.,MATERIALS & ASSETS - CAPITAL,"$24,976.44 ",3/27/2017
J P SIMONS & CO.,MATERIALS - NON-INVENTORY,"$1,402.40 ",3/28/2017
J P SIMONS & CO.,MATERIALS - INVENTORY,"$2,977.26 ",4/3/2017
J P SIMONS & CO.,MATERIALS & ASSETS - CAPITAL,"$29,971.99 ",4/3/2017
J P SIMONS & CO.,MATERIALS - INVENTORY,"$59,367.14 ",4/4/2017
J P SIMONS & CO.,MATERIALS - NON-INVENTORY,$654.08 ,4/4/2017
J P SIMONS & CO.,MATERIALS - NON-INVENTORY,$742 ,4/4/2017
J P SIMONS & CO.,MATERIALS - INVENTORY,"$8,544.75 ",4/10/2017
J P SIMONS & CO.,MATERIALS - NON-INVENTORY,"$1,154.51 ",4/10/2017
J P SIMONS & CO.,MATERIALS - NON-INVENTORY,"$2,200 ",4/10/2017
J P SIMONS & CO.,MATERIALS - NON-INVENTORY,"$1,998 ",4/10/2017
J P SIMONS & CO.,MATERIALS - NON-INVENTORY,"$2,762.30 ",4/10/2017
J P SIMONS & CO.,MATERIALS - NON-INVENTORY,"$1,390.30 ",4/10/2017
J P SIMONS & CO.,MATERIALS & ASSETS - CAPITAL,"$46,154.31 ",4/10/2017
J P SIMONS & CO.,MATERIALS - INVENTORY,"$7,795 ",4/11/2017
J P SIMONS & CO.,MATERIALS - NON-INVENTORY,"$3,165.26 ",4/11/2017
J P SIMONS & CO.,MATERIALS - INVENTORY,"$5,523.36 ",4/12/2017
J P SIMONS & CO.,MATERIALS - NON-INVENTORY,$357.60 ,4/12/2017
J P SIMONS & CO.,MATERIALS & ASSETS - CAPITAL,$609.28 ,4/13/2017
J P SIMONS & CO.,MATERIALS - INVENTORY,"$10,787.30 ",4/19/2017
J P SIMONS & CO.,MATERIALS - INVENTORY,"$3,308.03 ",4/20/2017
J P SIMONS & CO.,MATERIALS - NON-INVENTORY,"$1,876 ",4/24/2017
J P SIMONS & CO.,MATERIALS & ASSETS - CAPITAL,"$16,182.54 ",4/24/2017
J P SIMONS & CO.,MATERIALS - INVENTORY,"$1,224 ",4/25/2017
J P SIMONS & CO.,MATERIALS - INVENTORY,"$3,105.80 ",4/26/2017
J P SIMONS & CO.,MATERIALS - NON-INVENTORY,"$8,928 ",4/26/2017
J P SIMONS & CO.,MATERIALS - CAPITAL,"$8,140.04 ",4/27/2017
J P SIMONS & CO.,MATERIALS - NON-INVENTORY,"$1,495 ",4/27/2017
J P SIMONS & CO.,MATERIALS - CAPITAL,$123.96 ,5/2/2017
J P SIMONS & CO.,MATERIALS - NON-INVENTORY,"$1,636.17 ",5/2/2017
J P SIMONS & CO.,MATERIALS - NON-INVENTORY,"$17,741.68 ",5/2/2017
J P SIMONS & CO.,MATERIALS & ASSETS - CAPITAL,"$41,577.12 ",5/2/2017
J P SIMONS & CO.,MATERIALS - INVENTORY,$477.80 ,5/4/2017
J P SIMONS & CO.,MATERIALS - CAPITAL,$372 ,5/4/2017
J P SIMONS & CO.,MATERIALS - NON-INVENTORY,"$5,740.80 ",5/4/2017
J P SIMONS & CO.,MATERIALS - INVENTORY,"$22,040.80 ",5/8/2017
J P SIMONS & CO.,MATERIALS - NON-INVENTORY,"$2,719.84 ",5/8/2017
J P SIMONS & CO.,MATERIALS - NON-INVENTORY,$499.50 ,5/8/2017
J P SIMONS & CO.,MATERIALS & ASSETS - CAPITAL,"$1,491.82 ",5/8/2017
J P SIMONS & CO.,MATERIALS - INVENTORY,"$26,657.04 ",5/9/2017
J P SIMONS & CO.,MATERIALS - CAPITAL,"$3,744 ",5/9/2017
J P SIMONS & CO.,MATERIALS - NON-INVENTORY,"$1,996.44 ",5/9/2017
J P SIMONS & CO.,MATERIALS - NON-INVENTORY,"$2,705.50 ",5/9/2017
J P SIMONS & CO.,MATERIALS & ASSETS - CAPITAL,"$1,315.20 ",5/9/2017
J P SIMONS & CO.,MATERIALS - NON-INVENTORY,"$1,467.44 ",5/10/2017
J P SIMONS & CO.,MATERIALS - NON-INVENTORY,$482 ,5/10/2017
J P SIMONS & CO.,MATERIALS - NON-INVENTORY,$92.40 ,5/11/2017
J P SIMONS & CO.,MATERIALS - NON-INVENTORY,"$4,010 ",5/11/2017
J P SIMONS & CO.,MATERIALS - NON-INVENTORY,"$1,108 ",5/11/2017
J P SIMONS & CO.,MATERIALS - INVENTORY,"$8,588.05 ",5/15/2017
J P SIMONS & CO.,MATERIALS - CAPITAL,"$1,727.20 ",5/15/2017
J P SIMONS & CO.,MATERIALS - NON-INVENTORY,"$4,902.03 ",5/15/2017
J P SIMONS & CO.,MATERIALS - NON-INVENTORY,"$2,270.28 ",5/15/2017
J P SIMONS & CO.,MATERIALS - INVENTORY,"$2,304.74 ",5/16/2017
J P SIMONS & CO.,MATERIALS - NON-INVENTORY,"$3,174.81 ",5/16/2017
J P SIMONS & CO.,MATERIALS & ASSETS - CAPITAL,"$2,409.90 ",5/16/2017
J P SIMONS & CO.,MATERIALS - INVENTORY,"$2,684.10 ",5/17/2017
J P SIMONS & CO.,MATERIALS - NON-INVENTORY,"$1,800.70 ",5/17/2017
J P SIMONS & CO.,MATERIALS - INVENTORY,$248.56 ,5/18/2017
J P SIMONS & CO.,MATERIALS - NON-INVENTORY,"$4,729.20 ",5/18/2017
J P SIMONS & CO.,MATERIALS - NON-INVENTORY,"$1,362.50 ",5/18/2017
J P SIMONS & CO.,MATERIALS - INVENTORY,"$10,967.96 ",5/19/2017
J P SIMONS & CO.,MATERIALS - NON-INVENTORY,"$2,419.48 ",5/19/2017
J P SIMONS & CO.,MATERIALS - NON-INVENTORY,"$10,365.04 ",5/19/2017
J P SIMONS & CO.,MATERIALS - NON-INVENTORY,"$3,779.70 ",5/19/2017
J. T. TAKSAS,"EMP EXPENSE REIMB, LOCAL",$159.84 ,1/3/2017
J. T. TAKSAS,"EMP EXPENSE REIMB, LOCAL",$199.80 ,1/24/2017
J. T. TAKSAS,"EMP EXPENSE REIMB, LOCAL",$79.18 ,2/27/2017
J. T. TAKSAS,"EMP EXPENSE REIMB, LOCAL",$158.36 ,4/5/2017
J. T. TAKSAS,"EMP EXPENSE REIMB, LOCAL",$118.77 ,4/25/2017
J. T. TAKSAS,"EMP EXPENSE REIMB, LOCAL",$197.95 ,5/24/2017
J. TED ANDERSON,TUITION REIMBURSEMENT,"$3,057 ",1/10/2017
J. TED ANDERSON,TUITION REIMBURSEMENT,"$2,925 ",5/24/2017
"JACKSON MARKING PRODUCTS CO., INC.",MATERIALS - NON-INVENTORY,$616.56 ,4/11/2017
"JACKSON MARKING PRODUCTS CO., INC.",MATERIALS - NON-INVENTORY,$377 ,5/18/2017
JACOB MCLENNAN,"EMP EXPENSE REIMB, LOCAL",$301.32 ,1/3/2017
JACOB MCLENNAN,"EMP EXPENSE REIMB, LOCAL",$151.20 ,1/24/2017
JACOB MCLENNAN,"EMP EXPENSE REIMB, LOCAL",$117.70 ,2/14/2017
JACOB MCLENNAN,"EMP EXPENSE REIMB, LOCAL",$117.70 ,3/30/2017
JACOB MCLENNAN,"EMP EXPENSE REIMB, LOCAL",$205.44 ,5/1/2017
JACOB MCLENNAN,"EMP EXPENSE REIMB, LOCAL",$218.28 ,5/25/2017
JACOB TREVINO,"EMP EXPENSE REIMB, LOCAL",$59.38 ,5/26/2017
JACQUELINE SHIELDS,"EMP EXPENSE REIMB, LOCAL",$35 ,1/12/2017
JACQUELINE WATKINS,"EMP EXPENSE REIMB, LOCAL",$83.16 ,1/24/2017
JACQUELINE WATKINS,"EMP EXPENSE REIMB, LOCAL",$78 ,2/9/2017
JACQUELINE WATKINS,"EMP EXPENSE REIMB, OUT OF TOWN","$1,126.60 ",2/27/2017
JACQUELINE WATKINS,"EMP EXPENSE REIMB, LOCAL",$28.36 ,4/10/2017
JACQUELINE WATKINS,"EMP EXPENSE REIMB, OUT OF TOWN","$1,499.92 ",4/13/2017
JACQUELINE WATKINS,"EMP EXPENSE REIMB, OUT OF TOWN","$1,044.50 ",5/25/2017
JACQUELINE WATKINS,"EMP EXPENSE REIMB, OUT OF TOWN","$1,084.77 ",5/26/2017
JAIME AMADOR,"EMP EXPENSE REIMB, LOCAL",$149.24 ,1/11/2017
JAMAL PORCHE,"EMP EXPENSE REIMB, LOCAL",$79.92 ,1/24/2017
JAMAL THOMPSON,"EMP EXPENSE REIMB, LOCAL",$136.69 ,5/24/2017
JAMES  CURTIS,"EMP EXPENSE REIMB, LOCAL",$176.04 ,1/9/2017
JAMES  CURTIS,"EMP EXPENSE REIMB, LOCAL",$102.60 ,1/23/2017
JAMES  CURTIS,"EMP EXPENSE REIMB, LOCAL",$118.77 ,3/1/2017
